﻿Body Name,Supplier Code,Supplier Name,Transaction Ref/No,Their Ref,Date Paid,Gross Value (Detail),VAT Amount,7CCC - Level 7 Cost Centre Code,7CCN - Level 7 Cost Centre Name,9AC - Level 9 Account Code,9AN - Level 9 Account Name,4CCN - Level 4 Cost Centre Name
Blackpool Council,1074572,Gl Assessment,614748,SINV00372199,13/02/2023,70995.67,11832.61,OTHL,Other Learning,3401,General Services,Children'S Services
Blackpool Council,1111346,Yorkshire Care Equipment,615686,YC5689,09/02/2023,3262,219.7,APFBAB,Vitaline,3030,Domestic Equipment - Purchase,Adult & Families
Blackpool Council,1009079,Pearson Education Ltd,616252,2289645,28/02/2023,690.75,65.08,EDDIV,Education Diversity,3304,Books And Periodicals,Children'S Services
Blackpool Council,1109913,Tough Furniture Ltd,616890,25431,03/02/2023,403.2,67.2,MTEAJ,Equipment,5401,Aids To Daily Living,Adult & Families
Blackpool Council,1120827,Engage Esm Ltd,618789,5337007768,24/02/2023,22332,0,FGAC,Ict Technical Support,3532,Comp-Running & License Costs,Resources
Blackpool Council,1006196,Prism Medical Uk Ltd,619960,5549314,15/02/2023,384.02,64,MVBBJ,Equipment,5401,Aids To Daily Living,Adult & Families
Blackpool Council,1123518,Department For Transport Account,620141,2373-03/01/2023,02/02/2023,3000,500,TRA,Traffic Management,4501,Private Contractors,Community & Env Services
Blackpool Council,1098651,Direct Parts Supply Ltd T/A Gym-Fit,620143,48276,08/02/2023,663.11,110.51,LEISUR,Leisure Management,2002,Repairs And Maintenance,Community & Env Services
Blackpool Council,1058510,Lifeline Language Services Ltd,620147,0822119,06/02/2023,300,50,JEA,Senior Management,3419,Interpreters Fees,Children'S Services
Blackpool Council,1094424,The Networking People,620207,SI112400,02/02/2023,1980,330,FGAA,Ict Corporate Services,3531,Computer-H'Ware Purchase,Resources
Blackpool Council,1120720,5 Ways Boxing Academy Cic,620234,022/23,01/02/2023,1120,0,EDDIV,Education Diversity,4101,Other Local Authorities,Children'S Services
Blackpool Council,1102823,Wilde Consultants Limited,620256,24279,03/02/2023,4712.4,785.4,TRA,Traffic Management,4501,Private Contractors,Community & Env Services
Blackpool Council,1102823,Wilde Consultants Limited,620257,24278,03/02/2023,4284.95,714.16,TRA,Traffic Management,4501,Private Contractors,Community & Env Services
Blackpool Council,1114522,The Oyster Partnership Ltd,620301,10948831,01/02/2023,1998,333,AEV,Vacant & Under Used,0981,Professional Fees,Resources
Blackpool Council,1065040,The Gatehouse Blackpool,620314,HSFGRANT,03/02/2023,500,0,EP8011,Covid Winter Grant,3801,Other Expenses,Children'S Services
Blackpool Council,1065040,The Gatehouse Blackpool,620314,HSFGRANT,03/02/2023,1400,0,EP8011,Covid Winter Grant,4501,Private Contractors,Children'S Services
Blackpool Council,1071842,Sean Conboy T/A Photogenics,620424,6704,03/02/2023,834,139,PRM,Publications,3301,Printing,Places
Blackpool Council,1122491,Planday Limited,620431,INV00204569,02/02/2023,3010.9,501.82,LEISUR,Leisure Management,3801,Other Expenses,Community & Env Services
Blackpool Council,1025240,Key Engineering Supplies Ltd,620439,56621,03/02/2023,747.84,0,ZM0018,Highways & Engineering,9773,Orders Received Not Invoiced,Blackpool Services
Blackpool Council,1025240,Key Engineering Supplies Ltd,620439,56621,03/02/2023,897.41,149.57,ZM0018,Highways & Engineering,9511A,Stocks Efin,Blackpool Services
Blackpool Council,1121728,Arrow County Supplies,620522,4981672,03/02/2023,334.2,55.7,AER,Dual Use Properties,1601,Consumable Supplies,Resources
Blackpool Council,1013064,Tarmac Lafarge Trading Limited,620528,9046189462,21/02/2023,2342.31,390.38,ENGINE,Engineering,3041,Other Materials,Community & Env Services
Blackpool Council,1137419,Chunc Ltd,620530,3765,02/02/2023,4363.24,727.21,CWAN,Children With Additional Needs,5401,Aids To Daily Living,Children'S Services
Blackpool Council,1031475,Jenx Ltd T/A Jiraffe,620531,402532,03/02/2023,1074,179,MTEAJ,Equipment,5401,Aids To Daily Living,Adult & Families
Blackpool Council,1114541,Integrity Print Ltd,620543,1343760,03/02/2023,426,71,PARADM,Parking Administration,3801,Other Expenses,Budgets Outside Cash Limits
Blackpool Council,1071928,Civica Uk Limited,620572,C/PY261119,08/02/2023,5482.98,913.83,AD0401,Credit Union - Bus Support,3532,Comp-Running & License Costs,Credit Union - Bus Support
Blackpool Council,1071928,Civica Uk Limited,620572,C/PY261119,08/02/2023,340,56.67,CWASTE,Commercial Waste,3532,Comp-Running & License Costs,Community & Env Services
Blackpool Council,1071928,Civica Uk Limited,620572,C/PY261119,08/02/2023,1463.9,243.98,DIRCTR,Directorate,3532,Comp-Running & License Costs,Community & Env Services
Blackpool Council,1071928,Civica Uk Limited,620572,C/PY261119,08/02/2023,340.36,56.73,DOMPFI,Domestic Waste & Waste Pfi,3532,Comp-Running & License Costs,Community & Env Services
Blackpool Council,1071928,Civica Uk Limited,620572,C/PY261119,08/02/2023,860.2,143.37,FB0062,Payments & Processing,3532,Comp-Running & License Costs,Resources
Blackpool Council,1071928,Civica Uk Limited,620572,C/PY261119,08/02/2023,472.74,78.79,FB0211,Debtors,3532,Comp-Running & License Costs,Resources
Blackpool Council,1071928,Civica Uk Limited,620572,C/PY261119,08/02/2023,6615.98,1102.66,FBBEA,"Income, Recovery & Debtors",3532,Comp-Running & License Costs,Resources
Blackpool Council,1071928,Civica Uk Limited,620572,C/PY261119,08/02/2023,660.6,110.1,FC1211,Cashiers,3532,Comp-Running & License Costs,Resources
Blackpool Council,1071928,Civica Uk Limited,620572,C/PY261119,08/02/2023,430.63,71.77,FCACA,Benefits - Admin,3532,Comp-Running & License Costs,Resources
Blackpool Council,1071928,Civica Uk Limited,620572,C/PY261119,08/02/2023,637.96,106.33,LIFEVE,Life Events Reg & Care,3532,Comp-Running & License Costs,Governance & Partnerships
Blackpool Council,1071928,Civica Uk Limited,620572,C/PY261119,08/02/2023,714.74,119.12,MTEBK,Other Services,3532,Comp-Running & License Costs,Adult & Families
Blackpool Council,1071928,Civica Uk Limited,620572,C/PY261119,08/02/2023,1643.8,273.97,PARADM,Parking Administration,3532,Comp-Running & License Costs,Budgets Outside Cash Limits
Blackpool Council,1071928,Civica Uk Limited,620572,C/PY261119,08/02/2023,1972.42,328.74,PYLA,Licencing,3532,Comp-Running & License Costs,Community & Env Services
Blackpool Council,1058510,Lifeline Language Services Ltd,620661,0922101,06/02/2023,396,66,JEA,Senior Management,3419,Interpreters Fees,Children'S Services
Blackpool Council,1029832,Computacenter (Uk) Ltd,620689,3883917357,03/02/2023,66915.07,11152.51,CS0739,Ict Refresh,6525,I.T. Hardware Purchase,Capital - Resources
Blackpool Council,1029832,Computacenter (Uk) Ltd,620690,3883917358,03/02/2023,494923.68,82487.28,CS0739,Ict Refresh,6525,I.T. Hardware Purchase,Capital - Resources
Blackpool Council,1006944,Siemens Financial Services Ltd,620691,244/23/0066383,03/02/2023,2620.8,436.8,APFBAB,Vitaline,3711,Subscriptions,Adult & Families
Blackpool Council,1010860,Advanced Steel Services Ltd,620695,01132580,08/02/2023,1197,199.5,PJHA,"Depot, Management & Admin",3041,Other Materials,Places
Blackpool Council,1131576,Oprema Limited,620696,3063951,03/02/2023,2739.02,456.5,CGRESO,Resources Schemes,6507,Materials,Capital - Resources
Blackpool Council,1131576,Oprema Limited,620697,3064358,03/02/2023,16419.19,2736.53,CGRESO,Resources Schemes,6507,Materials,Capital - Resources
Blackpool Council,1131576,Oprema Limited,620698,3064783,08/02/2023,6308.76,1051.46,CGRESO,Resources Schemes,6507,Materials,Capital - Resources
Blackpool Council,1058510,Lifeline Language Services Ltd,620707,0922122,03/02/2023,674.58,112.43,JA1531,Independent Reviewing Officers,0981,Professional Fees,Children'S Services
Blackpool Council,1058510,Lifeline Language Services Ltd,620708,0922123,03/02/2023,1396.26,232.71,JA1531,Independent Reviewing Officers,0981,Professional Fees,Children'S Services
Blackpool Council,1114137,Ricardo-Aea Ltd,620710,6197624,09/02/2023,8700,1450,CORDEV,Corporate Delivery Unit,3801,Other Expenses,Chief Executive
Blackpool Council,1102823,Wilde Consultants Limited,620735,24324-5,03/02/2023,22746.6,3791.1,CGICAD,Enterprise Zone,6506,Consultants Fees,Capital - Commnctn & Regen
Blackpool Council,1096596,Highfield Pfi Spv Ltd,620748,PHSIP000045,07/02/2023,417326.22,69554.37,EM1029,Highfield Pfi,4701,Other Contracted Services,Children'S Services
Blackpool Council,1130833,Chasing The Stigma,620766,97,01/02/2023,2000,0,FK0071,Corporate Training,3426,Course Fees,Chief Executive
Blackpool Council,1137011,Morningside Kennels,620769,BBC002,02/02/2023,2520,0,PYEP,Environmental Protection,4502,Dog Kennelling Contractor,Community & Env Services
Blackpool Council,1136270,S.E.N. Expert Training & Advocacy Ltd,620772,002,07/02/2023,723.5,0,CWAN,Children With Additional Needs,0911,Training Expenses,Children'S Services
Blackpool Council,1121485,Philredom Ltd,620773,PL09012023-100,08/02/2023,2275,0,MNGMT,Central Management,3413,Consultants,Children'S Services
Blackpool Council,1120630,Dar Consulting,620775,SI-266,08/02/2023,720,120,CGICAG,Town Deal,6506,Consultants Fees,Capital - Commnctn & Regen
Blackpool Council,1111807,Costar Uk Limited,620782,116950492,02/02/2023,16485.12,2747.52,HJA,Growth,3711,Subscriptions,Places
Blackpool Council,1006419,Tunstall Healthcare (Uk) Ltd,620801,CD970004808,09/02/2023,2068.56,344.76,APFBAB,Vitaline,3012,Other Equipment,Adult & Families
Blackpool Council,1123071,Whistlejacket London Limited,620805,INV-0956,09/02/2023,3577.39,596.23,HJA,Growth,3315,Marketing,Places
Blackpool Council,1105208,222 Sports Limited,620806,2905,09/02/2023,1440,240,LEISUR,Leisure Management,3711,Subscriptions,Community & Env Services
Blackpool Council,1080563,Bay Media,620819,8336,10/02/2023,1407.6,234.6,PRL,Marketing,3401,General Services,Places
Blackpool Council,1006636,Tts Group Ltd,620823,DE7024988,09/02/2023,269.94,44.99,LBF,Library Management,3041,Other Materials,Places
Blackpool Council,1110952,Mereside Primary Academy,620831,0000000256,03/02/2023,3560,0,EP8011,Covid Winter Grant,3701,Grants,Children'S Services
Blackpool Council,1123368,Escalla  Ts Ltd,620834,6302,08/02/2023,702,117,FCACA,Benefits - Admin,3605,Confs & Short Courses,Resources
Blackpool Council,1057663,Wilde Recruitment Ltd,620850,42461,03/02/2023,552.38,92.06,CTAHHA,Tramway Emergency Works,6501,Contract Payments,Capital - Commnctn & Regen
Blackpool Council,1114522,The Oyster Partnership Ltd,620853,10949276,08/02/2023,1620,270,AEV,Vacant & Under Used,0981,Professional Fees,Resources
Blackpool Council,1114036,Odlings Ltd T/A The Columbaria Co,620922,INV0087945,03/02/2023,706.8,117.8,CEMCRE,Cems Crems Etc,3454,Remove And Refix Memorials,Governance & Partnerships
Blackpool Council,1073324,Dale Power Solutions Plc,620930,SI285398,10/02/2023,1243.2,207.2,FGAC,Ict Technical Support,1121,Heating & Ventilation,Resources
Blackpool Council,1078313,Muddy Faces Ltd,620931,82031,02/02/2023,327.59,54.6,PRKDEV,Parks Development,3041,Other Materials,Community & Env Services
Blackpool Council,1094355,Les Mills Fitness Uk Ltd,620932,LMUK-SIV-150010,03/02/2023,450,75,LEISUR,Leisure Management,3801,Other Expenses,Community & Env Services
Blackpool Council,1119493,Centerprise International Ltd,620957,90293510,10/02/2023,43200,7200,CS0739,Ict Refresh,6525,I.T. Hardware Purchase,Capital - Resources
Blackpool Council,1119493,Centerprise International Ltd,620958,90293511,10/02/2023,28512,4752,CS0739,Ict Refresh,6525,I.T. Hardware Purchase,Capital - Resources
Blackpool Council,1058510,Lifeline Language Services Ltd,620961,1022036,03/02/2023,250.8,41.8,JEA,Senior Management,3419,Interpreters Fees,Children'S Services
Blackpool Council,1134332,Epe Reynell Advertising Limited,620984,INV_423881,03/02/2023,295.01,49.17,PTP,Transport Policy,3806,Advertising-General,Places
Blackpool Council,1006419,Tunstall Healthcare (Uk) Ltd,620986,CD970005058,10/02/2023,2545.8,424.3,APFBAB,Vitaline,3012,Other Equipment,Adult & Families
Blackpool Council,1130214,Jrb Environmental Design Ltd,621057,JRBEDL-10135413,09/02/2023,2797.2,466.2,CGICAG,Town Deal,6506,Consultants Fees,Capital - Commnctn & Regen
Blackpool Council,1006425,Turnock Ltd,621063,52152,10/02/2023,3182.18,530.36,PJOA,Commercial & Marketing,3041,Other Materials,Places
Blackpool Council,1094355,Les Mills Fitness Uk Ltd,621066,LMUK-SIV-150347,03/02/2023,510,85,LEISUR,Leisure Management,3801,Other Expenses,Community & Env Services
Blackpool Council,1095113,Pearce Clinical Psychology Services Ltd,621073,966,03/02/2023,2068,0,FK0013,Corporate Health,0992,Medical Fees (Employee),Chief Executive
Blackpool Council,1110757,Actso Limited,621085,INV-0083,10/02/2023,327,0,PYTA,Trading Standards,3313,General Expenses,Community & Env Services
Blackpool Council,1090628,The Furniture Recycling Group,621089,INV32885,07/02/2023,317.02,52.84,CWASTE,Commercial Waste,4501,Private Contractors,Community & Env Services
Blackpool Council,1101740,Ken Taylor Supplies Limited,621113,0370347,10/02/2023,436.05,0,ZM0018,Highways & Engineering,9773,Orders Received Not Invoiced,Blackpool Services
Blackpool Council,1101740,Ken Taylor Supplies Limited,621113,0370347,10/02/2023,523.26,87.21,ZM0018,Highways & Engineering,9511A,Stocks Efin,Blackpool Services
Blackpool Council,1049304,Insight Direct (Uk) Ltd,621120,2100482055,10/02/2023,426.84,71.14,CWAN,Children With Additional Needs,3533,Computer S/W Purchases,Children'S Services
Blackpool Council,1121728,Arrow County Supplies,621123,4982868,10/02/2023,702,0,ZM0018,Highways & Engineering,9773,Orders Received Not Invoiced,Blackpool Services
Blackpool Council,1121728,Arrow County Supplies,621123,4982868,10/02/2023,842.4,140.4,ZM0018,Highways & Engineering,9511A,Stocks Efin,Blackpool Services
Blackpool Council,1054167,Phf Training,621136,46-23,03/02/2023,995,0,FBBBA,Audit & Investigations,3605,Confs & Short Courses,Resources
Blackpool Council,1008171,Manchester Metropolitan University,621235,91347266,08/02/2023,1848,308,AHHBA,Blackpool Museum,3801,Other Expenses,Places
Blackpool Council,1025240,Key Engineering Supplies Ltd,621263,56872,10/02/2023,449.1,74.85,CATERG,Catering Services,3201,Clothing & Uniforms,Community & Env Services
Blackpool Council,1132812,Cognisoft Limited,621313,INV-0818,08/02/2023,5400,900,PVA,Other External Funding,3401,General Services,Places
Blackpool Council,1110952,Mereside Primary Academy,621314,0000000258,15/02/2023,3600,0,EP8011,Covid Winter Grant,3701,Grants,Children'S Services
Blackpool Council,1094424,The Networking People,621317,SI112475,10/02/2023,22996.28,3832.71,FGAA,Ict Corporate Services,3531,Computer-H'Ware Purchase,Resources
Blackpool Council,1134439,Interface Enterprises Ltd,621328,1375,10/02/2023,23400,3900,JA0505,Children'S Training,3426,Course Fees,Children'S Services
Blackpool Council,1131576,Oprema Limited,621331,3066342,10/02/2023,1088.4,181.4,CCTV,Cctv,3012,Other Equipment,Community & Env Services
Blackpool Council,1094424,The Networking People,621335,SI112453,10/02/2023,3580.39,596.73,FGAA,Ict Corporate Services,3521,Landline - Line Rental,Resources
Blackpool Council,1092789,P T Winchester Ltd,621339,273307,15/02/2023,671.52,111.92,PJOA,Commercial & Marketing,3041,Other Materials,Places
Blackpool Council,1083425,Triple P Uk Ltd,621345,INUK12768,15/02/2023,2208.8,0,SBOARD,Springboard,3302,Stationery,Children'S Services
Blackpool Council,1065232,Back Care Solutions Ltd,621385,113441,13/02/2023,789.59,131.6,APCBCA,Langdale Inc Whitegate Cil,3101,Provisions,Adult & Families
Blackpool Council,1094424,The Networking People,621390,SI112461,10/02/2023,13332.37,2222.06,FGAA,Ict Corporate Services,3527,Communication Lines,Resources
Blackpool Council,1094424,The Networking People,621391,SI112454,10/02/2023,10677.07,1779.51,TSICT,Transforming Schools Ict,3527,Communication Lines,Resources
Blackpool Council,1094424,The Networking People,621392,SI112482,15/02/2023,23254.56,3875.76,FGAA,Ict Corporate Services,3532,Comp-Running & License Costs,Resources
Blackpool Council,1094424,The Networking People,621393,SI112483,15/02/2023,1423.2,237.2,FGAA,Ict Corporate Services,3532,Comp-Running & License Costs,Resources
Blackpool Council,1028022,Prosolve,621394,0000414852,15/02/2023,438,0,ZM0018,Highways & Engineering,9773,Orders Received Not Invoiced,Blackpool Services
Blackpool Council,1028022,Prosolve,621394,0000414852,15/02/2023,525.6,87.6,ZM0018,Highways & Engineering,9511A,Stocks Efin,Blackpool Services
Blackpool Council,1010026,Chartered Institute Of Environmental,621402,PS013709,15/02/2023,345,0,PYCA,Public Protection - Food,3313,General Expenses,Community & Env Services
Blackpool Council,1058510,Lifeline Language Services Ltd,621409,1022063,08/02/2023,526.8,87.8,JEA,Senior Management,3419,Interpreters Fees,Children'S Services
Blackpool Council,1058510,Lifeline Language Services Ltd,621417,1022045,15/02/2023,250.8,41.8,JEA,Senior Management,5507,Personal,Children'S Services
Blackpool Council,1119493,Centerprise International Ltd,621429,90293745,16/02/2023,2184,364,CS0739,Ict Refresh,6525,I.T. Hardware Purchase,Capital - Resources
Blackpool Council,1121728,Arrow County Supplies,621447,4983528,16/02/2023,306,0,ZM0018,Highways & Engineering,9773,Orders Received Not Invoiced,Blackpool Services
Blackpool Council,1121728,Arrow County Supplies,621447,4983528,16/02/2023,367.2,61.2,ZM0018,Highways & Engineering,9511A,Stocks Efin,Blackpool Services
Blackpool Council,1098651,Direct Parts Supply Ltd T/A Gym-Fit,621448,48451,15/02/2023,546,91,LEISUR,Leisure Management,2002,Repairs And Maintenance,Community & Env Services
Blackpool Council,1057663,Wilde Recruitment Ltd,621450,42502,10/02/2023,552.38,92.06,CTAHHA,Tramway Emergency Works,6501,Contract Payments,Capital - Commnctn & Regen
Blackpool Council,1075410,Food Safety Direct Limited,621471,100040799,14/02/2023,750.96,125.16,PYCA,Public Protection - Food,3313,General Expenses,Community & Env Services
Blackpool Council,1006425,Turnock Ltd,621473,52160,15/02/2023,1496.13,249.35,PJOA,Commercial & Marketing,3041,Other Materials,Places
Blackpool Council,1097997,Szpunar & Associates Ltd,621475,10012023,17/02/2023,800,0,LM0420,Adults Training,0911,Training Expenses,Adult & Families
Blackpool Council,1098899,Browne Jacobson Llp,621519,IN-000137295,03/02/2023,6517.2,1086.2,FL1259,Pfi Management Costs,4501,Private Contractors,Community & Env Services
Blackpool Council,1065232,Back Care Solutions Ltd,621528,113537,14/02/2023,499.2,83.2,LIFEVE,Life Events Reg & Care,0917,Other Exps,Governance & Partnerships
Blackpool Council,1135714,Oh Sourcing Ltd,621541,INV-5147OH,17/02/2023,846,141,FK0013,Corporate Health,0791,Temp/Relief (Bureau Staff),Chief Executive
Blackpool Council,1008722,J.A. Jones And Sons (Fac036 Payment),621543,9676315,10/02/2023,4734,789,PRKDEV,Parks Development,1021,Growing,Community & Env Services
Blackpool Council,1049304,Insight Direct (Uk) Ltd,621545,2100486228,15/02/2023,6457.7,1076.28,FGAA,Ict Corporate Services,3532,Comp-Running & License Costs,Resources
Blackpool Council,1114522,The Oyster Partnership Ltd,621546,10949958,15/02/2023,378,63,AEV,Vacant & Under Used,0981,Professional Fees,Resources
Blackpool Council,1132964,The Good Cause Project,621550,INV-0061,14/02/2023,1400,0,AHHBA,Blackpool Museum,3801,Other Expenses,Places
Blackpool Council,1049304,Insight Direct (Uk) Ltd,621552,2100487698,16/02/2023,266.64,44.44,FGAA,Ict Corporate Services,3532,Comp-Running & License Costs,Resources
Blackpool Council,1049304,Insight Direct (Uk) Ltd,621557,2100485819,15/02/2023,391.44,65.24,CS0739,Ict Refresh,6525,I.T. Hardware Purchase,Capital - Resources
Blackpool Council,1041542,James Caverhill Conservation Ltd,621566,5817,15/02/2023,2200,0,AHHBA,Blackpool Museum,3801,Other Expenses,Places
Blackpool Council,1058510,Lifeline Language Services Ltd,621571,1022062,15/02/2023,258,43,JEA,Senior Management,3419,Interpreters Fees,Children'S Services
Blackpool Council,1011837,Cemex Uk Materials Ltd,621575,3013844538,10/02/2023,552.34,92.06,ENGINE,Engineering,3041,Other Materials,Community & Env Services
Blackpool Council,1011837,Cemex Uk Materials Ltd,621577,3013848253,10/02/2023,810.11,135.02,ENGINE,Engineering,3041,Other Materials,Community & Env Services
Blackpool Council,1011837,Cemex Uk Materials Ltd,621578,3013847025,10/02/2023,464.78,77.46,ENGINE,Engineering,3041,Other Materials,Community & Env Services
Blackpool Council,1006944,Siemens Financial Services Ltd,621591,244/23/0066908,03/02/2023,394.35,65.72,APFBAB,Vitaline,3711,Subscriptions,Adult & Families
Blackpool Council,1006944,Siemens Financial Services Ltd,621592,244/23/0067388,06/02/2023,1183.06,197.17,APFBAB,Vitaline,3711,Subscriptions,Adult & Families
Blackpool Council,1134991,Legrand Electric Ltd,621595,0000261698,03/02/2023,2535,422.5,APFBAB,Vitaline,3012,Other Equipment,Adult & Families
Blackpool Council,1088636,Tarmac Building Products Ltd,621613,9500041687,17/02/2023,1420,0,ZM0018,Highways & Engineering,9773,Orders Received Not Invoiced,Blackpool Services
Blackpool Council,1088636,Tarmac Building Products Ltd,621613,9500041687,17/02/2023,1704,284,ZM0018,Highways & Engineering,9511A,Stocks Efin,Blackpool Services
Blackpool Council,1118715,Alison Black Ltd T/A Sportmax,621619,123738,16/02/2023,1057.86,176.31,LEISUR,Leisure Management,3815,Saleable Goods,Community & Env Services
Blackpool Council,1136000,Stellar Projects & Events Llp,621621,INV-00098,15/02/2023,500,0,PJW,Management - Places - Illumina,3801,Other Expenses,Places
Blackpool Council,1013064,Tarmac Lafarge Trading Limited,621622,9046355645,08/02/2023,310.68,51.78,ENGINE,Engineering,3041,Other Materials,Community & Env Services
Blackpool Council,1013064,Tarmac Lafarge Trading Limited,621624,9046351538,08/02/2023,261.26,43.54,ENGINE,Engineering,3041,Other Materials,Community & Env Services
Blackpool Council,1013064,Tarmac Lafarge Trading Limited,621626,9046347182,03/02/2023,285.97,47.66,ENGINE,Engineering,3041,Other Materials,Community & Env Services
Blackpool Council,1013064,Tarmac Lafarge Trading Limited,621628,9046343952,03/02/2023,253.02,42.17,ENGINE,Engineering,3041,Other Materials,Community & Env Services
Blackpool Council,1058510,Lifeline Language Services Ltd,621676,1022046,17/02/2023,338.4,56.4,JA1531,Independent Reviewing Officers,0981,Professional Fees,Children'S Services
Blackpool Council,1119533,Schuchmann Llp,621701,8595,10/02/2023,993.6,165.6,MTEAJ,Equipment,5401,Aids To Daily Living,Adult & Families
Blackpool Council,1119533,Schuchmann Llp,621702,8599,10/02/2023,454.8,75.8,MTEAJ,Equipment,5401,Aids To Daily Living,Adult & Families
Blackpool Council,1109913,Tough Furniture Ltd,621704,25789,03/02/2023,888,148,MTEAJ,Equipment,5401,Aids To Daily Living,Adult & Families
Blackpool Council,1031475,Jenx Ltd T/A Jiraffe,621706,402937,17/02/2023,1074,179,MTEAJ,Equipment,5401,Aids To Daily Living,Adult & Families
Blackpool Council,1019678,Smirthwaite Ltd,621707,203933,16/02/2023,717.6,119.6,CWAN,Children With Additional Needs,5401,Aids To Daily Living,Children'S Services
Blackpool Council,1072170,Krcs Group Ltd,621721,59401,10/02/2023,14093.16,2348.88,EDDIV,Education Diversity,3606,Incidental Expenses,Children'S Services
Blackpool Council,1019678,Smirthwaite Ltd,621803,203678,08/02/2023,1594.8,265.8,MTEAJ,Equipment,5401,Aids To Daily Living,Adult & Families
Blackpool Council,1121728,Arrow County Supplies,621809,4983960,17/02/2023,382.5,0,ZM0018,Highways & Engineering,9773,Orders Received Not Invoiced,Blackpool Services
Blackpool Council,1121728,Arrow County Supplies,621809,4983960,17/02/2023,459,76.5,ZM0018,Highways & Engineering,9511A,Stocks Efin,Blackpool Services
Blackpool Council,1023161,Suez Recycling And Recovery Uk Ltd,621812,80321697,10/02/2023,71077.25,11846.21,DOMPFI,Domestic Waste & Waste Pfi,4501,Private Contractors,Community & Env Services
Blackpool Council,1137875,A Greener Festival Ltd,621814,AGF928,10/02/2023,2400,400,PJW,Management - Places - Illumina,3605,Confs & Short Courses,Places
Blackpool Council,1111571,Trojan Consultants Limited,621830,INV-17225,16/02/2023,18159.6,3026.6,EM1032,Client Finances,3532,Comp-Running & License Costs,Resources
Blackpool Council,1025240,Key Engineering Supplies Ltd,621841,57139,17/02/2023,594,0,ZM0018,Highways & Engineering,9773,Orders Received Not Invoiced,Blackpool Services
Blackpool Council,1025240,Key Engineering Supplies Ltd,621841,57139,17/02/2023,712.8,118.8,ZM0018,Highways & Engineering,9511A,Stocks Efin,Blackpool Services
Blackpool Council,1134922,Oticon Limited,621844,SOI000531900,17/02/2023,310.8,51.8,CWAN,Children With Additional Needs,3008,Educational Equipment,Children'S Services
Blackpool Council,1121728,Arrow County Supplies,621849,4984163,17/02/2023,1314.6,0,ZM0018,Highways & Engineering,9773,Orders Received Not Invoiced,Blackpool Services
Blackpool Council,1121728,Arrow County Supplies,621849,4984163,17/02/2023,1577.52,262.92,ZM0018,Highways & Engineering,9511A,Stocks Efin,Blackpool Services
Blackpool Council,1049304,Insight Direct (Uk) Ltd,621860,2100493014,17/02/2023,857.06,142.84,FGAA,Ict Corporate Services,3531,Computer-H'Ware Purchase,Resources
Blackpool Council,1028068,Proquest Llc,621867,70772722,09/02/2023,5603.32,0,LBF,Library Management,3711,Subscriptions,Places
Blackpool Council,1013064,Tarmac Lafarge Trading Limited,621868,9046386248,15/02/2023,340.45,56.74,ENGINE,Engineering,3041,Other Materials,Community & Env Services
Blackpool Council,1076636,Chicken Joes Ltd,621899,798373,03/02/2023,637.82,0,CATERG,Catering Services,3101,Provisions,Community & Env Services
Blackpool Council,1076636,Chicken Joes Ltd,621900,798374,03/02/2023,705.11,0,CATERG,Catering Services,3101,Provisions,Community & Env Services
Blackpool Council,1076636,Chicken Joes Ltd,621901,798375,03/02/2023,253.75,0,CATERG,Catering Services,3101,Provisions,Community & Env Services
Blackpool Council,1076636,Chicken Joes Ltd,621903,800143,10/02/2023,267.73,0,CATERG,Catering Services,3101,Provisions,Community & Env Services
Blackpool Council,1094424,The Networking People,621910,SI112498,22/02/2023,3696.02,616,FGAA,Ict Corporate Services,3532,Comp-Running & License Costs,Resources
Blackpool Council,1018184,Blackpool Skip Hire Ltd,621911,045889,01/02/2023,282,47,JEA,Senior Management,5507,Personal,Children'S Services
Blackpool Council,1094424,The Networking People,621912,SI112497,22/02/2023,3705.11,617.52,FGAA,Ict Corporate Services,3532,Comp-Running & License Costs,Resources
Blackpool Council,1058510,Lifeline Language Services Ltd,621921,1022061,17/02/2023,354,59,JA1531,Independent Reviewing Officers,0981,Professional Fees,Children'S Services
Blackpool Council,1012839,George Cox & Sons Ltd,621922,12633,09/02/2023,85232.38,14205.4,CGICAG,Town Deal,6514,B.Holes/Site Investgtn/Surveys,Capital - Commnctn & Regen
Blackpool Council,1005071,Blackpool Transport Services Limited,621924,I0004494,02/02/2023,342,0,OTHL,Other Learning,2301,Bus & Tram Fares,Children'S Services
Blackpool Council,1011837,Cemex Uk Materials Ltd,621929,3013856596,17/02/2023,668.78,111.46,ENGINE,Engineering,3041,Other Materials,Community & Env Services
Blackpool Council,1011837,Cemex Uk Materials Ltd,621930,3013854739,17/02/2023,1519.96,253.33,ENGINE,Engineering,3041,Other Materials,Community & Env Services
Blackpool Council,1026811,Stannah Lift Services Ltd,621968,1085507439,09/02/2023,2597,0,CX4002,Disabled Facilities Grants,6501,Contract Payments,Capital - Adult Social Care
Blackpool Council,1026811,Stannah Lift Services Ltd,621969,1085507769,10/02/2023,16861,0,CX4002,Disabled Facilities Grants,6501,Contract Payments,Capital - Adult Social Care
Blackpool Council,1026811,Stannah Lift Services Ltd,621970,1085507814,10/02/2023,6543,0,CX4002,Disabled Facilities Grants,6501,Contract Payments,Capital - Adult Social Care
Blackpool Council,1112303,Access-Able (Uk) Limited (Fac001),621972,5426,22/02/2023,4105.66,0,CX4002,Disabled Facilities Grants,6501,Contract Payments,Capital - Adult Social Care
Blackpool Council,1122956,Vivid Resourcing,621979,98990,01/02/2023,1998,333,AEE,Estates,0981,Professional Fees,Resources
Blackpool Council,1117800,Bowland Tree Consultancy Ltd,622007,3331,16/02/2023,270,45,CGRESO,Resources Schemes,6506,Consultants Fees,Capital - Resources
Blackpool Council,1116610,Smart Video & Sensing Limited,622012,INV-101539,17/02/2023,8974.5,1495.75,TRA,Traffic Management,4501,Private Contractors,Community & Env Services
Blackpool Council,1008871,Irrv Services,622014,A132397,22/02/2023,1800,300,FBBEA,"Income, Recovery & Debtors",3605,Confs & Short Courses,Resources
Blackpool Council,1069573,A Rostron T/A Blackpool Bed Centre,622020,190123-1,09/02/2023,259.99,43.33,JEA,Senior Management,5507,Personal,Children'S Services
Blackpool Council,1009906,Combined Precision Components Plc Cpc,622021,3606604,08/02/2023,256.8,42.8,CGRESO,Resources Schemes,6507,Materials,Capital - Resources
Blackpool Council,1096596,Highfield Pfi Spv Ltd,622025,PHSIP000046,07/02/2023,4320.9,720.15,EM1029,Highfield Pfi,4701,Other Contracted Services,Children'S Services
Blackpool Council,1058510,Lifeline Language Services Ltd,622040,1022091,17/02/2023,265.2,44.2,JEA,Senior Management,5507,Personal,Children'S Services
Blackpool Council,1006940,Smiths Equipment Hire Ltd - Smiths Training,622043,12-1126400,02/02/2023,1098,183,PJAA,"Erection, Operation & Dismantl",3006,Hire Of Equipment,Places
Blackpool Council,1025240,Key Engineering Supplies Ltd,622047,57233,23/02/2023,344.15,57.36,APCBEA,Shared Lives & Volunteers,3201,Clothing & Uniforms,Adult & Families
Blackpool Council,1020550,Hays Specialist Recruitment Ltd,622052,1012739605,06/02/2023,1035,172.5,HJA,Growth,0791,Temp/Relief (Bureau Staff),Places
Blackpool Council,1134332,Epe Reynell Advertising Limited,622053,INV_424612,23/02/2023,379.3,63.22,PYLA,Licencing,3806,Advertising-General,Community & Env Services
Blackpool Council,1057663,Wilde Recruitment Ltd,622054,42548,17/02/2023,552.38,92.06,CTAHHA,Tramway Emergency Works,6501,Contract Payments,Capital - Commnctn & Regen
Blackpool Council,1131025,British Destinations Limited,622060,00144,23/02/2023,3600,0,PPA,Head Of Tourism Services,3401,General Services,Places
Blackpool Council,1098569,This Named Company Ltd T/A The Card Network,622063,INV-012178,24/02/2023,359.82,59.97,FGBA,Specific (Directorate)-Service,3302,Stationery,Resources
Blackpool Council,1100468,Post Office Ltd,622068,1000/90062797,22/02/2023,449.1,0,FC1801,Social Fund - Admin,5209,Crisis/Emergency Support,Resources
Blackpool Council,1111470,National Association Of Virtual School Heads,622069,INV-1850,23/02/2023,500,0,VIRTUL,Virtual Hub,3711,Subscriptions,Children'S Services
Blackpool Council,1111470,National Association Of Virtual School Heads,622070,INV-1851,23/02/2023,349,0,VIRTUL,Virtual Hub,0915,Conferences,Children'S Services
Blackpool Council,1107790,Taylek Ltd,622079,INV-23555,03/02/2023,630,105,PJLA,Maintenance,1012,Premises Maint-Priv.Contractor,Places
Blackpool Council,1091329,Pentagull Limited,622080,20551,10/02/2023,30000,5000,FGAB,Ict E-Government,3532,Comp-Running & License Costs,Resources
Blackpool Council,1087805,Blackpool Fc Community Trust,622081,BFCCT1457,03/02/2023,18071,0,EP8011,Covid Winter Grant,3801,Other Expenses,Children'S Services
Blackpool Council,1087805,Blackpool Fc Community Trust,622081,BFCCT1457,03/02/2023,14910,0,EP8011,Covid Winter Grant,4501,Private Contractors,Children'S Services
Blackpool Council,1087805,Blackpool Fc Community Trust,622082,BFCCT1458,03/02/2023,6742,0,EP8011,Covid Winter Grant,4501,Private Contractors,Children'S Services
Blackpool Council,1020550,Hays Specialist Recruitment Ltd,622083,1012738544,06/02/2023,1948.22,324.7,HJA,Growth,0791,Temp/Relief (Bureau Staff),Places
Blackpool Council,1005071,Blackpool Transport Services Limited,622121,I0004506,03/02/2023,3723.6,0,JEA,Senior Management,5552,Bus Pass / Travel,Children'S Services
Blackpool Council,1094424,The Networking People,622123,SI112511,24/02/2023,1245.61,207.6,FGAA,Ict Corporate Services,3531,Computer-H'Ware Purchase,Resources
Blackpool Council,1094424,The Networking People,622126,SI112512,24/02/2023,2081.17,346.86,CATERG,Catering Services,3531,Computer-H'Ware Purchase,Community & Env Services
Blackpool Council,1135714,Oh Sourcing Ltd,622127,INV-5182OH,24/02/2023,423,70.5,FK0013,Corporate Health,0791,Temp/Relief (Bureau Staff),Chief Executive
Blackpool Council,1135532,Chris Cuthbert Consultancy,622133,0010,10/02/2023,15000,0,BSTPRJ,Better Start Projects,3401,General Services,Better Start Projects
Blackpool Council,1010619,Askews And Holts Library Services Ltd,622138,6817760,15/02/2023,363.78,0,LBB,Central Library,3304,Books And Periodicals,Places
Blackpool Council,1010619,Askews And Holts Library Services Ltd,622139,6817761,15/02/2023,378.57,0,LBB,Central Library,3304,Books And Periodicals,Places
Blackpool Council,1060135,Happy Creative Ltd,622146,H5766,03/02/2023,265.2,44.2,PTA,Economic Development,3315,Marketing,Places
Blackpool Council,1049304,Insight Direct (Uk) Ltd,622151,2100496009,23/02/2023,684.29,114.05,FGAA,Ict Corporate Services,3532,Comp-Running & License Costs,Resources
Blackpool Council,1114704,Morson Human Resources Ltd,622152,HS474839,01/02/2023,2310,385,CTAHHI,Tramway Extention,6506,Consultants Fees,Capital - Commnctn & Regen
Blackpool Council,1008525,Kingswood Office Supplies Limited,622155,451252,03/02/2023,311.88,51.98,AER,Dual Use Properties,3012,Other Equipment,Resources
Blackpool Council,1013326,Dsg Retail Ltd,622157,18179912,23/02/2023,867.02,144.5,NA1471,South Family Hub,3101,Provisions,Children'S Services
Blackpool Council,1136688,Via Removals And Storage 1997 Ltd,622168,2,01/02/2023,620,0,JEA,Senior Management,5507,Personal,Children'S Services
Blackpool Council,1099266,Yesss Electrical Ltd,622172,078IN120667,03/02/2023,315.75,52.62,CGRESO,Resources Schemes,6507,Materials,Capital - Resources
Blackpool Council,1039653,Patrol,622174,13640,24/02/2023,3711.9,0,PARADM,Parking Administration,4711,Admin Fees,Budgets Outside Cash Limits
Blackpool Council,1136186,Hardstaff Barriers,622178,IN110371,24/02/2023,14359.91,2393.32,PRB,Events,0917,Other Exps,Places
Blackpool Council,1121728,Arrow County Supplies,622183,4984747,24/02/2023,364.4,0,ZM0018,Highways & Engineering,9773,Orders Received Not Invoiced,Blackpool Services
Blackpool Council,1121728,Arrow County Supplies,622183,4984747,24/02/2023,437.28,72.88,ZM0018,Highways & Engineering,9511A,Stocks Efin,Blackpool Services
Blackpool Council,1006944,Siemens Financial Services Ltd,622187,244/23/0072435,14/02/2023,1314.52,219.08,APFBAB,Vitaline,3711,Subscriptions,Adult & Families
Blackpool Council,1006944,Siemens Financial Services Ltd,622188,244/23/0076934,17/02/2023,596.8,99.46,APFBAB,Vitaline,3711,Subscriptions,Adult & Families
Blackpool Council,1091610,Communicate Slt Cic,622198,INV-0830,03/02/2023,450,0,NA1471,South Family Hub,4501,Private Contractors,Children'S Services
Blackpool Council,1130656,Caseware Uk Ltd,622199,45505,24/02/2023,1260,210,FBBBA,Audit & Investigations,3711,Subscriptions,Resources
Blackpool Council,1010026,Chartered Institute Of Environmental,622238,PS013896,24/02/2023,960,160,PYEP,Environmental Protection,3313,General Expenses,Community & Env Services
Blackpool Council,1102371,A T Graphics Limited,622240,INV14437,17/02/2023,600,100,PRA,Conferences,3315,Marketing,Places
Blackpool Council,1137622,Lockit Safe Ltd,622241,6613,22/02/2023,23263.2,3877.2,LEISUR,Leisure Management,4501,Private Contractors,Community & Env Services
Blackpool Council,1006292,Vodafone Corporate Ltd,622244,103192334,03/02/2023,459.3,76.55,PU1015,Practical Support Funding,3531,Computer-H'Ware Purchase,Public Health
Blackpool Council,1134991,Legrand Electric Ltd,622245,0000262729,24/02/2023,206394,34399,CS01DH,A P S Capital Works,6517,Equipment,Capital - Adult Social Care
Blackpool Council,1053453,Brenntag Uk Ltd,622257,32SI 3354351,09/02/2023,716.85,119.47,LEISUR,Leisure Management,3060,Chemicals,Community & Env Services
Blackpool Council,1096596,Highfield Pfi Spv Ltd,622263,PHSIP000047,07/02/2023,6183.8,1030.63,EM1029,Highfield Pfi,4701,Other Contracted Services,Children'S Services
Blackpool Council,1110600,REDACTED PERSONAL DATA,622264,184,03/02/2023,558.1,0,AHG,Art Gallery Summary,3456,Payment To Artists,Places
Blackpool Council,1106288,Blackpool Housing Company Ltd,622280,8896,02/02/2023,18000,3000,PBC,Strategy Team,4004,Management Fees,Chief Executive
Blackpool Council,1106288,Blackpool Housing Company Ltd,622281,8895,02/02/2023,54000,9000,PBC,Strategy Team,4004,Management Fees,Chief Executive
Blackpool Council,1011868,W H Tarmacadam Limited,622283,6487,01/02/2023,30648,5108,SCHEME,Highways Schemes,1012,Premises Maint-Priv.Contractor,Community & Env Services
Blackpool Council,1090628,The Furniture Recycling Group,622286,INV33074,07/02/2023,323.23,53.87,CWASTE,Commercial Waste,4501,Private Contractors,Community & Env Services
Blackpool Council,1117328,Northwest Radio Communications Ltd,622297,68367,24/02/2023,608.4,101.4,LEISUR,Leisure Management,3012,Other Equipment,Community & Env Services
Blackpool Council,1060135,Happy Creative Ltd,622299,H5768,06/02/2023,492,82,PTA,Economic Development,3315,Marketing,Places
Blackpool Council,1042797,Lux Occ Medical Ltd,622357,BBC/428,06/02/2023,2000,0,FK0013,Corporate Health,0992,Medical Fees (Employee),Chief Executive
Blackpool Council,1085729,W V Howe Limited,622359,310479,24/02/2023,310.68,51.8,CATERG,Catering Services,3052,Kitchen (Light) Equip-Purchase,Community & Env Services
Blackpool Council,1079443,Uclan Business Services Limited,622360,5111651,01/02/2023,3000,500,PUBH24,Children'S Public Health,4501,Private Contractors,Public Health
Blackpool Council,1058510,Lifeline Language Services Ltd,622379,1022058,23/02/2023,294.6,49.1,JEA,Senior Management,3419,Interpreters Fees,Children'S Services
Blackpool Council,1058510,Lifeline Language Services Ltd,622386,1022135,22/02/2023,332.4,55.4,JEA,Senior Management,3419,Interpreters Fees,Children'S Services
Blackpool Council,1020510,Bebcmat - St Teresa'S Rc Primary School,622388,TERSI5,03/02/2023,1000,0,EP8011,Covid Winter Grant,3701,Grants,Children'S Services
Blackpool Council,1129132,Mhr International Uk Ltd,622393,SIN171652,24/02/2023,1944,324,CGRESO,Resources Schemes,6526,I.T. Software Purchase,Capital - Resources
Blackpool Council,1129132,Mhr International Uk Ltd,622394,SIN171766,24/02/2023,1296,216,CGRESO,Resources Schemes,6526,I.T. Software Purchase,Capital - Resources
Blackpool Council,1129132,Mhr International Uk Ltd,622395,SIN171777,24/02/2023,648,108,CGRESO,Resources Schemes,6526,I.T. Software Purchase,Capital - Resources
Blackpool Council,1131037,Technology One (Uk) Limited,622396,U005765,24/02/2023,10761.66,1793.61,CGRESO,Resources Schemes,6526,I.T. Software Purchase,Capital - Resources
Blackpool Council,1073580,Blackpool Sound And Light,622403,3027,06/02/2023,6249,0,PJHA,"Depot, Management & Admin",3308,Servicing,Places
Blackpool Council,1011675,Bambers Remedial Contractors Limited,622410,18175,01/02/2023,6719.89,0,CX4002,Disabled Facilities Grants,6501,Contract Payments,Capital - Adult Social Care
Blackpool Council,1026811,Stannah Lift Services Ltd,622411,1085510576,20/02/2023,4251.6,708.6,CXAAA,Local Authority Dwellings,6501,Contract Payments,Capital - Chief Executive
Blackpool Council,1100070,Carebase (Fac001),622414,87398,23/02/2023,15358.9,0,CX4002,Disabled Facilities Grants,6501,Contract Payments,Capital - Adult Social Care
Blackpool Council,1011675,Bambers Remedial Contractors Limited,622415,18007,01/02/2023,1416,236,CXAAA,Local Authority Dwellings,6501,Contract Payments,Capital - Chief Executive
Blackpool Council,1011675,Bambers Remedial Contractors Limited,622416,18176,01/02/2023,1378.8,229.8,CXAAA,Local Authority Dwellings,6501,Contract Payments,Capital - Chief Executive
Blackpool Council,1011675,Bambers Remedial Contractors Limited,622417,18172,01/02/2023,5083.28,0,CX4002,Disabled Facilities Grants,6501,Contract Payments,Capital - Adult Social Care
Blackpool Council,1136283,REDACTED PERSONAL DATA,622418,LUTNCHAIRBURSARYPAYMENT2OF2,28/02/2023,1000,0,PJW,Management - Places - Illumina,3819,Events Support,Places
Blackpool Council,1121728,Arrow County Supplies,622419,4985219,24/02/2023,656.5,0,ZM0018,Highways & Engineering,9773,Orders Received Not Invoiced,Blackpool Services
Blackpool Council,1121728,Arrow County Supplies,622419,4985219,24/02/2023,1080.6,180.1,ZM0018,Highways & Engineering,9511A,Stocks Efin,Blackpool Services
Blackpool Council,1006944,Siemens Financial Services Ltd,622420,212/23/0088133,27/02/2023,1678.8,279.8,FCADA,Customer Services,3801,Other Expenses,Resources
Blackpool Council,1073088,Muse Developments Limited,622424,51008277,06/02/2023,351948.3,58658.05,CFCAAA,Cbd Phase 3,6501,Contract Payments,Capital - Commnctn & Regen
Blackpool Council,1129132,Mhr International Uk Ltd,622428,SIN171636,24/02/2023,2592,432,CGRESO,Resources Schemes,6526,I.T. Software Purchase,Capital - Resources
Blackpool Council,1029873,Portakabin Limited,622429,900983413,01/02/2023,70933.2,11822.2,CFCAAA,Cbd Phase 3,6501,Contract Payments,Capital - Commnctn & Regen
Blackpool Council,1074052,Brent Stevenson Memorials Ltd,622432,24887,09/02/2023,445,74.17,CEMCRE,Cems Crems Etc,3454,Remove And Refix Memorials,Governance & Partnerships
Blackpool Council,1101045,Rms Ltd,622438,SIN-00021527,17/02/2023,748.8,124.8,CWAN,Children With Additional Needs,5401,Aids To Daily Living,Children'S Services
Blackpool Council,1008722,J.A. Jones And Sons (Fac036 Payment),622439,9676821,24/02/2023,3685.2,614.2,PRKDEV,Parks Development,1021,Growing,Community & Env Services
Blackpool Council,1008722,J.A. Jones And Sons (Fac036 Payment),622440,9676820,24/02/2023,8150.4,1358.4,PRKDEV,Parks Development,1021,Growing,Community & Env Services
Blackpool Council,1010619,Askews And Holts Library Services Ltd,622481,6821708,22/02/2023,317.88,0,LBB,Central Library,3304,Books And Periodicals,Places
Blackpool Council,1123472,Lancashire Care Ltd T/A Lastminute Nursing,622488,INVOICE16064,01/02/2023,6642.9,0,MTEBF,Home Care,4512,Other Care Block Payments,Adult & Families
Blackpool Council,1123472,Lancashire Care Ltd T/A Lastminute Nursing,622491,16158,02/02/2023,7177.5,0,MTEBF,Home Care,4512,Other Care Block Payments,Adult & Families
Blackpool Council,1006435,Keep Britain Tidy,622494,SI003137,24/02/2023,2454,409,BEACHP,Beach Patrol,3401,General Services,Places
Blackpool Council,1013297,Blackpool Terrazzo Co Ltd,622499,23196,01/02/2023,394.68,65.78,CEMCRE,Cems Crems Etc,3801,Other Expenses,Governance & Partnerships
Blackpool Council,1110996,Philip Holmes T/A Dragon Creative,622501,102836,08/02/2023,1952.96,0,PJHA,"Depot, Management & Admin",3308,Servicing,Places
Blackpool Council,1043114,Federation Of Burial Cremation Authorities,622503,FBCA-0112,15/02/2023,2553.6,425.6,CEMCRE,Cems Crems Etc,3605,Confs & Short Courses,Governance & Partnerships
Blackpool Council,1115480,Seating Matters Ltd,622545,54404,23/02/2023,2778,463,MTEAJ,Equipment,5401,Aids To Daily Living,Adult & Families
Blackpool Council,1115480,Seating Matters Ltd,622546,54465,24/02/2023,7794,1299,MTEAJ,Equipment,5401,Aids To Daily Living,Adult & Families
Blackpool Council,1019678,Smirthwaite Ltd,622547,204100,22/02/2023,717.6,119.6,MTEAJ,Equipment,5401,Aids To Daily Living,Adult & Families
Blackpool Council,1136177,Accora Ltd,622549,474498,17/02/2023,2754,459,MTEAJ,Equipment,5401,Aids To Daily Living,Adult & Families
Blackpool Council,1049200,Etac Limited,622550,338286,24/02/2023,4192.8,698.8,CWAN,Children With Additional Needs,5401,Aids To Daily Living,Children'S Services
Blackpool Council,1008743,James Leckey Design Ltd T/A Vida Global,622552,OP/I197079,17/02/2023,4126.8,687.8,MTEAJ,Equipment,5401,Aids To Daily Living,Adult & Families
Blackpool Council,1008743,James Leckey Design Ltd T/A Vida Global,622553,OP/I197130,22/02/2023,306,51,MTEAJ,Equipment,5401,Aids To Daily Living,Adult & Families
Blackpool Council,1008743,James Leckey Design Ltd T/A Vida Global,622554,OP/I197200,23/02/2023,3546,591,CWAN,Children With Additional Needs,5401,Aids To Daily Living,Children'S Services
Blackpool Council,1008743,James Leckey Design Ltd T/A Vida Global,622555,OP/I197260,24/02/2023,978,163,CWAN,Children With Additional Needs,5401,Aids To Daily Living,Children'S Services
Blackpool Council,1008743,James Leckey Design Ltd T/A Vida Global,622556,OP/I197261,24/02/2023,978,163,MTEAJ,Equipment,5401,Aids To Daily Living,Adult & Families
Blackpool Council,1031475,Jenx Ltd T/A Jiraffe,622558,403144,24/02/2023,2785.2,464.2,MTEAJ,Equipment,5401,Aids To Daily Living,Adult & Families
Blackpool Council,1071702,Links Signs & Graphics Ltd,622560,LSGI34971,09/02/2023,715.2,119.2,AHG,Art Gallery Summary,3456,Payment To Artists,Places
Blackpool Council,1110996,Philip Holmes T/A Dragon Creative,622561,102829,08/02/2023,1875,0,PJW,Management - Places - Illumina,3401,General Services,Places
Blackpool Council,1102434,Inform Cpi Limited,622562,AL65312,01/02/2023,420,70,FC2011,Nndr Collection Costs,3401,General Services,Budgets Outside Cash Limits
Blackpool Council,1138106,Dr M Lyall Forensic Pathology,622563,1033/22,01/02/2023,595.9,0,LIFEVE,Life Events Reg & Care,3801,Other Expenses,Governance & Partnerships
Blackpool Council,1049304,Insight Direct (Uk) Ltd,622564,2100496237,24/02/2023,945.52,157.59,FGAB,Ict E-Government,3532,Comp-Running & License Costs,Resources
Blackpool Council,1049304,Insight Direct (Uk) Ltd,622565,2100496466,24/02/2023,2176.91,362.82,FGAA,Ict Corporate Services,3532,Comp-Running & License Costs,Resources
Blackpool Council,1134698,Johnson & Reeves Limited,622572,BPSC-AC-00009,01/02/2023,3528,588,EP8012,Homes For Ukraine,3901,Contributions To Funds,Children'S Services
Blackpool Council,1099329,Leonard Property Services Ltd,622573,100,01/02/2023,433.33,0,HOPB,Housing Options,1301,Rent & Hire Of Premises,Chief Executive
Blackpool Council,1116783,Move Holmes Ltd,622574,545610,01/02/2023,861.53,0,HOPB,Housing Options,1301,Rent & Hire Of Premises,Chief Executive
Blackpool Council,1119935,Imperial Treasury Services Ltd,622575,2134,01/02/2023,4986.3,0,FH0001,Treasury Management,3401,General Services,Budgets Outside Cash Limits
Blackpool Council,1134828,Rosscon Training Ltd,622576,1018,03/02/2023,850,0,VIRTUL,Virtual Hub,5555,Educational Support,Children'S Services
Blackpool Council,1114127,Derbyshire Specialist Aggregates Ltd,622580,SO0038169/1,10/02/2023,1357.67,226.28,SCHEME,Highways Schemes,3041,Other Materials,Community & Env Services
Blackpool Council,1009234,Gary Roy Kirkham,622582,GK 74,09/02/2023,2030,0,TRCHIL,Integrated Transport Children,2201,Contract Hire,Community & Env Services
Blackpool Council,1007980,Myerscough College,622583,INV290668,01/02/2023,1000,0,BEACHP,Beach Patrol,3605,Confs & Short Courses,Places
Blackpool Council,1138101,Annabel Jackson Associates Ltd,622584,895,01/02/2023,900,150,PJW,Management - Places - Illumina,3401,General Services,Places
Blackpool Council,1131154,Focus Consultants 2010 Llp,622585,013886,28/02/2023,3123.6,520.6,CGTACA,Museum,6503,Capital Salaries (Pro Advance),Capital - Commnctn & Regen
Blackpool Council,1000009,Blackpool & The Fylde College,622589,S0023681,01/02/2023,10640.24,0,EDDIV,Education Diversity,4101,Other Local Authorities,Children'S Services
Blackpool Council,1116301,Wonde Ltd (Gdpr.Co.Uk),622590,SV-340822,01/02/2023,1860,0,EDDIV,Education Diversity,3606,Incidental Expenses,Children'S Services
Blackpool Council,1033894,Gl Education Group Limited,622591,SINV00385380,01/02/2023,1224,204,EDDIV,Education Diversity,3711,Subscriptions,Children'S Services
Blackpool Council,1103692,Calico Enterprise Limited,622593,SINV65/00000647,24/02/2023,34546.12,4882.69,DOMPFI,Domestic Waste & Waste Pfi,4501,Private Contractors,Community & Env Services
Blackpool Council,1103692,Calico Enterprise Limited,622594,SINV65/00000648,24/02/2023,4204.8,700.8,DOMPFI,Domestic Waste & Waste Pfi,4501,Private Contractors,Community & Env Services
Blackpool Council,1103692,Calico Enterprise Limited,622595,SINV65/00000646,24/02/2023,8333.86,1388.98,DOMPFI,Domestic Waste & Waste Pfi,4501,Private Contractors,Community & Env Services
Blackpool Council,1018184,Blackpool Skip Hire Ltd,622598,044798,01/02/2023,282,47,JEA,Senior Management,5507,Personal,Children'S Services
Blackpool Council,1090902,Anderson & Sons Contracting & Turf Care,622599,INV266,01/02/2023,4800,800,SC2064,Heron Way Water Course,1012,Premises Maint-Priv.Contractor,Community & Env Services
Blackpool Council,1094002,Waterloo Primary Academy,622601,WPSI 117,01/02/2023,6460,0,EP8011,Covid Winter Grant,3701,Grants,Children'S Services
Blackpool Council,1095986,Hawes Side Academy,622602,HSAI0108,01/02/2023,3620,0,EP8011,Covid Winter Grant,3701,Grants,Children'S Services
Blackpool Council,1035030,Wicksteed Leisure Ltd,622605,0000819085,02/02/2023,13252.34,2208.72,PRKDEV,Parks Development,1012,Premises Maint-Priv.Contractor,Community & Env Services
Blackpool Council,1051299,Leisure Travel,622606,INV00819,07/02/2023,2100,0,TRCHIL,Integrated Transport Children,2201,Contract Hire,Community & Env Services
Blackpool Council,1131981,Splashreel Limited,622614,211222_WEAREBLACKPOOL,06/02/2023,2400,400,PJW,Management - Places - Illumina,3401,General Services,Places
Blackpool Council,1082067,Squire Patton Boggs (Uk) Llp,622621,2727817,28/02/2023,5011.2,835.2,CGTBBB,Conference Centre,6506,Consultants Fees,Capital - Commnctn & Regen
Blackpool Council,1064236,Lifestyle Media Group Ltd,622622,108994,14/02/2023,3751.22,625.2,PRM,Publications,3301,Printing,Places
Blackpool Council,1115940,Naomi Korn Associates,622623,INV-1151,24/02/2023,6000,1000,AHHBA,Blackpool Museum,3801,Other Expenses,Places
Blackpool Council,1009115,Gunn Jcb Ltd,622624,1441023,01/02/2023,89512.8,14918.8,SCHEME,Highways Schemes,3041,Other Materials,Community & Env Services
Blackpool Council,1111019,Blackpool Parent Forum,622626,01/3101,01/02/2023,20000,0,EP8011,Covid Winter Grant,4501,Private Contractors,Children'S Services
Blackpool Council,1008525,Kingswood Office Supplies Limited,622628,451783,10/02/2023,769.44,128.24,AER,Dual Use Properties,3302,Stationery,Resources
Blackpool Council,1009755,D Kirkham,622631,05,01/02/2023,1175,0,TRADUL,Intergrated Transport Adults,2201,Contract Hire,Community & Env Services
Blackpool Council,1099266,Yesss Electrical Ltd,622632,078IN120784,17/02/2023,371.95,61.99,CCTV,Cctv,3012,Other Equipment,Community & Env Services
Blackpool Council,1007487,Post Office Ltd,622636,200 BLACKPOOL 31012023,01/02/2023,10000,0,FC1802,Social Fund - Client,5209,Crisis/Emergency Support,Resources
Blackpool Council,1010311,Boc Limited,622637,3071682740,14/02/2023,736.78,122.8,LEISUR,Leisure Management,3060,Chemicals,Community & Env Services
Blackpool Council,1010311,Boc Limited,622638,3071682741,14/02/2023,575.98,96,LEISUR,Leisure Management,3060,Chemicals,Community & Env Services
Blackpool Council,1025705,Premier Cabs Blackpool Ltd,622642,INV-152,20/02/2023,756,126,TRCHIL,Integrated Transport Children,2201,Contract Hire,Community & Env Services
Blackpool Council,1118699,Enveco Blackpool Waste Services Ltd,622643,30173228,01/02/2023,268.76,44.79,AHM,Arts Miscellaneous,3817,Artwork,Places
Blackpool Council,1138065,REDACTED PERSONAL DATA,622648,REINBURSEMENTALLOTMENTINVOICES,01/02/2023,1227.68,0,DIRCTR,Directorate,3801,Other Expenses,Community & Env Services
Blackpool Council,1137613,Ssbc Holdings Ltd,622650,SSBC/BS/042023,10/02/2023,1300,0,BSTPRJ,Better Start Projects,3401,General Services,Better Start Projects
Blackpool Council,1134691,Fylde Coast Academy Trust,622651,0000000394,02/02/2023,620,0,MNGMT,Central Management,6273,Miscellaneous,Children'S Services
Blackpool Council,1010269,Blackpool Centre For The Unemployed,622653,BPLC1122,09/02/2023,9600,0,EP8011,Covid Winter Grant,3801,Other Expenses,Children'S Services
Blackpool Council,1063803,Global Media Group Services Ltd,622654,C-INV180700,28/02/2023,420,70,PBF,Communications,3315,Marketing,Places
Blackpool Council,1129634,Av-Id,622656,256,02/02/2023,3123.3,520.55,FGAA,Ict Corporate Services,3531,Computer-H'Ware Purchase,Resources
Blackpool Council,1119165,Hachette Uk Distribution,622657,9002005132,23/02/2023,266.4,44.4,CWAN,Children With Additional Needs,3711,Subscriptions,Children'S Services
Blackpool Council,1105889,3d Environmental Limited,622658,BPCASC-0080,09/02/2023,774,129,FC1802,Social Fund - Client,5210,Community Care Support,Resources
Blackpool Council,1129132,Mhr International Uk Ltd,622659,SIN169921,02/02/2023,648,108,CGRESO,Resources Schemes,6526,I.T. Software Purchase,Capital - Resources
Blackpool Council,1000009,Blackpool & The Fylde College,622661,T111242,02/02/2023,756,0,APCBBE,Extra Support,0911,Training Expenses,Adult & Families
Blackpool Council,1000009,Blackpool & The Fylde College,622662,T110662,02/02/2023,1764,0,APCBBE,Extra Support,0911,Training Expenses,Adult & Families
Blackpool Council,1087579,Ur Potential Cic,622663,22-2023/367URP,10/02/2023,1804,0,EP8011,Covid Winter Grant,3801,Other Expenses,Children'S Services
Blackpool Council,1087579,Ur Potential Cic,622663,22-2023/367URP,10/02/2023,2936,0,EP8011,Covid Winter Grant,4501,Private Contractors,Children'S Services
Blackpool Council,1066729,Equis Associates Limited,622664,12-97-PG-BC,14/02/2023,19200,3200,CTAHHI,Tramway Extention,6506,Consultants Fees,Capital - Commnctn & Regen
Blackpool Council,1086156,Water Saving Techniques Limited,622707,SI-5602,14/02/2023,4096.18,682.7,PARADE,Parades & Seawall,1012,Premises Maint-Priv.Contractor,Community & Env Services
Blackpool Council,1086156,Water Saving Techniques Limited,622708,SI-5601,14/02/2023,8451.65,1408.61,PARADE,Parades & Seawall,1012,Premises Maint-Priv.Contractor,Community & Env Services
Blackpool Council,1086156,Water Saving Techniques Limited,622709,SI-5600,14/02/2023,4212,702,PARADE,Parades & Seawall,1012,Premises Maint-Priv.Contractor,Community & Env Services
Blackpool Council,1057663,Wilde Recruitment Ltd,622711,42604,24/02/2023,552.38,92.06,CTAHHA,Tramway Emergency Works,6501,Contract Payments,Capital - Commnctn & Regen
Blackpool Council,1136843,Philanthropy Company,622712,INV-1263,14/02/2023,7500,1250,PTC,"A.C.E. Regen, Tourism & Cultur",3413,Consultants,Places
Blackpool Council,1099512,Dga (Uk) Ltd,622713,SIN230472,14/02/2023,6468,1078,CGTBBB,Conference Centre,6506,Consultants Fees,Capital - Commnctn & Regen
Blackpool Council,1074052,Brent Stevenson Memorials Ltd,622714,24889,09/02/2023,445,74.17,CEMCRE,Cems Crems Etc,3454,Remove And Refix Memorials,Governance & Partnerships
Blackpool Council,1006940,Smiths Equipment Hire Ltd - Smiths Training,622715,07-1128603,10/02/2023,579.6,96.6,PJNA,New Features / Schemes - C & E,3308,Servicing,Places
Blackpool Council,1006940,Smiths Equipment Hire Ltd - Smiths Training,622716,07-1128604,10/02/2023,2570.4,428.4,PJHA,"Depot, Management & Admin",3308,Servicing,Places
Blackpool Council,1119242,Katherine Brady All Things Told,622720,075,14/02/2023,4675,0,CGTACA,Museum,6517,Equipment,Capital - Commnctn & Regen
Blackpool Council,1084671,Autocross Euroshel Limited,622721,8758,15/02/2023,42470.4,7078.4,CTACBA,Ltp Scheme 21/22,6518,Miscellaneous - Capital,Capital - Commnctn & Regen
Blackpool Council,1084671,Autocross Euroshel Limited,622722,8759,15/02/2023,9993.18,1665.53,CTACBA,Ltp Scheme 21/22,6518,Miscellaneous - Capital,Capital - Commnctn & Regen
Blackpool Council,1071928,Civica Uk Limited,622723,C/LE260553,03/02/2023,9280.18,1546.7,FB0211,Debtors,3532,Comp-Running & License Costs,Resources
Blackpool Council,1076175,West Coast Recruitment (Preston) Ltd,622725,9762,02/02/2023,500.81,83.47,APDBBB,Arc,0793,Supply Cost Of Other Agency,Adult & Families
Blackpool Council,1136919,Power Circle Projects Ltd,622726,INV-0062,24/02/2023,9450,1575,CORDEV,Corporate Delivery Unit,3801,Other Expenses,Chief Executive
Blackpool Council,1137260,Olm Systems Ltd T/A Partners For Change,622728,2220149,23/02/2023,72000,12000,LM3067,Hospital Team,4501,Private Contractors,Adult & Families
Blackpool Council,1133349,Amplify Sales Ltd,622730,INV-000368,15/02/2023,3912,652,PBF,Communications,3535,Website Costs,Places
Blackpool Council,1090841,Beech Forklifts Ltd,622766,T3758,17/02/2023,960,160,PJHA,"Depot, Management & Admin",3605,Confs & Short Courses,Places
Blackpool Council,1028641,New Mind Internet Consultancy Ltd,622773,INV350790,03/02/2023,3420,570,PRJAAA,Website Team,3535,Website Costs,Places
Blackpool Council,1058510,Lifeline Language Services Ltd,622777,1022139,23/02/2023,396,66,JEA,Senior Management,5507,Personal,Children'S Services
Blackpool Council,1099262,Nhs Blackpool & Nhs Lancs & South Cumbria Icb,622778,7440000373,16/02/2023,7844.12,0,BSTPRJ,Better Start Projects,3401,General Services,Better Start Projects
Blackpool Council,1119890,Professional Development Group,622779,EF-G9984T4T,06/02/2023,766.08,127.68,JA0505,Children'S Training,3605,Confs & Short Courses,Children'S Services
Blackpool Council,1109682,Entertainment Concepts Ltd,622780,406,06/02/2023,799.99,133.33,FMAK,Acquisitions 9/10,1131,Electrical Equipment - Repairs,Places
Blackpool Council,1009938,Claremont First Step Community Centre,622784,RU/1001/1202,10/02/2023,20000,0,EP8011,Covid Winter Grant,4501,Private Contractors,Children'S Services
Blackpool Council,1011369,Lancashire County Council,622785,5201501160,06/02/2023,340,0,CGICAG,Town Deal,6511,Service Connections / Altera,Capital - Commnctn & Regen
Blackpool Council,1101124,South Shore Academy,622787,SSSI 83,03/02/2023,20000,0,OTHL,Other Learning,6273,Miscellaneous,Children'S Services
Blackpool Council,1136090,Wireless Logic Ltd,622788,AP/1280872,13/02/2023,312.06,52.01,PJHA,"Depot, Management & Admin",3308,Servicing,Places
Blackpool Council,1122900,Grp Uk Ltd,622789,21715,07/02/2023,487.8,81.3,PJOA,Commercial & Marketing,3041,Other Materials,Places
Blackpool Council,1118715,Alison Black Ltd T/A Sportmax,622791,123646,03/02/2023,457.86,76.31,LEISUR,Leisure Management,3815,Saleable Goods,Community & Env Services
Blackpool Council,1118715,Alison Black Ltd T/A Sportmax,622792,123739,16/02/2023,756.9,126.15,LEISUR,Leisure Management,3815,Saleable Goods,Community & Env Services
Blackpool Council,1074052,Brent Stevenson Memorials Ltd,622793,24900,20/02/2023,385.68,64.28,CEMCRE,Cems Crems Etc,3454,Remove And Refix Memorials,Governance & Partnerships
Blackpool Council,1117705,Rhea Projects Ltd,622797,LAD2-0438,03/02/2023,2346,391,LH2092,Lad 2 Funding,4501,Private Contractors,Public Health
Blackpool Council,1117705,Rhea Projects Ltd,622798,LAD2-0439,03/02/2023,51176.01,0,LH2092,Lad 2 Funding,4501,Private Contractors,Public Health
Blackpool Council,1117705,Rhea Projects Ltd,622799,LAD2-0440,03/02/2023,50060.73,0,LH2092,Lad 2 Funding,4501,Private Contractors,Public Health
Blackpool Council,1117705,Rhea Projects Ltd,622800,LAD2-0441,03/02/2023,6762,1127,LH2092,Lad 2 Funding,4501,Private Contractors,Public Health
Blackpool Council,1117705,Rhea Projects Ltd,622801,LAD2-0442,03/02/2023,1876.8,312.8,LH2092,Lad 2 Funding,4501,Private Contractors,Public Health
Blackpool Council,1087234,Aitch Tools & Fasteners Ltd,622802,067408,03/02/2023,372,62,PJNA,New Features / Schemes - C & E,3041,Other Materials,Places
Blackpool Council,1023478,Highfield Leadership Academy,622803,HLSI 410,07/02/2023,20000,0,OTHL,Other Learning,6273,Miscellaneous,Children'S Services
Blackpool Council,1094010,Quality Childcare Ltd T/A Little Rainbows,622804,RAIN0266,09/02/2023,1056,0,CWAN,Children With Additional Needs,4403,Special Needs - Children,Children'S Services
Blackpool Council,1118745,Quality Childcare Limited,622805,PLAY0093,09/02/2023,495,0,CWAN,Children With Additional Needs,4403,Special Needs - Children,Children'S Services
Blackpool Council,1121122,Angela Latham Psychology Services Ltd,622807,120508,09/02/2023,350,0,BSTPRJ,Better Start Projects,3401,General Services,Better Start Projects
Blackpool Council,1126568,Talking Menopause,622810,1409,03/02/2023,954,159,FK0071,Corporate Training,0911,Training Expenses,Chief Executive
Blackpool Council,1118715,Alison Black Ltd T/A Sportmax,622811,123434,09/02/2023,865.92,144.32,LEISUR,Leisure Management,3815,Saleable Goods,Community & Env Services
Blackpool Council,1087549,Merlin Entertainments (Blackpool) Ltd,622812,INV13026-00026331,10/02/2023,1281,213.5,PPA,Head Of Tourism Services,3401,General Services,Places
Blackpool Council,1137590,REDACTED PERSONAL DATA,622813,2,03/02/2023,487.65,0,ALEARN,Adult Learning,0917,Other Exps,Places
Blackpool Council,1008308,Laca,622828,INV-02321-Z2M8L4,06/02/2023,516,86,CATERG,Catering Services,3711,Subscriptions,Community & Env Services
Blackpool Council,1119440,Northpoint Aviation T/A Raba Group,622829,2308,17/02/2023,600,100,CGICAD,Enterprise Zone,6506,Consultants Fees,Capital - Commnctn & Regen
Blackpool Council,1090774,Richardson Traction Limited,622887,22890,10/02/2023,480,80,PJAA,"Erection, Operation & Dismantl",3006,Hire Of Equipment,Places
Blackpool Council,1026166,Bebcmat - St. Kentigerns Catholic Primary,622888,KENSI3,10/02/2023,940,0,EP8011,Covid Winter Grant,3701,Grants,Children'S Services
Blackpool Council,1102319,Langdale Free School,622889,41,10/02/2023,440,0,EP8011,Covid Winter Grant,3701,Grants,Children'S Services
Blackpool Council,1012096,Bebcmat - St Mary'S Catholic Academy,622891,MBPSI32,06/02/2023,1562.66,0,MNGMT,Central Management,5555,Educational Support,Children'S Services
Blackpool Council,1054167,Phf Training,622901,50-23,23/02/2023,995,0,FBBBA,Audit & Investigations,3605,Confs & Short Courses,Resources
Blackpool Council,1138073,Swk Consultancy And Training Ltd,622902,0016,08/02/2023,8850,0,ALEARN,Adult Learning,3426,Course Fees,Places
Blackpool Council,1134332,Epe Reynell Advertising Limited,622904,INV_419893,06/02/2023,379.3,63.22,TRA,Traffic Management,4501,Private Contractors,Community & Env Services
Blackpool Council,1134332,Epe Reynell Advertising Limited,622905,INV_420002,06/02/2023,273.94,45.66,TRA,Traffic Management,4501,Private Contractors,Community & Env Services
Blackpool Council,1131096,Abl Planning And Development Ltd,622906,2000807/247,21/02/2023,2541.55,0,PLBAAA,Development Control,4515,Contract Services,Places
Blackpool Council,1107790,Taylek Ltd,622910,INV-23847,24/02/2023,835.2,139.2,PJLA,Maintenance,3041,Other Materials,Places
Blackpool Council,1107790,Taylek Ltd,622912,INV-23604,09/02/2023,717.6,119.6,PJLA,Maintenance,3041,Other Materials,Places
Blackpool Council,1011269,Fylde Council,622913,73292830,13/02/2023,17010,0,EP8011,Covid Winter Grant,3901,Contributions To Funds,Children'S Services
Blackpool Council,1128443,Andrea Howe,622917,AHBC022,06/02/2023,4560,0,LH2073,Energy Efficiency,4501,Private Contractors,Public Health
Blackpool Council,1106288,Blackpool Housing Company Ltd,622919,LEARYJO1,06/02/2023,1041.66,0,HOPB,Housing Options,1301,Rent & Hire Of Premises,Chief Executive
Blackpool Council,1133538,REDACTED PERSONAL DATA,622920,0931991,06/02/2023,300,0,PJHA,"Depot, Management & Admin",3308,Servicing,Places
Blackpool Council,1094355,Les Mills Fitness Uk Ltd,622922,LMUK-SIV-148064,06/02/2023,510,85,LEISUR,Leisure Management,3801,Other Expenses,Community & Env Services
Blackpool Council,1106798,Cd Chauffeur Hire,622924,463,10/02/2023,891,0,BCA,Corp And Member Services,2211,Casual Hire,Governance & Partnerships
Blackpool Council,1069355,Volunteer Centre Blackpool Wyre & Fylde Ltd,622926,COL02,06/02/2023,3260,0,EP8011,Covid Winter Grant,3801,Other Expenses,Children'S Services
Blackpool Council,1069355,Volunteer Centre Blackpool Wyre & Fylde Ltd,622926,COL02,06/02/2023,16000,0,EP8011,Covid Winter Grant,4501,Private Contractors,Children'S Services
Blackpool Council,1130307,Cool Milk At School Ltd,622927,CMS0459957,08/02/2023,36998.96,0,SCHBRK,Free School Breakfasts,3107,Milk For Drinking,Community & Env Services
Blackpool Council,1130307,Cool Milk At School Ltd,622928,CMS0451375,08/02/2023,25114.14,0,SCHBRK,Free School Breakfasts,3107,Milk For Drinking,Community & Env Services
Blackpool Council,1076636,Chicken Joes Ltd,622930,801916,17/02/2023,291.19,0,CATERG,Catering Services,3101,Provisions,Community & Env Services
Blackpool Council,1130307,Cool Milk At School Ltd,622932,CMS0459959,08/02/2023,21738.43,0,SCHBRK,Free School Breakfasts,3107,Milk For Drinking,Community & Env Services
Blackpool Council,1076636,Chicken Joes Ltd,622933,801920,17/02/2023,390.68,0,CATERG,Catering Services,3101,Provisions,Community & Env Services
Blackpool Council,1076636,Chicken Joes Ltd,622935,803695,24/02/2023,591.48,0,CATERG,Catering Services,3101,Provisions,Community & Env Services
Blackpool Council,1076636,Chicken Joes Ltd,622936,803696,24/02/2023,505.3,0,CATERG,Catering Services,3101,Provisions,Community & Env Services
Blackpool Council,1076636,Chicken Joes Ltd,622937,803697,24/02/2023,291.19,0,CATERG,Catering Services,3101,Provisions,Community & Env Services
Blackpool Council,1074389,Parentpay Ltd,622939,2051832,08/02/2023,1428.53,238.09,CATERG,Catering Services,3533,Computer S/W Purchases,Community & Env Services
Blackpool Council,1076636,Chicken Joes Ltd,622940,803690,24/02/2023,325.56,0,CATERG,Catering Services,3101,Provisions,Community & Env Services
Blackpool Council,1053021,Wesley Media/The Yaboo Company Ltd,622942,65987,14/02/2023,252,42,CEMCRE,Cems Crems Etc,3401,General Services,Governance & Partnerships
Blackpool Council,1053021,Wesley Media/The Yaboo Company Ltd,622943,65988,14/02/2023,360,60,CEMCRE,Cems Crems Etc,3401,General Services,Governance & Partnerships
Blackpool Council,1090628,The Furniture Recycling Group,622947,INV33176,07/02/2023,310.8,51.8,CWASTE,Commercial Waste,4501,Private Contractors,Community & Env Services
Blackpool Council,1010300,Blacktax Radio Taxis T/A Blackpool Courier,622953,806,07/02/2023,950,0,TRCHIL,Integrated Transport Children,2201,Contract Hire,Community & Env Services
Blackpool Council,1010300,Blacktax Radio Taxis T/A Blackpool Courier,622954,816,07/02/2023,397,0,TRCHIL,Integrated Transport Children,2201,Contract Hire,Community & Env Services
Blackpool Council,1010300,Blacktax Radio Taxis T/A Blackpool Courier,622955,769,07/02/2023,456,0,TRCHIL,Integrated Transport Children,2201,Contract Hire,Community & Env Services
Blackpool Council,1010300,Blacktax Radio Taxis T/A Blackpool Courier,622956,772,07/02/2023,2090,0,TRCHIL,Integrated Transport Children,2201,Contract Hire,Community & Env Services
Blackpool Council,1010300,Blacktax Radio Taxis T/A Blackpool Courier,622957,815,07/02/2023,336,0,TRCHIL,Integrated Transport Children,2201,Contract Hire,Community & Env Services
Blackpool Council,1010300,Blacktax Radio Taxis T/A Blackpool Courier,622959,790,07/02/2023,400,0,TRADUL,Intergrated Transport Adults,2201,Contract Hire,Community & Env Services
Blackpool Council,1010300,Blacktax Radio Taxis T/A Blackpool Courier,622960,812,07/02/2023,900,0,TRCHIL,Integrated Transport Children,2201,Contract Hire,Community & Env Services
Blackpool Council,1076636,Chicken Joes Ltd,622968,801919,17/02/2023,324.33,0,CATERG,Catering Services,3101,Provisions,Community & Env Services
Blackpool Council,1117705,Rhea Projects Ltd,622970,LAD2-0346,06/02/2023,47389.2,7898.2,LH2092,Lad 2 Funding,4501,Private Contractors,Public Health
Blackpool Council,1087953,Blackpool Local Education Partnership Ltd,622976,PBSIP000028,06/02/2023,17121,2853.5,CFCAAA,Cbd Phase 3,6501,Contract Payments,Capital - Commnctn & Regen
Blackpool Council,1033190,Apse,622977,2223/2006,07/02/2023,348,58,CEMCRE,Cems Crems Etc,3605,Confs & Short Courses,Governance & Partnerships
Blackpool Council,1114704,Morson Human Resources Ltd,622978,HS476402,08/02/2023,2310,385,CTAHHI,Tramway Extention,6506,Consultants Fees,Capital - Commnctn & Regen
Blackpool Council,1091610,Communicate Slt Cic,622989,INV-0833,06/02/2023,4000,0,BSTPRJ,Better Start Projects,3401,General Services,Better Start Projects
Blackpool Council,1091610,Communicate Slt Cic,622990,INV-0778,07/02/2023,2700,0,BSTPRJ,Better Start Projects,3401,General Services,Better Start Projects
Blackpool Council,1071918,Bebcmat - St Cuthberts Catholic Academy,622991,CUTSI14,07/02/2023,1980,0,EP8011,Covid Winter Grant,3701,Grants,Children'S Services
Blackpool Council,1010372,Bebcmat - Christ The King Catholic Academy,622992,CTKSI10,07/02/2023,2040,0,EP8011,Covid Winter Grant,3701,Grants,Children'S Services
Blackpool Council,1099746,Unity Academy,622996,9000000467,07/02/2023,11620,0,EP8011,Covid Winter Grant,3701,Grants,Children'S Services
Blackpool Council,1038738,Layton Primary School,622997,SINV29,07/02/2023,5440,0,EP8011,Covid Winter Grant,3701,Grants,Children'S Services
Blackpool Council,1040498,Savoy Timber Ltd,623002,106325,08/02/2023,372.58,62.1,CEMCRE,Cems Crems Etc,3801,Other Expenses,Governance & Partnerships
Blackpool Council,1103450,Blackpool Entertainment Company Limited,623005,INV0066753,08/02/2023,374.22,62.37,MNGMT,Central Management,6273,Miscellaneous,Children'S Services
Blackpool Council,1058510,Lifeline Language Services Ltd,623036,1022145,24/02/2023,284.4,47.4,JEA,Senior Management,5507,Personal,Children'S Services
Blackpool Council,1053021,Wesley Media/The Yaboo Company Ltd,623038,25545,10/02/2023,7626,1271,CEMCRE,Cems Crems Etc,3401,General Services,Governance & Partnerships
Blackpool Council,1116762,Dt Electrical (Uk) Ltd,623039,IN3253,07/02/2023,1756.8,292.8,PJRA,Electrical Infra - Places,3308,Servicing,Places
Blackpool Council,1081205,The Excellent Ramp System Ltd,623041,4420,15/02/2023,5875,0,CX4002,Disabled Facilities Grants,6501,Contract Payments,Capital - Adult Social Care
Blackpool Council,1081205,The Excellent Ramp System Ltd,623042,4421,15/02/2023,5600,0,CX4002,Disabled Facilities Grants,6501,Contract Payments,Capital - Adult Social Care
Blackpool Council,1099469,Blackpool Gateway Academy,623043,5000000102,07/02/2023,5240,0,EP8011,Covid Winter Grant,3701,Grants,Children'S Services
Blackpool Council,1099746,Unity Academy,623044,9000000457,07/02/2023,1000,0,MNGMT,Central Management,0917,Other Exps,Children'S Services
Blackpool Council,1099746,Unity Academy,623045,9000000458,07/02/2023,1000,0,MNGMT,Central Management,0917,Other Exps,Children'S Services
Blackpool Council,1114634,Waterscan Limited,623046,SI003900,13/02/2023,3026.4,504.4,FB0004,Energy & Sustainability,1401,Water Charges-Metered,Resources
Blackpool Council,1114634,Waterscan Limited,623047,SI003901,13/02/2023,2806.8,467.8,FB0004,Energy & Sustainability,1401,Water Charges-Metered,Resources
Blackpool Council,1030367,Mike Ayres Design Ltd,623050,SI-211442,10/02/2023,314.16,52.36,APCBCA,Langdale Inc Whitegate Cil,2002,Repairs And Maintenance,Adult & Families
Blackpool Council,1026811,Stannah Lift Services Ltd,623052,1085513031,24/02/2023,3474,0,CX4002,Disabled Facilities Grants,6501,Contract Payments,Capital - Adult Social Care
Blackpool Council,1123432,Thames Primary Academy,623055,THASI80,07/02/2023,1000,0,MNGMT,Central Management,0917,Other Exps,Children'S Services
Blackpool Council,1118699,Enveco Blackpool Waste Services Ltd,623062,30178426,07/02/2023,1830.37,305.06,PARADM,Parking Administration,4501,Private Contractors,Budgets Outside Cash Limits
Blackpool Council,1069355,Volunteer Centre Blackpool Wyre & Fylde Ltd,623063,IS_01_2223,08/02/2023,29444,0,DDC,Partnerships & Business Dev,3801,Other Expenses,Places
Blackpool Council,1123472,Lancashire Care Ltd T/A Lastminute Nursing,623069,16185,09/02/2023,5607,0,MTEBF,Home Care,4512,Other Care Block Payments,Adult & Families
Blackpool Council,1111496,Bes Healthcare Ltd,623098,INVBES166713,15/02/2023,719.58,119.93,CWAN,Children With Additional Needs,5401,Aids To Daily Living,Children'S Services
Blackpool Council,1092983,Bitteswell Employment Alliance Ltd,623100,005953,15/02/2023,589.42,98.24,MTEAJ,Equipment,5401,Aids To Daily Living,Adult & Families
Blackpool Council,1137861,Built Environment Networking Ltd,623102,INV-14582,14/02/2023,1479,246.5,CGICAD,Enterprise Zone,6527,Marketing,Capital - Commnctn & Regen
Blackpool Council,1118794,Awol Adventure Limited,623106,6227,15/02/2023,2350,391.67,BSTPRJ,Better Start Projects,3401,General Services,Better Start Projects
Blackpool Council,1010090,Vodafone Limited,623107,UK10/012023/3230,08/02/2023,1535.12,255.85,FGAA,Ict Corporate Services,3527,Communication Lines,Resources
Blackpool Council,1129473,Tracey Litherland T/A Buttylicious,623110,1-62,08/02/2023,357,0,PTA,Economic Development,6215,Catering Services,Places
Blackpool Council,1108451,Poulton Pets Ltd T/A Sundown Kennels,623111,BI0086,08/02/2023,2543.4,423.9,PYEP,Environmental Protection,4502,Dog Kennelling Contractor,Community & Env Services
Blackpool Council,1011675,Bambers Remedial Contractors Limited,623116,18167,15/02/2023,6574.86,0,CX4002,Disabled Facilities Grants,6501,Contract Payments,Capital - Adult Social Care
Blackpool Council,1011675,Bambers Remedial Contractors Limited,623117,18183,15/02/2023,6099.88,0,CX4002,Disabled Facilities Grants,6501,Contract Payments,Capital - Adult Social Care
Blackpool Council,1011675,Bambers Remedial Contractors Limited,623119,18204,15/02/2023,1254,209,CXAAA,Local Authority Dwellings,6501,Contract Payments,Capital - Chief Executive
Blackpool Council,1011675,Bambers Remedial Contractors Limited,623120,18221,15/02/2023,975,0,CXAAA,Local Authority Dwellings,6501,Contract Payments,Capital - Chief Executive
Blackpool Council,1011675,Bambers Remedial Contractors Limited,623121,18229,15/02/2023,8353.72,1392.29,CXAAA,Local Authority Dwellings,6501,Contract Payments,Capital - Chief Executive
Blackpool Council,1006460,Closomat Limited,623122,SI-105954,15/02/2023,3668,0,CX4002,Disabled Facilities Grants,6501,Contract Payments,Capital - Adult Social Care
Blackpool Council,1026811,Stannah Lift Services Ltd,623123,1085512292,22/02/2023,600,100,MVA,18-64,5401,Aids To Daily Living,Adult & Families
Blackpool Council,1112303,Access-Able (Uk) Limited (Fac001),623124,5436,24/02/2023,1480,0,CX4002,Disabled Facilities Grants,6501,Contract Payments,Capital - Adult Social Care
Blackpool Council,1011675,Bambers Remedial Contractors Limited,623125,18222,15/02/2023,9147.73,0,CX4002,Disabled Facilities Grants,6501,Contract Payments,Capital - Adult Social Care
Blackpool Council,1026811,Stannah Lift Services Ltd,623126,1085512883,24/02/2023,6513,0,CX4002,Disabled Facilities Grants,6501,Contract Payments,Capital - Adult Social Care
Blackpool Council,1026811,Stannah Lift Services Ltd,623127,1085512886,24/02/2023,5596,0,CX4002,Disabled Facilities Grants,6501,Contract Payments,Capital - Adult Social Care
Blackpool Council,1020550,Hays Specialist Recruitment Ltd,623128,1012750950,10/02/2023,828,138,HJA,Growth,0791,Temp/Relief (Bureau Staff),Places
Blackpool Council,1020550,Hays Specialist Recruitment Ltd,623129,1012755656,13/02/2023,1979.15,329.86,HJA,Growth,0791,Temp/Relief (Bureau Staff),Places
Blackpool Council,1138113,REDACTED PERSONAL DATA,623132,287712,08/02/2023,7200,1200,LM0420,Adults Training,0911,Training Expenses,Adult & Families
Blackpool Council,1034533,Richmond Fellowship,623133,CUSTINV-00154311,08/02/2023,13049.5,0,MFABK,Other Services,4512,Other Care Block Payments,Adult & Families
Blackpool Council,1011952,Empowerment,623135,2491,08/02/2023,42023.75,0,DOMABU,Domestic Abuse,3801,Other Expenses,Children'S Services
Blackpool Council,1092200,Aiming Higher,623136,010683,08/02/2023,2361.08,0,JAB,Locality,5101,Transfer Payments - General,Children'S Services
Blackpool Council,1011675,Bambers Remedial Contractors Limited,623137,18166,15/02/2023,8133.46,0,CX4002,Disabled Facilities Grants,6501,Contract Payments,Capital - Adult Social Care
Blackpool Council,1007535,Pip (Play Inclusion Project),623138,BSB423,08/02/2023,14661.13,0,JAB,Locality,3801,Other Expenses,Children'S Services
Blackpool Council,1011675,Bambers Remedial Contractors Limited,623139,18170,15/02/2023,8112.72,0,CX4002,Disabled Facilities Grants,6501,Contract Payments,Capital - Adult Social Care
Blackpool Council,1011675,Bambers Remedial Contractors Limited,623141,18173,15/02/2023,9307.71,0,CX4002,Disabled Facilities Grants,6501,Contract Payments,Capital - Adult Social Care
Blackpool Council,1011675,Bambers Remedial Contractors Limited,623143,18174,15/02/2023,6779.25,0,CX4002,Disabled Facilities Grants,6501,Contract Payments,Capital - Adult Social Care
Blackpool Council,1105476,Blackpool & Fylde  Alternative School Ltd,623144,INV-0339,08/02/2023,5590.8,931.8,OTHL,Other Learning,5555,Educational Support,Children'S Services
Blackpool Council,1138073,Swk Consultancy And Training Ltd,623146,00017,13/02/2023,1500,0,ALEARN,Adult Learning,3426,Course Fees,Places
Blackpool Council,1005071,Blackpool Transport Services Limited,623148,I0004532,17/02/2023,1810,0,PVA,Other External Funding,2301,Bus & Tram Fares,Places
Blackpool Council,1104384,Blackpool Aspire Academy,623149,7000000207,08/02/2023,20000,0,OTHL,Other Learning,6273,Miscellaneous,Children'S Services
Blackpool Council,1011675,Bambers Remedial Contractors Limited,623150,18164,15/02/2023,6996.07,0,CX4002,Disabled Facilities Grants,6501,Contract Payments,Capital - Adult Social Care
Blackpool Council,1011675,Bambers Remedial Contractors Limited,623151,18182,15/02/2023,9456.28,1576.05,CXAAA,Local Authority Dwellings,6501,Contract Payments,Capital - Chief Executive
Blackpool Council,1011675,Bambers Remedial Contractors Limited,623152,18184,15/02/2023,6575.4,0,CX4002,Disabled Facilities Grants,6501,Contract Payments,Capital - Adult Social Care
Blackpool Council,1011675,Bambers Remedial Contractors Limited,623153,18185,15/02/2023,9451.62,1575.27,CXAAA,Local Authority Dwellings,6501,Contract Payments,Capital - Chief Executive
Blackpool Council,1011675,Bambers Remedial Contractors Limited,623154,18186,15/02/2023,4728.9,0,CX4002,Disabled Facilities Grants,6501,Contract Payments,Capital - Adult Social Care
Blackpool Council,1011675,Bambers Remedial Contractors Limited,623155,18187,15/02/2023,12782.59,0,CX4002,Disabled Facilities Grants,6501,Contract Payments,Capital - Adult Social Care
Blackpool Council,1011675,Bambers Remedial Contractors Limited,623157,18208,15/02/2023,1475.1,245.85,CXAAA,Local Authority Dwellings,6501,Contract Payments,Capital - Chief Executive
Blackpool Council,1026811,Stannah Lift Services Ltd,623158,1085510783,20/02/2023,2986,0,CX4002,Disabled Facilities Grants,6501,Contract Payments,Capital - Adult Social Care
Blackpool Council,1027465,Ove Arup & Partners Limited,623161,88-2214025,10/02/2023,1578.6,263.1,FMAK,Acquisitions 9/10,2002,Repairs And Maintenance,Places
Blackpool Council,1102016,Critiqom Limited,623167,083175,08/02/2023,1920.24,320.04,FBBEA,"Income, Recovery & Debtors",3302,Stationery,Resources
Blackpool Council,1121796,Smart Tech Security,623168,10181,10/02/2023,1440,240,FMAK,Acquisitions 9/10,2002,Repairs And Maintenance,Places
Blackpool Council,1121796,Smart Tech Security,623169,10186,10/02/2023,960,160,FMAK,Acquisitions 9/10,2002,Repairs And Maintenance,Places
Blackpool Council,1121796,Smart Tech Security,623170,10187,14/02/2023,720,120,FMAK,Acquisitions 9/10,2002,Repairs And Maintenance,Places
Blackpool Council,1118699,Enveco Blackpool Waste Services Ltd,623171,30178442,08/02/2023,6383.38,1063.9,PYLA,Licencing,3424,Registration & Inspection,Community & Env Services
Blackpool Council,1091329,Pentagull Limited,623172,20683,10/02/2023,7800,1300,FGAA,Ict Corporate Services,3532,Comp-Running & License Costs,Resources
Blackpool Council,1010138,C Cabs,623173,09813,13/02/2023,1200,0,TRCHIL,Integrated Transport Children,2201,Contract Hire,Community & Env Services
Blackpool Council,1010138,C Cabs,623174,09808,13/02/2023,1394,0,TRCHIL,Integrated Transport Children,2201,Contract Hire,Community & Env Services
Blackpool Council,1010138,C Cabs,623175,09809,13/02/2023,1114,0,TRCHIL,Integrated Transport Children,2201,Contract Hire,Community & Env Services
Blackpool Council,1010138,C Cabs,623176,09799,13/02/2023,2688,0,JEA,Senior Management,2201,Contract Hire,Children'S Services
Blackpool Council,1010138,C Cabs,623177,09800,13/02/2023,975,0,TRCHIL,Integrated Transport Children,2201,Contract Hire,Community & Env Services
Blackpool Council,1010138,C Cabs,623178,09802,13/02/2023,2580,0,TRADUL,Intergrated Transport Adults,2201,Contract Hire,Community & Env Services
Blackpool Council,1010138,C Cabs,623179,09803,13/02/2023,600,0,TRADUL,Intergrated Transport Adults,2201,Contract Hire,Community & Env Services
Blackpool Council,1010138,C Cabs,623180,09804,13/02/2023,1122,0,TRCHIL,Integrated Transport Children,2201,Contract Hire,Community & Env Services
Blackpool Council,1010138,C Cabs,623181,09805,13/02/2023,390,0,TRCHIL,Integrated Transport Children,2201,Contract Hire,Community & Env Services
Blackpool Council,1010138,C Cabs,623182,09806,13/02/2023,1232,0,TRCHIL,Integrated Transport Children,2201,Contract Hire,Community & Env Services
Blackpool Council,1010138,C Cabs,623183,09807,13/02/2023,1380,0,TRCHIL,Integrated Transport Children,2201,Contract Hire,Community & Env Services
Blackpool Council,1010138,C Cabs,623184,09787,13/02/2023,1200,0,TRCHIL,Integrated Transport Children,2201,Contract Hire,Community & Env Services
Blackpool Council,1010138,C Cabs,623185,09788,16/02/2023,1500,0,TRCHIL,Integrated Transport Children,2201,Contract Hire,Community & Env Services
Blackpool Council,1010138,C Cabs,623186,09789,13/02/2023,964.8,0,TRCHIL,Integrated Transport Children,2201,Contract Hire,Community & Env Services
Blackpool Council,1010138,C Cabs,623187,09790,13/02/2023,1260,0,JEA,Senior Management,2201,Contract Hire,Children'S Services
Blackpool Council,1010138,C Cabs,623188,09791,21/02/2023,875,0,TRCHIL,Integrated Transport Children,2201,Contract Hire,Community & Env Services
Blackpool Council,1010138,C Cabs,623189,09792,13/02/2023,1320,0,TRADUL,Intergrated Transport Adults,2201,Contract Hire,Community & Env Services
Blackpool Council,1010138,C Cabs,623190,09793,13/02/2023,1575,0,TRADUL,Intergrated Transport Adults,2201,Contract Hire,Community & Env Services
Blackpool Council,1010138,C Cabs,623191,09794,13/02/2023,1400,0,TRCHIL,Integrated Transport Children,2201,Contract Hire,Community & Env Services
Blackpool Council,1010138,C Cabs,623192,09795,13/02/2023,1170,0,TRCHIL,Integrated Transport Children,2201,Contract Hire,Community & Env Services
Blackpool Council,1010138,C Cabs,623193,09796,21/02/2023,1110,0,TRADUL,Intergrated Transport Adults,2201,Contract Hire,Community & Env Services
Blackpool Council,1010138,C Cabs,623195,09798,13/02/2023,1520,0,TRADUL,Intergrated Transport Adults,2201,Contract Hire,Community & Env Services
Blackpool Council,1010138,C Cabs,623196,09801,21/02/2023,800,0,TRCHIL,Integrated Transport Children,2201,Contract Hire,Community & Env Services
Blackpool Council,1027465,Ove Arup & Partners Limited,623202,88-2214026,10/02/2023,4586.16,764.36,FMAK,Acquisitions 9/10,2002,Repairs And Maintenance,Places
Blackpool Council,1027465,Ove Arup & Partners Limited,623203,88-2214527,10/02/2023,29479.22,4913.2,FMAK,Acquisitions 9/10,2002,Repairs And Maintenance,Places
Blackpool Council,1027465,Ove Arup & Partners Limited,623204,88-2214024,10/02/2023,4554.62,759.1,FMAK,Acquisitions 9/10,2002,Repairs And Maintenance,Places
Blackpool Council,1015228,Virgin Media Payments Limited,623205,806981-241,16/02/2023,379.27,63.21,FGAA,Ict Corporate Services,3521,Landline - Line Rental,Resources
Blackpool Council,1006644,Telewest/Virgin Media Payments Ltd,623206,083284501/001/0223,09/02/2023,793.65,132.27,FGAA,Ict Corporate Services,3521,Landline - Line Rental,Resources
Blackpool Council,1101576,Johnson Health Tech Uk Ltd,623207,9502766399,08/02/2023,2910.65,485.11,LEISUR,Leisure Management,3801,Other Expenses,Community & Env Services
Blackpool Council,1008525,Kingswood Office Supplies Limited,623218,452386,17/02/2023,307.78,51.3,LBF,Library Management,3302,Stationery,Places
Blackpool Council,1111248,Nottingham City Council,623224,855083503,09/02/2023,10102.8,1683.8,PRKDEV,Parks Development,1021,Growing,Community & Env Services
Blackpool Council,1118699,Enveco Blackpool Waste Services Ltd,623231,30178425,08/02/2023,804.12,134.02,DOMPFI,Domestic Waste & Waste Pfi,2002,Repairs And Maintenance,Community & Env Services
Blackpool Council,1118699,Enveco Blackpool Waste Services Ltd,623231,30178425,08/02/2023,1386.17,231.03,DOMPFI,Domestic Waste & Waste Pfi,2004,Running Costs-Diesel,Community & Env Services
Blackpool Council,1099512,Dga (Uk) Ltd,623233,SIN230417,08/02/2023,2100,350,CP0511,Anchorsholme Seawall Scheme,6506,Consultants Fees,Capital - Comm & Environ
Blackpool Council,1137843,Enviromental Engineering Partnership T/A E3p,623236,103786,09/02/2023,15930,2655,CGIBAA,Land Release Fund,6514,B.Holes/Site Investgtn/Surveys,Capital - Commnctn & Regen
Blackpool Council,1137843,Enviromental Engineering Partnership T/A E3p,623236,103786,09/02/2023,4488,748,CGIBAA,Land Release Fund,6506,Consultants Fees,Capital - Commnctn & Regen
Blackpool Council,1137843,Enviromental Engineering Partnership T/A E3p,623236,103786,09/02/2023,3360,560,CGIBAA,Land Release Fund,6517,Equipment,Capital - Commnctn & Regen
Blackpool Council,1102016,Critiqom Limited,623237,083243,08/02/2023,728.96,121.49,FBBEA,"Income, Recovery & Debtors",3301,Printing,Resources
Blackpool Council,1028228,Danfo (Uk) Ltd,623238,0000006847,08/02/2023,51204.83,8534.14,PUBCON,Public Conveniences,4501,Private Contractors,Community & Env Services
Blackpool Council,1028228,Danfo (Uk) Ltd,623239,0000006916,08/02/2023,51204.83,8534.14,PUBCON,Public Conveniences,4501,Private Contractors,Community & Env Services
Blackpool Council,1118699,Enveco Blackpool Waste Services Ltd,623240,30178428,08/02/2023,328.8,54.8,CCTV,Cctv,2002,Repairs And Maintenance,Community & Env Services
Blackpool Council,1005071,Blackpool Transport Services Limited,623241,I0004535,17/02/2023,3723.6,0,JEA,Senior Management,5552,Bus Pass / Travel,Children'S Services
Blackpool Council,1053261,Ad Systems (Uk) Limited,623242,INV-11238,13/02/2023,2787.66,464.61,CCTV,Cctv,3401,General Services,Community & Env Services
Blackpool Council,1049385,Fylde Coast Ymca,623243,80001336,17/02/2023,3552,592,FK0071,Corporate Training,3426,Course Fees,Chief Executive
Blackpool Council,1118699,Enveco Blackpool Waste Services Ltd,623244,30178436,09/02/2023,484.76,80.79,APCBBE,Extra Support,6273,Miscellaneous,Adult & Families
Blackpool Council,1074572,Gl Assessment,623245,SINV00392140,13/02/2023,67548.67,11258.11,OTHL,Other Learning,3401,General Services,Children'S Services
Blackpool Council,1026738,Cassidy + Ashton Group Limited,623248,19425,09/02/2023,10800,1800,CGICAG,Town Deal,6503,Capital Salaries (Pro Advance),Capital - Commnctn & Regen
Blackpool Council,1026738,Cassidy + Ashton Group Limited,623249,19727,09/02/2023,8400,1400,CXC11,Site Development,6503,Capital Salaries (Pro Advance),Capital - Chief Executive
Blackpool Council,1004963,F Parkinson Ltd,623251,10615,08/02/2023,97779.2,16296.53,CGICAF,G&P Prudential Schemes,6501,Contract Payments,Capital - Commnctn & Regen
Blackpool Council,1004963,F Parkinson Ltd,623251,10615,08/02/2023,32994.58,0,ZF0001,"Insurance,Dso,Banking",97A6,Retention Monies - Capital,Total Reconciliations
Blackpool Council,1010386,Fcat T/A Montgomery Academy,623313,3000000216,14/02/2023,8640,0,EP8011,Covid Winter Grant,3701,Grants,Children'S Services
Blackpool Council,1134332,Epe Reynell Advertising Limited,623314,INV_420328,09/02/2023,906.98,151.16,PLBAAA,Development Control,3806,Advertising-General,Places
Blackpool Council,1134332,Epe Reynell Advertising Limited,623315,INV_419905,09/02/2023,316.08,52.68,PLBAAA,Development Control,3806,Advertising-General,Places
Blackpool Council,1103450,Blackpool Entertainment Company Limited,623317,INV006365,09/02/2023,542.64,90.44,MNGMT,Central Management,3108,Refreshments - Mtgs @ Prog,Children'S Services
Blackpool Council,1049385,Fylde Coast Ymca,623324,80001291,09/02/2023,935,0,EDDIV,Education Diversity,3303,Games/Visits,Children'S Services
Blackpool Council,1137198,Hafs (Lancs) Ltd,623327,20230016,10/02/2023,11682,1947,LIFEVE,Life Events Reg & Care,3801,Other Expenses,Governance & Partnerships
Blackpool Council,1102016,Critiqom Limited,623330,083241,09/02/2023,3017.39,502.9,FBBEA,"Income, Recovery & Debtors",3301,Printing,Resources
Blackpool Council,1102016,Critiqom Limited,623331,083242,09/02/2023,12667.68,2111.28,FBBEA,"Income, Recovery & Debtors",3511,Postages,Resources
Blackpool Council,1135431,Interference-Art,623333,539,21/02/2023,670,0,AHHBA,Blackpool Museum,3801,Other Expenses,Places
Blackpool Council,1135431,Interference-Art,623334,540,21/02/2023,1650,0,AHHBA,Blackpool Museum,3801,Other Expenses,Places
Blackpool Council,1118699,Enveco Blackpool Waste Services Ltd,623337,30178429,17/02/2023,4130.79,688.46,CEMCRE,Cems Crems Etc,3801,Other Expenses,Governance & Partnerships
Blackpool Council,1006644,Telewest/Virgin Media Payments Ltd,623338,083284501/001/0123,09/02/2023,1601.29,266.88,FGAA,Ict Corporate Services,3521,Landline - Line Rental,Resources
Blackpool Council,1114704,Morson Human Resources Ltd,623347,HS478240,15/02/2023,2310,385,CTAHHI,Tramway Extention,6506,Consultants Fees,Capital - Commnctn & Regen
Blackpool Council,1014009,Bri-Met Ltd,623353,54089,09/02/2023,117186.98,18710.53,FMAK,Acquisitions 9/10,2002,Repairs And Maintenance,Places
Blackpool Council,1129566,Phronetix Ltd,623358,2223/BCPH/10,13/02/2023,4800,0,PU0111,Contain Outbreak Mgmnt Covid,4501,Private Contractors,Public Health
Blackpool Council,1011269,Fylde Council,623361,73292987,17/02/2023,422.4,70.4,FCACA,Benefits - Admin,3807,Legal & Court Costs,Resources
Blackpool Council,1011269,Fylde Council,623361,73292987,17/02/2023,372.91,0,FCACA,Benefits - Admin,3511,Postages,Resources
Blackpool Council,1089774,Fcms (Nw) Ltd,623362,07082,13/02/2023,11252.25,0,PU2069,Changing Futures,4501,Private Contractors,Public Health
Blackpool Council,1044156,Pell Frischmann,623365,64020568,16/02/2023,3942.72,657.12,CTAHHI,Tramway Extention,6506,Consultants Fees,Capital - Commnctn & Regen
Blackpool Council,1044156,Pell Frischmann,623366,64025069,16/02/2023,2142.36,357.06,CGICAD,Enterprise Zone,6506,Consultants Fees,Capital - Commnctn & Regen
Blackpool Council,1021388,St Georges C Of E Academy,623367,SI-00085,10/02/2023,20000,0,OTHL,Other Learning,6273,Miscellaneous,Children'S Services
Blackpool Council,1129634,Av-Id,623373,257,10/02/2023,2148.89,358.15,LIFEVE,Life Events Reg & Care,3531,Computer-H'Ware Purchase,Governance & Partnerships
Blackpool Council,1114704,Morson Human Resources Ltd,623374,HS472829,10/02/2023,250.8,41.8,CTAHHI,Tramway Extention,6506,Consultants Fees,Capital - Commnctn & Regen
Blackpool Council,1118728,REDACTED PERSONAL DATA,623379,JAN2023,10/02/2023,7767.3,0,LIFEVE,Life Events Reg & Care,3801,Other Expenses,Governance & Partnerships
Blackpool Council,1118727,REDACTED PERSONAL DATA,623380,JAN/2023/DG,10/02/2023,1369.6,0,LIFEVE,Life Events Reg & Care,3801,Other Expenses,Governance & Partnerships
Blackpool Council,1136875,REDACTED PERSONAL DATA,623381,JAN/2023/SS,10/02/2023,2617,0,LIFEVE,Life Events Reg & Care,3801,Other Expenses,Governance & Partnerships
Blackpool Council,1134332,Epe Reynell Advertising Limited,623382,INV_420327,10/02/2023,580.37,96.73,PLBAAA,Development Control,3806,Advertising-General,Places
Blackpool Council,1118730,REDACTED PERSONAL DATA,623383,2023/1/1,10/02/2023,1661.6,0,LIFEVE,Life Events Reg & Care,3801,Other Expenses,Governance & Partnerships
Blackpool Council,1009019,Highfield Surgery,623384,LZCM/00000084,10/02/2023,462,0,PUBH02,Sexual Health Services-Contrac,4501,Private Contractors,Public Health
Blackpool Council,1046253,The Partners At Newton Drive Health Centre,623385,LYWV/00000074,10/02/2023,329.68,0,PUBH02,Sexual Health Services-Contrac,4501,Private Contractors,Public Health
Blackpool Council,1084725,Stonyhill Medical Practice,623387,LZLQ/00000112,10/02/2023,1594.1,0,PUBH02,Sexual Health Services-Contrac,4501,Private Contractors,Public Health
Blackpool Council,1137659,Toxicology Uk Ltd,623389,TOX0243,15/02/2023,1530,255,LIFEVE,Life Events Reg & Care,3801,Other Expenses,Governance & Partnerships
Blackpool Council,1134332,Epe Reynell Advertising Limited,623393,INV_420329,10/02/2023,580.37,96.73,PLBAAA,Development Control,3806,Advertising-General,Places
Blackpool Council,1135751,Sams Place Nw Ltd,623394,003,10/02/2023,952,0,EP8011,Covid Winter Grant,3801,Other Expenses,Children'S Services
Blackpool Council,1135751,Sams Place Nw Ltd,623394,003,10/02/2023,2085,0,EP8011,Covid Winter Grant,4501,Private Contractors,Children'S Services
Blackpool Council,1114726,The Magic Club,623395,110123,16/02/2023,1633.5,0,PU2064,Holiday Activities & Food(Haf),4501,Private Contractors,Public Health
Blackpool Council,1099469,Blackpool Gateway Academy,623396,5000000104,10/02/2023,1117,0,EP8011,Covid Winter Grant,3801,Other Expenses,Children'S Services
Blackpool Council,1099469,Blackpool Gateway Academy,623396,5000000104,10/02/2023,800,0,EP8011,Covid Winter Grant,4501,Private Contractors,Children'S Services
Blackpool Council,1009260,G S Brown,623398,10264,16/02/2023,1360,0,TRADUL,Intergrated Transport Adults,2201,Contract Hire,Community & Env Services
Blackpool Council,1009260,G S Brown,623399,10265,16/02/2023,1240,0,TRCHIL,Integrated Transport Children,2201,Contract Hire,Community & Env Services
Blackpool Council,1009177,Dr S A Shearer & Partners-Glenroyd Medical,623403,LYVW/00000103,15/02/2023,797.1,0,PUBH02,Sexual Health Services-Contrac,4501,Private Contractors,Public Health
Blackpool Council,1011675,Bambers Remedial Contractors Limited,623454,18168,15/02/2023,7112.14,0,CX4002,Disabled Facilities Grants,6501,Contract Payments,Capital - Adult Social Care
Blackpool Council,1011675,Bambers Remedial Contractors Limited,623455,18169,15/02/2023,6293.41,0,CX4002,Disabled Facilities Grants,6501,Contract Payments,Capital - Adult Social Care
Blackpool Council,1102016,Critiqom Limited,623456,083244,10/02/2023,3601.9,600.31,FBBEA,"Income, Recovery & Debtors",3511,Postages,Resources
Blackpool Council,1098293,Dy Property Services Ltd,623459,IV00667 CIS ADJUSTMENT,10/02/2023,411.66,0,HOPB,Housing Options,1301,Rent & Hire Of Premises,Chief Executive
Blackpool Council,1017752,Aqa Education Ltd,623462,46408,22/02/2023,2399.7,0,EDDIV,Education Diversity,3404,Exam Fees & Exps (Sch),Children'S Services
Blackpool Council,1010138,C Cabs,623463,09777,10/02/2023,914.2,0,EDDIV,Education Diversity,2201,Contract Hire,Children'S Services
Blackpool Council,1010138,C Cabs,623464,09778,10/02/2023,579.1,0,EDDIV,Education Diversity,2201,Contract Hire,Children'S Services
Blackpool Council,1069980,Aldi Stores Limited,623466,IN19651,10/02/2023,500,0,EP8011,Covid Winter Grant,4501,Private Contractors,Children'S Services
Blackpool Council,1099703,The Sea View Trust - Anchorsholme Academy,623469,APASI76,10/02/2023,2140,0,EP8011,Covid Winter Grant,3701,Grants,Children'S Services
Blackpool Council,1103931,Jobs Friends & Houses Cic,623470,0008,23/02/2023,2399.52,0,EP8011,Covid Winter Grant,4501,Private Contractors,Children'S Services
Blackpool Council,1017261,De Vere Village Trading No1 Limited,623471,VBL01/132225,21/02/2023,5600,933.33,CWAN,Children With Additional Needs,0915,Conferences,Children'S Services
Blackpool Council,1117705,Rhea Projects Ltd,623472,RP-1710,10/02/2023,12878.25,613.25,LH2096,Affordable Warmth  Wait List,4501,Private Contractors,Public Health
Blackpool Council,1008525,Kingswood Office Supplies Limited,623475,452643,17/02/2023,364.8,60.8,LEISUR,Leisure Management,3801,Other Expenses,Community & Env Services
Blackpool Council,1008525,Kingswood Office Supplies Limited,623476,452663,17/02/2023,364.8,60.8,LEISUR,Leisure Management,3801,Other Expenses,Community & Env Services
Blackpool Council,1106288,Blackpool Housing Company Ltd,623480,BATESJEN,15/02/2023,500,0,HOPB,Housing Options,1301,Rent & Hire Of Premises,Chief Executive
Blackpool Council,1106288,Blackpool Housing Company Ltd,623481,WILSONJO,21/02/2023,400,0,HOPB,Housing Options,1301,Rent & Hire Of Premises,Chief Executive
Blackpool Council,1105146,REDACTED PERSONAL DATA,623487,H022-67,10/02/2023,556.9,0,LIFEVE,Life Events Reg & Care,3801,Other Expenses,Governance & Partnerships
Blackpool Council,1105146,REDACTED PERSONAL DATA,623488,H022-64,10/02/2023,276.9,0,LIFEVE,Life Events Reg & Care,3801,Other Expenses,Governance & Partnerships
Blackpool Council,1096486,Roseacre Primary Academy,623489,RPASI48,10/02/2023,3033,0,CWAN,Children With Additional Needs,6273,Miscellaneous,Children'S Services
Blackpool Council,1103445,Blackpool Carers Centre Trading Co Ltd,623492,455,13/02/2023,400,0,CORDEV,Corporate Delivery Unit,3801,Other Expenses,Chief Executive
Blackpool Council,1044894,Avison Young (Uk) Ltd,623496,2152850,13/02/2023,7906.5,1317.75,CGICAG,Town Deal,6506,Consultants Fees,Capital - Commnctn & Regen
Blackpool Council,1033914,Alder Hey Children'S Nhs Foundation Trust,623498,9110042800,10/02/2023,8396.22,316.8,LIFEVE,Life Events Reg & Care,3801,Other Expenses,Governance & Partnerships
Blackpool Council,1026319,Nominet.Uk,623499,0000004953,13/02/2023,919.13,153.19,FGAA,Ict Corporate Services,3527,Communication Lines,Resources
Blackpool Council,1118699,Enveco Blackpool Waste Services Ltd,623503,30178725,10/02/2023,323458.8,53909.8,DOMPFI,Domestic Waste & Waste Pfi,4501,Private Contractors,Community & Env Services
Blackpool Council,1118699,Enveco Blackpool Waste Services Ltd,623504,30178726,10/02/2023,660000,110000,SCLEAN,Street Cleaning,4501,Private Contractors,Community & Env Services
Blackpool Council,1117705,Rhea Projects Ltd,623505,RP-1693,10/02/2023,44955.75,2140.75,LH2096,Affordable Warmth  Wait List,4501,Private Contractors,Public Health
Blackpool Council,1104384,Blackpool Aspire Academy,623509,7000000208,10/02/2023,20222.25,0,CEANED,New Pupil Plcs - Prmry 2017-18,6501,Contract Payments,Capital - Childrens
Blackpool Council,1014009,Bri-Met Ltd,623512,54102,10/02/2023,181883.65,29040.25,FMAK,Acquisitions 9/10,2002,Repairs And Maintenance,Places
Blackpool Council,1032151,Holgate House Ltd,623513,7532,16/02/2023,2360.45,0,PU1016,Universal Grant Funding,4501,Private Contractors,Public Health
Blackpool Council,1040364,Conlon Construction Ltd,623516,11292,10/02/2023,295662.56,49277.09,CGTACA,Museum,6501,Contract Payments,Capital - Commnctn & Regen
Blackpool Council,1040364,Conlon Construction Ltd,623516,11292,10/02/2023,7620.17,0,ZF0001,"Insurance,Dso,Banking",97B6,Retention Monies - Cap Trsfr,Total Reconciliations
Blackpool Council,1133538,REDACTED PERSONAL DATA,623517,0931992,13/02/2023,300,0,PJHA,"Depot, Management & Admin",3308,Servicing,Places
Blackpool Council,1061118,Twofold Ltd,623521,10228,13/02/2023,5210.64,868.44,BGA,Electoral Services,3801,Other Expenses,Governance & Partnerships
Blackpool Council,1106685,War Productions Limited,623522,4811,21/02/2023,12780,2130,PJNB,Lightpool,3006,Hire Of Equipment,Places
Blackpool Council,1096596,Highfield Pfi Spv Ltd,623627,PHSIP000044,14/02/2023,417326.22,69554.37,EM1029,Highfield Pfi,4701,Other Contracted Services,Children'S Services
Blackpool Council,1093145,On A Roll Sandwich Company,623639,259345,15/02/2023,288.47,0,CATERG,Catering Services,3101,Provisions,Community & Env Services
Blackpool Council,1093145,On A Roll Sandwich Company,623640,259627,15/02/2023,379.5,0,CATERG,Catering Services,3101,Provisions,Community & Env Services
Blackpool Council,1093145,On A Roll Sandwich Company,623641,259738,15/02/2023,409.25,0,CATERG,Catering Services,3101,Provisions,Community & Env Services
Blackpool Council,1093145,On A Roll Sandwich Company,623642,259799,15/02/2023,329,0,CATERG,Catering Services,3101,Provisions,Community & Env Services
Blackpool Council,1093145,On A Roll Sandwich Company,623643,259843,15/02/2023,329,0,CATERG,Catering Services,3101,Provisions,Community & Env Services
Blackpool Council,1093145,On A Roll Sandwich Company,623645,260011,16/02/2023,260.4,0,CATERG,Catering Services,3101,Provisions,Community & Env Services
Blackpool Council,1093145,On A Roll Sandwich Company,623646,260272,15/02/2023,385.7,0,CATERG,Catering Services,3101,Provisions,Community & Env Services
Blackpool Council,1093145,On A Roll Sandwich Company,623647,260319,15/02/2023,329.7,0,CATERG,Catering Services,3101,Provisions,Community & Env Services
Blackpool Council,1093145,On A Roll Sandwich Company,623648,260360,15/02/2023,414.95,0,CATERG,Catering Services,3101,Provisions,Community & Env Services
Blackpool Council,1093145,On A Roll Sandwich Company,623649,260409,15/02/2023,331.05,0,CATERG,Catering Services,3101,Provisions,Community & Env Services
Blackpool Council,1093145,On A Roll Sandwich Company,623650,260455,15/02/2023,331.05,0,CATERG,Catering Services,3101,Provisions,Community & Env Services
Blackpool Council,1108651,Coolsilk Property& Investment Ltd,623660,1614,13/02/2023,615.3,102.55,AHHBA,Blackpool Museum,3801,Other Expenses,Places
Blackpool Council,1007385,R S Components Ltd,623666,2209436994,21/02/2023,480.9,80.15,PJHA,"Depot, Management & Admin",3041,Other Materials,Places
Blackpool Council,1117428,Anthony Collins Solicitors Llp,623670,4135520,15/02/2023,943.8,157.3,AHHBA,Blackpool Museum,3807,Legal & Court Costs,Places
Blackpool Council,1118699,Enveco Blackpool Waste Services Ltd,623674,30178865,20/02/2023,360,60,EP8011,Covid Winter Grant,3901,Contributions To Funds,Children'S Services
Blackpool Council,1069760,W Robinson (Bils) Ltd,623677,88056,20/02/2023,1561.14,260.19,SCHEME,Highways Schemes,3041,Other Materials,Community & Env Services
Blackpool Council,1026811,Stannah Lift Services Ltd,623682,1085514004,28/02/2023,1753.68,292.28,MVA,18-64,5401,Aids To Daily Living,Adult & Families
Blackpool Council,1019175,Guardian News & Media Ltd,623683,1300339,20/02/2023,450,75,PBF,Communications,0921,Advertising (Staff Vac.),Places
Blackpool Council,1019175,Guardian News & Media Ltd,623685,1300344,20/02/2023,2223,370.5,PBF,Communications,0921,Advertising (Staff Vac.),Places
Blackpool Council,1013064,Tarmac Lafarge Trading Limited,623686,9046479307,17/02/2023,305.97,50.99,ENGINE,Engineering,3041,Other Materials,Community & Env Services
Blackpool Council,1013064,Tarmac Lafarge Trading Limited,623689,9046467606,17/02/2023,2574.92,429.15,ENGINE,Engineering,3041,Other Materials,Community & Env Services
Blackpool Council,1013064,Tarmac Lafarge Trading Limited,623690,9046473450,17/02/2023,363.14,60.52,ENGINE,Engineering,3041,Other Materials,Community & Env Services
Blackpool Council,1013064,Tarmac Lafarge Trading Limited,623691,9046442642,17/02/2023,1638.72,273.12,ENGINE,Engineering,3041,Other Materials,Community & Env Services
Blackpool Council,1013064,Tarmac Lafarge Trading Limited,623693,9046442641,17/02/2023,1113.28,185.54,ENGINE,Engineering,3041,Other Materials,Community & Env Services
Blackpool Council,1013064,Tarmac Lafarge Trading Limited,623695,9046425029,17/02/2023,360.12,60.02,ENGINE,Engineering,3041,Other Materials,Community & Env Services
Blackpool Council,1013064,Tarmac Lafarge Trading Limited,623696,9046431677,17/02/2023,2185.7,364.28,ENGINE,Engineering,3041,Other Materials,Community & Env Services
Blackpool Council,1006099,Blackpool Teaching Hospitals Nhs Ft,623730,1110063555,14/02/2023,27350,0,LIFEVE,Life Events Reg & Care,3801,Other Expenses,Governance & Partnerships
Blackpool Council,1006099,Blackpool Teaching Hospitals Nhs Ft,623732,1110063646,14/02/2023,23400,3900,PU2095,Rough Sleepers & At Risk,4501,Private Contractors,Public Health
Blackpool Council,1006099,Blackpool Teaching Hospitals Nhs Ft,623733,1110063645,14/02/2023,11562,1927,PU2069,Changing Futures,4501,Private Contractors,Public Health
Blackpool Council,1006099,Blackpool Teaching Hospitals Nhs Ft,623734,1110063644,14/02/2023,12300,2050,PU2063,Adder Project,4501,Private Contractors,Public Health
Blackpool Council,1006099,Blackpool Teaching Hospitals Nhs Ft,623735,1110063647,14/02/2023,15600,2600,PU2063,Adder Project,4501,Private Contractors,Public Health
Blackpool Council,1011714,Michael Hope Haulage Limited,623736,001610,14/02/2023,2304,384,SCHEME,Highways Schemes,1012,Premises Maint-Priv.Contractor,Community & Env Services
Blackpool Council,1011714,Michael Hope Haulage Limited,623737,001611,14/02/2023,2592,432,SCHEME,Highways Schemes,1012,Premises Maint-Priv.Contractor,Community & Env Services
Blackpool Council,1011714,Michael Hope Haulage Limited,623738,001612,14/02/2023,2304,384,SCHEME,Highways Schemes,1012,Premises Maint-Priv.Contractor,Community & Env Services
Blackpool Council,1011714,Michael Hope Haulage Limited,623739,001609,17/02/2023,2131.2,355.2,SCHEME,Highways Schemes,1012,Premises Maint-Priv.Contractor,Community & Env Services
Blackpool Council,1013064,Tarmac Lafarge Trading Limited,623750,9046442639,17/02/2023,481.11,80.18,ENGINE,Engineering,3041,Other Materials,Community & Env Services
Blackpool Council,1013064,Tarmac Lafarge Trading Limited,623751,9046442637,17/02/2023,2271.96,378.66,ENGINE,Engineering,3041,Other Materials,Community & Env Services
Blackpool Council,1138055,Seymour & Otto Ltd,623752,2302BC01,15/02/2023,1200,200,AHHBA,Blackpool Museum,3801,Other Expenses,Places
Blackpool Council,1006202,I Care Gb Limited,623779,BPLEX/0412E,15/02/2023,16301.97,0,MVBBE,Supported & Other Accommodatio,4512,Other Care Block Payments,Adult & Families
Blackpool Council,1006202,I Care Gb Limited,623780,BPLEX/0412T,15/02/2023,13543.32,0,MVBBE,Supported & Other Accommodatio,4512,Other Care Block Payments,Adult & Families
Blackpool Council,1006202,I Care Gb Limited,623781,BPLEX/2901,15/02/2023,16319.32,0,MVBBE,Supported & Other Accommodatio,4512,Other Care Block Payments,Adult & Families
Blackpool Council,1087253,Routes Healthcare North Limited,623782,020223,16/02/2023,3412.8,568.8,MTEBF,Home Care,4512,Other Care Block Payments,Adult & Families
Blackpool Council,1123472,Lancashire Care Ltd T/A Lastminute Nursing,623783,16213,16/02/2023,4374,0,MTEBF,Home Care,4512,Other Care Block Payments,Adult & Families
Blackpool Council,1006202,I Care Gb Limited,623784,BPLEX/2901,15/02/2023,13543.32,0,MVBBE,Supported & Other Accommodatio,4512,Other Care Block Payments,Adult & Families
Blackpool Council,1006202,I Care Gb Limited,623785,BPLEX/0101,15/02/2023,13508.62,0,MVBBE,Supported & Other Accommodatio,4512,Other Care Block Payments,Adult & Families
Blackpool Council,1053261,Ad Systems (Uk) Limited,623796,INV-11241,17/02/2023,655.92,109.32,CCTV,Cctv,3401,General Services,Community & Env Services
Blackpool Council,1018184,Blackpool Skip Hire Ltd,623799,046433,22/02/2023,1162.8,193.8,PJHA,"Depot, Management & Admin",3308,Servicing,Places
Blackpool Council,1066073,Blackpool Coastal Housing,623801,30002245,15/02/2023,3222,0,EP8011,Covid Winter Grant,3801,Other Expenses,Children'S Services
Blackpool Council,1066073,Blackpool Coastal Housing,623801,30002245,15/02/2023,19000,0,EP8011,Covid Winter Grant,4501,Private Contractors,Children'S Services
Blackpool Council,1066073,Blackpool Coastal Housing,623802,30002246,15/02/2023,8584,0,EP8011,Covid Winter Grant,3801,Other Expenses,Children'S Services
Blackpool Council,1066073,Blackpool Coastal Housing,623802,30002246,15/02/2023,7550,0,EP8011,Covid Winter Grant,4501,Private Contractors,Children'S Services
Blackpool Council,1066073,Blackpool Coastal Housing,623803,30002247,15/02/2023,2850,0,EP8011,Covid Winter Grant,4501,Private Contractors,Children'S Services
Blackpool Council,1066073,Blackpool Coastal Housing,623804,30002249,15/02/2023,2000,0,EP8011,Covid Winter Grant,3801,Other Expenses,Children'S Services
Blackpool Council,1016258,M J Teale Plant Hire Ltd,623805,002138,15/02/2023,529.92,88.32,SCHEME,Highways Schemes,3041,Other Materials,Community & Env Services
Blackpool Council,1118699,Enveco Blackpool Waste Services Ltd,623806,30178423,15/02/2023,303.07,50.51,BEACHP,Beach Patrol,2003,Running Costs-Petrol,Places
Blackpool Council,1006940,Smiths Equipment Hire Ltd - Smiths Training,623807,05-1129320,15/02/2023,389.09,64.85,ENGINE,Engineering,3041,Other Materials,Community & Env Services
Blackpool Council,1090902,Anderson & Sons Contracting & Turf Care,623808,268,17/02/2023,2772,462,TRB,Maintenance & Works,4501,Private Contractors,Community & Env Services
Blackpool Council,1013064,Tarmac Lafarge Trading Limited,623810,9046409572,17/02/2023,402.48,67.08,ENGINE,Engineering,3041,Other Materials,Community & Env Services
Blackpool Council,1117705,Rhea Projects Ltd,623813,LAD2-0345,15/02/2023,3268.49,544.75,LH2092,Lad 2 Funding,4501,Private Contractors,Public Health
Blackpool Council,1136668,Tc Estates Ltd T/A Stephen Tew Estate Agents,623815,PP2359,17/02/2023,1360,0,HOPB,Housing Options,4004,Management Fees,Chief Executive
Blackpool Council,1119890,Professional Development Group,623816,EF-G10013U6R,17/02/2023,382.8,63.8,VA0010,Vah Management & Admin,0915,Conferences,Children'S Services
Blackpool Council,1066073,Blackpool Coastal Housing,623817,30002248,15/02/2023,47900,0,EP8011,Covid Winter Grant,4501,Private Contractors,Children'S Services
Blackpool Council,1069760,W Robinson (Bils) Ltd,623821,86738,22/02/2023,1065.27,177.54,SCHEME,Highways Schemes,3041,Other Materials,Community & Env Services
Blackpool Council,1133870,Pauline Quirke Academy Of Performing Arts,623826,16345,23/02/2023,528,44,VIRTUL,Virtual Hub,6273,Miscellaneous,Children'S Services
Blackpool Council,1103450,Blackpool Entertainment Company Limited,623831,INV006680,15/02/2023,493.02,82.17,PUBH24,Children'S Public Health,4501,Private Contractors,Public Health
Blackpool Council,1118699,Enveco Blackpool Waste Services Ltd,623842,30178452,16/02/2023,1956.23,326.04,ENGINE,Engineering,2002,Repairs And Maintenance,Community & Env Services
Blackpool Council,1118699,Enveco Blackpool Waste Services Ltd,623842,30178452,16/02/2023,1236.31,206.05,ENGINE,Engineering,2004,Running Costs-Diesel,Community & Env Services
Blackpool Council,1118699,Enveco Blackpool Waste Services Ltd,623843,30178437,16/02/2023,421.55,70.26,ENGINE,Engineering,2002,Repairs And Maintenance,Community & Env Services
Blackpool Council,1118699,Enveco Blackpool Waste Services Ltd,623843,30178437,16/02/2023,1167.6,194.6,ENGINE,Engineering,2004,Running Costs-Diesel,Community & Env Services
Blackpool Council,1118699,Enveco Blackpool Waste Services Ltd,623844,30178439,16/02/2023,7791.1,1298.52,ENGINE,Engineering,2002,Repairs And Maintenance,Community & Env Services
Blackpool Council,1118699,Enveco Blackpool Waste Services Ltd,623844,30178439,16/02/2023,1807.68,301.28,ENGINE,Engineering,2004,Running Costs-Diesel,Community & Env Services
Blackpool Council,1103450,Blackpool Entertainment Company Limited,623852,INV006443,16/02/2023,327.6,54.6,JA0505,Children'S Training,3803,Hospitality,Children'S Services
Blackpool Council,1006099,Blackpool Teaching Hospitals Nhs Ft,623853,1110063752,21/02/2023,8434.18,401.63,PUBH18,Stop Smoking Services & Interv,4501,Private Contractors,Public Health
Blackpool Council,1011269,Fylde Council,623854,73292780,16/02/2023,7500,0,PU2069,Changing Futures,4501,Private Contractors,Public Health
Blackpool Council,1011269,Fylde Council,623855,73292777,16/02/2023,7500,0,PU2069,Changing Futures,4501,Private Contractors,Public Health
Blackpool Council,1071551,Business In The Community,623857,SIN059839,16/02/2023,30000,0,PBC,Strategy Team,3711,Subscriptions,Chief Executive
Blackpool Council,1117428,Anthony Collins Solicitors Llp,623858,4137097,28/02/2023,1878.6,313.1,PAAA,C.E. Management,0917,Other Exps,Chief Executive
Blackpool Council,1112283,Layton Community House,623860,190,16/02/2023,393,0,EP8011,Covid Winter Grant,3801,Other Expenses,Children'S Services
Blackpool Council,1112283,Layton Community House,623860,190,16/02/2023,9600,0,EP8011,Covid Winter Grant,4501,Private Contractors,Children'S Services
Blackpool Council,1078639,National Crime Agency,623861,SI\028354,16/02/2023,290,0,PYAA,Head Of Environmental Health,3313,General Expenses,Community & Env Services
Blackpool Council,1020550,Hays Specialist Recruitment Ltd,623862,1012776869,27/02/2023,828,138,HJA,Growth,0791,Temp/Relief (Bureau Staff),Places
Blackpool Council,1126568,Talking Menopause,623863,1408,16/02/2023,2394,399,FK0071,Corporate Training,0911,Training Expenses,Chief Executive
Blackpool Council,1020550,Hays Specialist Recruitment Ltd,623864,1012776085,27/02/2023,1979.15,329.86,HJA,Growth,0791,Temp/Relief (Bureau Staff),Places
Blackpool Council,1020550,Hays Specialist Recruitment Ltd,623865,1012784230,27/02/2023,1035,172.5,HJA,Growth,0791,Temp/Relief (Bureau Staff),Places
Blackpool Council,1010338,Blackpool Boys And Girls Club,623870,009008,24/02/2023,10498,0,EP8011,Covid Winter Grant,4501,Private Contractors,Children'S Services
Blackpool Council,1087549,Merlin Entertainments (Blackpool) Ltd,623871,INV13026-00025568,17/02/2023,1800,300,PESPRT,Pe And Sport Team,1301,Rent & Hire Of Premises,Community & Env Services
Blackpool Council,1117002,Redraw Travel Ltd T/A Blackpool Minibuses,623872,INV36247M,17/02/2023,340,0,PESPRT,Pe And Sport Team,4810,Transport Costs,Community & Env Services
Blackpool Council,1074052,Brent Stevenson Memorials Ltd,623873,24954,24/02/2023,313.74,52.29,CEMCRE,Cems Crems Etc,3454,Remove And Refix Memorials,Governance & Partnerships
Blackpool Council,1128374,Tower Cinema (Blackpool) Ltd,623874,INV-0017,27/02/2023,293512.49,0,CGICAF,G&P Prudential Schemes,6501,Contract Payments,Capital - Commnctn & Regen
Blackpool Council,1128374,Tower Cinema (Blackpool) Ltd,623875,INV-0018,27/02/2023,99113.9,0,CGICAF,G&P Prudential Schemes,6501,Contract Payments,Capital - Commnctn & Regen
Blackpool Council,1120026,South Shore Community Partnership Ltd,623878,0272,16/02/2023,8850,0,EP8011,Covid Winter Grant,4501,Private Contractors,Children'S Services
Blackpool Council,1107816,Fitronics Ltd T/A The Retention People,623879,SUP3514,16/02/2023,9430.84,1571.8,LEISUR,Leisure Management,3801,Other Expenses,Community & Env Services
Blackpool Council,1138055,Seymour & Otto Ltd,623881,2302BC01.,15/02/2023,1200,200,AHHBA,Blackpool Museum,3801,Other Expenses,Places
Blackpool Council,1114726,The Magic Club,623883,140223,24/02/2023,400,0,EP8011,Covid Winter Grant,3801,Other Expenses,Children'S Services
Blackpool Council,1114726,The Magic Club,623883,140223,24/02/2023,4000,0,EP8011,Covid Winter Grant,4501,Private Contractors,Children'S Services
Blackpool Council,1008540,Konica Minolta Business (Uk) Ltd,623886,1163237354,16/02/2023,281.52,46.92,FGBA,Specific (Directorate)-Service,3305,Photocopying Charges,Resources
Blackpool Council,1008540,Konica Minolta Business (Uk) Ltd,623889,1163029053,16/02/2023,1659.06,276.51,FGBA,Specific (Directorate)-Service,3305,Photocopying Charges,Resources
Blackpool Council,1008540,Konica Minolta Business (Uk) Ltd,623892,1162954445,16/02/2023,1808.68,301.45,FGBA,Specific (Directorate)-Service,3305,Photocopying Charges,Resources
Blackpool Council,1027246,Active Lancashire Ltd,623897,1692,17/02/2023,2262,377,PESPRT,Pe And Sport Team,0I91,Other,Community & Env Services
Blackpool Council,1099262,Nhs Blackpool & Nhs Lancs & South Cumbria Icb,623898,7440000405,22/02/2023,717289,0,LM9027,Bcf Control,5101,Transfer Payments - General,Bcf General And Control
Blackpool Council,1118699,Enveco Blackpool Waste Services Ltd,623900,30178453,16/02/2023,892.74,148.79,APFBAB,Vitaline,2005,Running Costs-Other Fuel,Adult & Families
Blackpool Council,1136422,Marquis West Ltd,623902,ML017,16/02/2023,385.32,0,HOPB,Housing Options,1301,Rent & Hire Of Premises,Chief Executive
Blackpool Council,1123252,Outdoor Lighting Solutions,623910,OLS065,28/02/2023,280,0,FL1259,Pfi Management Costs,3413,Consultants,Community & Env Services
Blackpool Council,1008713,John Fausset Ltd,623911,13014,22/02/2023,3510,0,ZM0018,Highways & Engineering,9773,Orders Received Not Invoiced,Blackpool Services
Blackpool Council,1008713,John Fausset Ltd,623911,13014,22/02/2023,4212,702,ZM0018,Highways & Engineering,9511A,Stocks Efin,Blackpool Services
Blackpool Council,1011868,W H Tarmacadam Limited,623912,6491,16/02/2023,39996,6666,SCHEME,Highways Schemes,1012,Premises Maint-Priv.Contractor,Community & Env Services
Blackpool Council,1011868,W H Tarmacadam Limited,623913,6487,16/02/2023,9138,1523,PARADE,Parades & Seawall,1012,Premises Maint-Priv.Contractor,Community & Env Services
Blackpool Council,1111807,Costar Uk Limited,623914,115403794,27/02/2023,2633.81,438.97,HJA,Growth,3711,Subscriptions,Places
Blackpool Council,1011675,Bambers Remedial Contractors Limited,623915,18032,16/02/2023,4800,800,LH2092,Lad 2 Funding,4501,Private Contractors,Public Health
Blackpool Council,1118699,Enveco Blackpool Waste Services Ltd,623917,30178451,16/02/2023,799.38,133.23,FP4801,Bus Shelters,2002,Repairs And Maintenance,Places
Blackpool Council,1132962,Sysco Productions Ltd,623968,196739,16/02/2023,10347.54,1724.59,CGTACA,Museum,6517,Equipment,Capital - Commnctn & Regen
Blackpool Council,1043424,Aivaf Limited,623969,3615,23/02/2023,14760,2460,CGTACA,Museum,6517,Equipment,Capital - Commnctn & Regen
Blackpool Council,1115754,The Workplace Depot Limited,623973,INV299178,16/02/2023,934.56,155.76,PJLA,Maintenance,3041,Other Materials,Places
Blackpool Council,1005071,Blackpool Transport Services Limited,623981,I0004562,24/02/2023,508.5,0,JEA,Senior Management,5552,Bus Pass / Travel,Children'S Services
Blackpool Council,1127795,House Of Wingz (Skool Of Street),623985,SOSHAF010223,16/02/2023,10560,0,PU2064,Holiday Activities & Food(Haf),4501,Private Contractors,Public Health
Blackpool Council,1019287,Citizens Advice Blackpool,623991,222349,16/02/2023,6250,0,PU2069,Changing Futures,4501,Private Contractors,Public Health
Blackpool Council,1136919,Power Circle Projects Ltd,623993,INV-0067,24/02/2023,5880,980,CORDEV,Corporate Delivery Unit,3801,Other Expenses,Chief Executive
Blackpool Council,1006644,Telewest/Virgin Media Payments Ltd,624002,067437901/506/0223,21/02/2023,2979.67,496.61,FGAA,Ict Corporate Services,3521,Landline - Line Rental,Resources
Blackpool Council,1006644,Telewest/Virgin Media Payments Ltd,624003,078850001/547/0223,21/02/2023,301.8,50.3,FGAA,Ict Corporate Services,3521,Landline - Line Rental,Resources
Blackpool Council,1006644,Telewest/Virgin Media Payments Ltd,624005,081127901/504/0223,21/02/2023,612,102,FGAA,Ict Corporate Services,3521,Landline - Line Rental,Resources
Blackpool Council,1105146,REDACTED PERSONAL DATA,624008,HO 22.28,16/02/2023,591.9,0,LIFEVE,Life Events Reg & Care,3801,Other Expenses,Governance & Partnerships
Blackpool Council,1118699,Enveco Blackpool Waste Services Ltd,624010,30178544,21/02/2023,420,70,LBF,Library Management,1012,Premises Maint-Priv.Contractor,Places
Blackpool Council,1118699,Enveco Blackpool Waste Services Ltd,624011,30178541,21/02/2023,390,65,LBC,Branch Libraries,1012,Premises Maint-Priv.Contractor,Places
Blackpool Council,1118699,Enveco Blackpool Waste Services Ltd,624012,30178536,21/02/2023,780.6,130.1,LBC,Branch Libraries,1012,Premises Maint-Priv.Contractor,Places
Blackpool Council,1118699,Enveco Blackpool Waste Services Ltd,624013,30178539,21/02/2023,660.6,110.1,LBC,Branch Libraries,1012,Premises Maint-Priv.Contractor,Places
Blackpool Council,1114704,Morson Human Resources Ltd,624027,HS480236,22/02/2023,2310,385,CTAHHI,Tramway Extention,6506,Consultants Fees,Capital - Commnctn & Regen
Blackpool Council,1086156,Water Saving Techniques Limited,624028,SI-5608,16/02/2023,3300,550,TRB,Maintenance & Works,4501,Private Contractors,Community & Env Services
Blackpool Council,1013064,Tarmac Lafarge Trading Limited,624032,9046500042,17/02/2023,5483.54,913.92,ENGINE,Engineering,3041,Other Materials,Community & Env Services
Blackpool Council,1018184,Blackpool Skip Hire Ltd,624033,046431,22/02/2023,396,66,SCHEME,Highways Schemes,1012,Premises Maint-Priv.Contractor,Community & Env Services
Blackpool Council,1058510,Lifeline Language Services Ltd,624035,1022064,17/02/2023,318,53,JEA,Senior Management,5507,Personal,Children'S Services
Blackpool Council,1086156,Water Saving Techniques Limited,624049,SI-5621,21/02/2023,7391.69,1231.95,PARADE,Parades & Seawall,1012,Premises Maint-Priv.Contractor,Community & Env Services
Blackpool Council,1019287,Citizens Advice Blackpool,624055,222363,17/02/2023,6250,0,PU2069,Changing Futures,4501,Private Contractors,Public Health
Blackpool Council,1093421,Effective Pedagogy Solutions Cic,624059,HAF01223,17/02/2023,8800,0,PU2064,Holiday Activities & Food(Haf),4501,Private Contractors,Public Health
Blackpool Council,1026676,Redman Smith Ltd ( Plastics Blackpool),624071,1943,23/02/2023,500,0,ZM0018,Highways & Engineering,9773,Orders Received Not Invoiced,Blackpool Services
Blackpool Council,1026676,Redman Smith Ltd ( Plastics Blackpool),624071,1943,23/02/2023,500,0,ZM0018,Highways & Engineering,9511A,Stocks Efin,Blackpool Services
Blackpool Council,1018184,Blackpool Skip Hire Ltd,624072,046329,17/02/2023,252,42,SBOARD,Springboard,3408,Services To Clients,Children'S Services
Blackpool Council,1092789,P T Winchester Ltd,624081,272779,21/02/2023,251.82,41.97,PJOA,Commercial & Marketing,3041,Other Materials,Places
Blackpool Council,1013064,Tarmac Lafarge Trading Limited,624141,9046492449,17/02/2023,1432.17,238.69,ENGINE,Engineering,3041,Other Materials,Community & Env Services
Blackpool Council,1013064,Tarmac Lafarge Trading Limited,624143,9046507619,17/02/2023,4636.95,772.82,ENGINE,Engineering,3041,Other Materials,Community & Env Services
Blackpool Council,1093145,On A Roll Sandwich Company,624149,260571,27/02/2023,449.8,0,CATERG,Catering Services,3101,Provisions,Community & Env Services
Blackpool Council,1093145,On A Roll Sandwich Company,624150,260619,27/02/2023,330.73,0,CATERG,Catering Services,3101,Provisions,Community & Env Services
Blackpool Council,1093145,On A Roll Sandwich Company,624151,260708,27/02/2023,325.7,0,CATERG,Catering Services,3101,Provisions,Community & Env Services
Blackpool Council,1093145,On A Roll Sandwich Company,624152,260745,27/02/2023,325.7,0,CATERG,Catering Services,3101,Provisions,Community & Env Services
Blackpool Council,1093145,On A Roll Sandwich Company,624153,260829,27/02/2023,742,0,CATERG,Catering Services,3101,Provisions,Community & Env Services
Blackpool Council,1118699,Enveco Blackpool Waste Services Ltd,624159,30178427,27/02/2023,827.47,137.91,CATERG,Catering Services,2002,Repairs And Maintenance,Community & Env Services
Blackpool Council,1017722,Terrys Cut Price Carpets Ltd,624163,2178,21/02/2023,540,90,JEA,Senior Management,5507,Personal,Children'S Services
Blackpool Council,1011675,Bambers Remedial Contractors Limited,624170,18246,17/02/2023,480,0,CX4002,Disabled Facilities Grants,6501,Contract Payments,Capital - Adult Social Care
Blackpool Council,1012341,Chiltern Invadex,624171,00489092,20/02/2023,349.8,58.3,MTEAJ,Equipment,5401,Aids To Daily Living,Adult & Families
Blackpool Council,1111496,Bes Healthcare Ltd,624172,INVBES166518,20/02/2023,637.44,106.24,CWAN,Children With Additional Needs,5401,Aids To Daily Living,Children'S Services
Blackpool Council,1133538,REDACTED PERSONAL DATA,624180,0931993,20/02/2023,400,0,PJHA,"Depot, Management & Admin",3308,Servicing,Places
Blackpool Council,1096607,Cutlers Property Consultancy (Services),624252,0070527,20/02/2023,2665,0,AEE,Estates,0781,Contracted,Resources
Blackpool Council,1122956,Vivid Resourcing,624258,99185,20/02/2023,8378.82,1396.47,AEE,Estates,0981,Professional Fees,Resources
Blackpool Council,1135139,Facility&Sports Club Development Services Ltd,624263,INV-0191,20/02/2023,11400,1900,PESPRT,Pe And Sport Team,3801,Other Expenses,Community & Env Services
Blackpool Council,1126236,New Concept Security Ltd,624264,162624,22/02/2023,7184.7,1197.45,SECURE,Security Services,3313,General Expenses,Community & Env Services
Blackpool Council,1126236,New Concept Security Ltd,624265,162619,20/02/2023,7095.6,1182.6,SECURE,Security Services,3313,General Expenses,Community & Env Services
Blackpool Council,1126236,New Concept Security Ltd,624266,162610,20/02/2023,7095.6,1182.6,SECURE,Security Services,3313,General Expenses,Community & Env Services
Blackpool Council,1126236,New Concept Security Ltd,624267,162608,20/02/2023,7354.8,1225.8,SECURE,Security Services,3313,General Expenses,Community & Env Services
Blackpool Council,1126236,New Concept Security Ltd,624268,162599,20/02/2023,9995.4,1665.9,SECURE,Security Services,3313,General Expenses,Community & Env Services
Blackpool Council,1126236,New Concept Security Ltd,624269,162595,20/02/2023,11607.3,1934.55,SECURE,Security Services,3313,General Expenses,Community & Env Services
Blackpool Council,1126236,New Concept Security Ltd,624270,162593,20/02/2023,22210.2,3701.7,SECURE,Security Services,3313,General Expenses,Community & Env Services
Blackpool Council,1126236,New Concept Security Ltd,624271,162591,20/02/2023,14347.54,2391.26,SECURE,Security Services,3313,General Expenses,Community & Env Services
Blackpool Council,1126236,New Concept Security Ltd,624272,162586,20/02/2023,12571.2,2095.2,SECURE,Security Services,3313,General Expenses,Community & Env Services
Blackpool Council,1117705,Rhea Projects Ltd,624273,LAD2-0349,20/02/2023,37257.73,6209.62,LH2092,Lad 2 Funding,4501,Private Contractors,Public Health
Blackpool Council,1117705,Rhea Projects Ltd,624274,LAD2-0348,20/02/2023,70128.84,11688.14,LH2092,Lad 2 Funding,4501,Private Contractors,Public Health
Blackpool Council,1071551,Business In The Community,624275,SIN059833,20/02/2023,20000,0,PTC,"A.C.E. Regen, Tourism & Cultur",0917,Other Exps,Places
Blackpool Council,1138055,Seymour & Otto Ltd,624277,2302BC02,21/02/2023,403.2,67.2,AHHBA,Blackpool Museum,3801,Other Expenses,Places
Blackpool Council,1138273,Bradburn Estates Ltd,624278,1-FY76HH,23/02/2023,500,0,HOPB,Housing Options,1301,Rent & Hire Of Premises,Chief Executive
Blackpool Council,1021840,Systemslink 2000 Ltd,624295,SI-SYS-00008-2023,21/02/2023,8994,1499,FB0004,Energy & Sustainability,3532,Comp-Running & License Costs,Resources
Blackpool Council,1035614,Marton Primary Academy And Nursery,624300,MASI65,21/02/2023,2700,0,EP8011,Covid Winter Grant,3701,Grants,Children'S Services
Blackpool Council,1008385,Leeds City Council,624310,6113308042,21/02/2023,500,0,PJW,Management - Places - Illumina,3401,General Services,Places
Blackpool Council,1098193,Westminster Primary Academy,624313,6000000126,21/02/2023,720,0,MNGMT,Central Management,0917,Other Exps,Children'S Services
Blackpool Council,1063778,Joanne Hirst,624315,4,21/02/2023,5225,0,MNGMT,Central Management,3413,Consultants,Children'S Services
Blackpool Council,1099746,Unity Academy,624316,9000000472,21/02/2023,20000,0,OTHL,Other Learning,6273,Miscellaneous,Children'S Services
Blackpool Council,1096150,Norbreck Primary Academy,624328,NPASINV34,21/02/2023,2540,0,EP8011,Covid Winter Grant,3701,Grants,Children'S Services
Blackpool Council,1059387,Mediaprint Solutions Ltd,624339,13758,24/02/2023,660,110,PUBH03,Nhs Health Check Programme,4501,Private Contractors,Public Health
Blackpool Council,1086156,Water Saving Techniques Limited,624343,SI-5620,21/02/2023,1872,312,PARADE,Parades & Seawall,1012,Premises Maint-Priv.Contractor,Community & Env Services
Blackpool Council,1006099,Blackpool Teaching Hospitals Nhs Ft,624346,1110063757,28/02/2023,1305.5,0,VA0010,Vah Management & Admin,3401,General Services,Children'S Services
Blackpool Council,1011714,Michael Hope Haulage Limited,624348,001614,21/02/2023,2304,384,SCHEME,Highways Schemes,1012,Premises Maint-Priv.Contractor,Community & Env Services
Blackpool Council,1013064,Tarmac Lafarge Trading Limited,624349,9046513566,27/02/2023,683.17,113.86,ENGINE,Engineering,3041,Other Materials,Community & Env Services
Blackpool Council,1013064,Tarmac Lafarge Trading Limited,624350,9046513567,27/02/2023,294.21,49.03,ENGINE,Engineering,3041,Other Materials,Community & Env Services
Blackpool Council,1013064,Tarmac Lafarge Trading Limited,624351,9046519570,27/02/2023,534.3,89.05,ENGINE,Engineering,3041,Other Materials,Community & Env Services
Blackpool Council,1006099,Blackpool Teaching Hospitals Nhs Ft,624352,1110063975,24/02/2023,10614.31,1769.05,PUBH02,Sexual Health Services-Contrac,4501,Private Contractors,Public Health
Blackpool Council,1117705,Rhea Projects Ltd,624354,RP-1745,21/02/2023,11508,548,LH2096,Affordable Warmth  Wait List,4501,Private Contractors,Public Health
Blackpool Council,1117705,Rhea Projects Ltd,624355,RP-1744,21/02/2023,10489.5,499.5,LH2096,Affordable Warmth  Wait List,4501,Private Contractors,Public Health
Blackpool Council,1010386,Fcat T/A Montgomery Academy,624356,3000000215,21/02/2023,20000,0,OTHL,Other Learning,6273,Miscellaneous,Children'S Services
Blackpool Council,1006385,University Of Central Lancashire,624357,TUI265700075,21/02/2023,2601,0,JA0505,Children'S Training,0911,Training Expenses,Children'S Services
Blackpool Council,1006385,University Of Central Lancashire,624358,TUI265700074,23/02/2023,2080.8,0,LM0420,Adults Training,0911,Training Expenses,Adult & Families
Blackpool Council,1006385,University Of Central Lancashire,624359,TUI265700073,23/02/2023,2080.8,0,LM0420,Adults Training,0911,Training Expenses,Adult & Families
Blackpool Council,1137187,Harte Demolition Limited,624360,1321,20/02/2023,109437.04,18239.51,CGRESO,Resources Schemes,6501,Contract Payments,Capital - Resources
Blackpool Council,1137187,Harte Demolition Limited,624360,1321,20/02/2023,4799.87,0,ZF0001,"Insurance,Dso,Banking",97B6,Retention Monies - Cap Trsfr,Total Reconciliations
Blackpool Council,1116850,Armfield Academy,624361,9500000107,21/02/2023,5685,0,EP8011,Covid Winter Grant,3701,Grants,Children'S Services
Blackpool Council,1008947,Iccm,624370,15626,21/02/2023,1188,198,CEMCRE,Cems Crems Etc,3605,Confs & Short Courses,Governance & Partnerships
Blackpool Council,1116850,Armfield Academy,624371,9500000105,21/02/2023,20000,0,OTHL,Other Learning,6273,Miscellaneous,Children'S Services
Blackpool Council,1006385,University Of Central Lancashire,624375,TUI265800010,22/02/2023,790,0,JA0505,Children'S Training,0911,Training Expenses,Children'S Services
Blackpool Council,1006385,University Of Central Lancashire,624376,TUI265800017,22/02/2023,790,0,JA0505,Children'S Training,0911,Training Expenses,Children'S Services
Blackpool Council,1006385,University Of Central Lancashire,624377,TUI265800016,22/02/2023,790,0,JA0505,Children'S Training,0911,Training Expenses,Children'S Services
Blackpool Council,1006385,University Of Central Lancashire,624378,TUI265800015,22/02/2023,790,0,JA0505,Children'S Training,0911,Training Expenses,Children'S Services
Blackpool Council,1006385,University Of Central Lancashire,624379,TUI26S800014,22/02/2023,790,0,JA0505,Children'S Training,0911,Training Expenses,Children'S Services
Blackpool Council,1006385,University Of Central Lancashire,624381,TUI265800013,22/02/2023,632,0,JA0505,Children'S Training,0911,Training Expenses,Children'S Services
Blackpool Council,1006385,University Of Central Lancashire,624382,TUI265800012,22/02/2023,632,0,JA0505,Children'S Training,0911,Training Expenses,Children'S Services
Blackpool Council,1006385,University Of Central Lancashire,624383,TUI265800011,22/02/2023,632,0,JA0505,Children'S Training,0911,Training Expenses,Children'S Services
Blackpool Council,1006385,University Of Central Lancashire,624384,TUI26S800009,22/02/2023,790,0,JA0505,Children'S Training,0911,Training Expenses,Children'S Services
Blackpool Council,1099749,Sea View Trust -  Devonshire Primary Academy,624385,DPASI46,21/02/2023,10800,0,EP8011,Covid Winter Grant,3701,Grants,Children'S Services
Blackpool Council,1099749,Sea View Trust -  Devonshire Primary Academy,624410,DPASI53,21/02/2023,5480,0,EP8011,Covid Winter Grant,3701,Grants,Children'S Services
Blackpool Council,1006099,Blackpool Teaching Hospitals Nhs Ft,624415,1110063798,21/02/2023,5903.64,0,BSTPRJ,Better Start Projects,3401,General Services,Better Start Projects
Blackpool Council,1008454,Police & Crime Commissioner For Lancashire,624425,7500014821,21/02/2023,5166.61,0,BSTPRJ,Better Start Projects,3401,General Services,Better Start Projects
Blackpool Council,1011675,Bambers Remedial Contractors Limited,624428,18165,27/02/2023,6028.04,0,CX4002,Disabled Facilities Grants,6501,Contract Payments,Capital - Adult Social Care
Blackpool Council,1026811,Stannah Lift Services Ltd,624433,1085510764,27/02/2023,1060.42,176.74,MVBBJ,Equipment,5401,Aids To Daily Living,Adult & Families
Blackpool Council,1011675,Bambers Remedial Contractors Limited,624435,18267,27/02/2023,7373.12,0,CX4002,Disabled Facilities Grants,6501,Contract Payments,Capital - Adult Social Care
Blackpool Council,1011675,Bambers Remedial Contractors Limited,624436,18253,27/02/2023,4926.1,0,CXAAA,Local Authority Dwellings,6501,Contract Payments,Capital - Chief Executive
Blackpool Council,1000009,Blackpool & The Fylde College,624438,S0023680,21/02/2023,648.24,108.04,LM2408,Provider Hub,3803,Hospitality,Adult & Families
Blackpool Council,1096836,Viva (Blackpool) Group Ltd,624440,VBG-INV-0689,21/02/2023,600,100,PU2064,Holiday Activities & Food(Haf),4501,Private Contractors,Public Health
Blackpool Council,1087549,Merlin Entertainments (Blackpool) Ltd,624489,INV13026-00026896,28/02/2023,548.6,91.44,ZX0501,"Tourism,Promotions & Conferen.",9687,Tourism Sale Of Tickets,Place Directorate
Blackpool Council,1099462,Martin & Co Bpool T/A The Letting Partnership,624493,57380,22/02/2023,400,0,HOPB,Housing Options,1301,Rent & Hire Of Premises,Chief Executive
Blackpool Council,1134017,Mk Property Lettings & Management,624496,MK472,24/02/2023,650.8,0,HOPB,Housing Options,4004,Management Fees,Chief Executive
Blackpool Council,1124549,Rojo Homes,624497,512,22/02/2023,1100,0,HOPB,Housing Options,1301,Rent & Hire Of Premises,Chief Executive
Blackpool Council,1106132,Bridge Education And Training Ltd,624503,12240,23/02/2023,360,60,VIRTUL,Virtual Hub,5555,Educational Support,Children'S Services
Blackpool Council,1106132,Bridge Education And Training Ltd,624504,12321,23/02/2023,540,90,VIRTUL,Virtual Hub,5555,Educational Support,Children'S Services
Blackpool Council,1129132,Mhr International Uk Ltd,624513,SIN172488,27/02/2023,600,100,CGRESO,Resources Schemes,6526,I.T. Software Purchase,Capital - Resources
Blackpool Council,1049868,D Hollowell & Sons,624523,23/21107/JH,23/02/2023,600,0,CEMCRE,Cems Crems Etc,4501,Private Contractors,Governance & Partnerships
Blackpool Council,1118699,Enveco Blackpool Waste Services Ltd,624525,30178450,23/02/2023,2236.08,372.68,SECURE,Security Services,3313,General Expenses,Community & Env Services
Blackpool Council,1132692,REDACTED PERSONAL DATA,624529,OAG018,23/02/2023,462.2,0,LNOUCL,Learning Outside The Classroom,6273,Miscellaneous,Children'S Services
Blackpool Council,1136841,REDACTED PERSONAL DATA,624530,KK007A,23/02/2023,873.6,0,LNOUCL,Learning Outside The Classroom,6273,Miscellaneous,Children'S Services
Blackpool Council,1049868,D Hollowell & Sons,624531,23/21069/JH,23/02/2023,600,0,CEMCRE,Cems Crems Etc,4501,Private Contractors,Governance & Partnerships
Blackpool Council,1049868,D Hollowell & Sons,624532,23/21096/JH,23/02/2023,600,0,CEMCRE,Cems Crems Etc,4501,Private Contractors,Governance & Partnerships
Blackpool Council,1049868,D Hollowell & Sons,624533,22/21004/JH,23/02/2023,600,0,CEMCRE,Cems Crems Etc,4501,Private Contractors,Governance & Partnerships
Blackpool Council,1099462,Martin & Co Bpool T/A The Letting Partnership,624546,57379,23/02/2023,307.69,0,HOPB,Housing Options,1301,Rent & Hire Of Premises,Chief Executive
Blackpool Council,1091991,REDACTED PERSONAL DATA,624559,1,24/02/2023,580,0,MUSIC,Music & Cultural Education,3801,Other Expenses,Children'S Services
Blackpool Council,1026676,Redman Smith Ltd ( Plastics Blackpool),624561,1953,23/02/2023,625,0,ENGINE,Engineering,3041,Other Materials,Community & Env Services
Blackpool Council,1026676,Redman Smith Ltd ( Plastics Blackpool),624562,1959,23/02/2023,440,0,SCHEME,Highways Schemes,3041,Other Materials,Community & Env Services
Blackpool Council,1026676,Redman Smith Ltd ( Plastics Blackpool),624563,1960,23/02/2023,375,0,SCHEME,Highways Schemes,3041,Other Materials,Community & Env Services
Blackpool Council,1066073,Blackpool Coastal Housing,624566,30002252,23/02/2023,17700,0,EP8011,Covid Winter Grant,3801,Other Expenses,Children'S Services
Blackpool Council,1066073,Blackpool Coastal Housing,624566,30002252,23/02/2023,8000,0,EP8011,Covid Winter Grant,4501,Private Contractors,Children'S Services
Blackpool Council,1000009,Blackpool & The Fylde College,624569,T111402,24/02/2023,1512,0,APCBBE,Extra Support,0911,Training Expenses,Adult & Families
Blackpool Council,1030487,Redline Travel Limited,624570,39317,23/02/2023,3215,0,PU2064,Holiday Activities & Food(Haf),4501,Private Contractors,Public Health
Blackpool Council,1030487,Redline Travel Limited,624571,39315,23/02/2023,4325,0,PU2064,Holiday Activities & Food(Haf),4501,Private Contractors,Public Health
Blackpool Council,1030487,Redline Travel Limited,624572,39316,23/02/2023,3800,0,PU2064,Holiday Activities & Food(Haf),4501,Private Contractors,Public Health
Blackpool Council,1138316,Apex Mindset Ltd,624574,207,23/02/2023,2130,355,PVA,Other External Funding,3313,General Expenses,Places
Blackpool Council,1123432,Thames Primary Academy,624576,THASI81,23/02/2023,2310,0,VIRTUL,Virtual Hub,6273,Miscellaneous,Children'S Services
Blackpool Council,1063644,Aecom Limited,624578,28515866,23/02/2023,7080,1180,CPAABA,Shoreline,6501,Contract Payments,Capital - Comm & Environ
Blackpool Council,1118699,Enveco Blackpool Waste Services Ltd,624583,30178237,23/02/2023,1440,240,PRB,Events,3401,General Services,Places
Blackpool Council,1007206,Road Safety Services Ltd,624584,91975,23/02/2023,355.2,59.2,PRB,Events,3006,Hire Of Equipment,Places
Blackpool Council,1111831,Phx Training Ltd,624587,461,23/02/2023,13800,0,EK0197,Multiply,0917,Other Exps,Places
Blackpool Council,1025402,South Ribble Borough Council,624634,9500265175,23/02/2023,10000,0,LH2092,Lad 2 Funding,4501,Private Contractors,Public Health
Blackpool Council,1121434,Hawthorn Education Services,624637,BRLEJAN23,23/02/2023,2827.2,471.2,VIRTUL,Virtual Hub,5555,Educational Support,Children'S Services
Blackpool Council,1008165,Manchester City Council,624640,8500702853,28/02/2023,3240,540,LBB,Central Library,3711,Subscriptions,Places
Blackpool Council,1040208,Water Cost Savers Ltd,624644,1154,24/02/2023,750,125,FB0004,Energy & Sustainability,1401,Water Charges-Metered,Resources
Blackpool Council,1138391,The Retrofit Academy Cic,624645,4439,23/02/2023,417,69.5,LH2094,Hug Funding,4501,Private Contractors,Public Health
Blackpool Council,1076167,Marine Management Organisation,624648,537447,23/02/2023,1464,0,CPAABK,Sand Dunes Env Wrk Ph105,6510,Osd - Other Charges,Capital - Comm & Environ
Blackpool Council,1133264,J H Shackleton - Carrying With Confidence,624661,0018,24/02/2023,1230,0,BSTPRJ,Better Start Projects,3413,Consultants,Better Start Projects
Blackpool Council,1133264,J H Shackleton - Carrying With Confidence,624661,0018,24/02/2023,950,0,BSTPRJ,Better Start Projects,3401,General Services,Better Start Projects
Blackpool Council,1073138,Astronomy For All,624664,202060,27/02/2023,460,0,AHG,Art Gallery Summary,3801,Other Expenses,Places
Blackpool Council,1006099,Blackpool Teaching Hospitals Nhs Ft,624665,1110063971,27/02/2023,11849.36,0,PUBH18,Stop Smoking Services & Interv,4501,Private Contractors,Public Health
Blackpool Council,1111947,Br Boxing & Fitness Limited,624671,BR-1310-080223,24/02/2023,540,0,PESPRT,Pe And Sport Team,0I91,Other,Community & Env Services
Blackpool Council,1021388,St Georges C Of E Academy,624748,SI-00093,24/02/2023,7160,0,EP8011,Covid Winter Grant,3701,Grants,Children'S Services
Blackpool Council,1133538,REDACTED PERSONAL DATA,624761,0931994,24/02/2023,300,0,PJHA,"Depot, Management & Admin",3308,Servicing,Places
Blackpool Council,1063778,Joanne Hirst,624766,NUMBER 3,24/02/2023,5775,0,MNGMT,Central Management,3413,Consultants,Children'S Services
Blackpool Council,1133061,Beck Interiors Limited,624768,7423,24/02/2023,148884,24814,CGTACA,Museum,6517,Equipment,Capital - Commnctn & Regen
Blackpool Council,1133061,Beck Interiors Limited,624768,7423,24/02/2023,6530,0,ZF0001,"Insurance,Dso,Banking",97B6,Retention Monies - Cap Trsfr,Total Reconciliations
Blackpool Council,1136495,Carrick Sports Construction Ltd,624769,C101398,24/02/2023,429181.22,71530.2,CGICAD,Enterprise Zone,6501,Contract Payments,Capital - Commnctn & Regen
Blackpool Council,1136495,Carrick Sports Construction Ltd,624769,C101398,24/02/2023,18823.74,0,ZF0001,"Insurance,Dso,Banking",97B6,Retention Monies - Cap Trsfr,Total Reconciliations
Blackpool Council,1090902,Anderson & Sons Contracting & Turf Care,624781,270,28/02/2023,14400,2400,SC2064,Heron Way Water Course,1012,Premises Maint-Priv.Contractor,Community & Env Services
Blackpool Council,1011923,Rp Tyson Construction Ltd,624898,IN3714,27/02/2023,1219372.97,0,CXC11,Site Development,6501,Contract Payments,Capital - Chief Executive
Blackpool Council,1011923,Rp Tyson Construction Ltd,624898,IN3714,27/02/2023,37712.57,0,ZH0001,Housing Revenue Account,97B6,Retention Monies - Cap Trsfr,Housing Revenue Account
Blackpool Council,1117705,Rhea Projects Ltd,624909,LAD2-0552,27/02/2023,38479.22,6413.2,LH2092,Lad 2 Funding,4501,Private Contractors,Public Health
Blackpool Council,1055947,Cherish Uk Limited,624914,1019637,27/02/2023,1620,0,MTEBF,Home Care,4512,Other Care Block Payments,Adult & Families
Blackpool Council,1123472,Lancashire Care Ltd T/A Lastminute Nursing,624915,16243,27/02/2023,5472,0,MTEBF,Home Care,4512,Other Care Block Payments,Adult & Families
Blackpool Council,1117705,Rhea Projects Ltd,624916,LAD2-0347,27/02/2023,50925,8487.5,LH2092,Lad 2 Funding,4501,Private Contractors,Public Health
Blackpool Council,1103450,Blackpool Entertainment Company Limited,624917,INV006682,27/02/2023,1200,200,PPA,Head Of Tourism Services,3401,General Services,Places
Blackpool Council,1066073,Blackpool Coastal Housing,624919,30002255,27/02/2023,18043.2,3007.2,CGRESO,Resources Schemes,6526,I.T. Software Purchase,Capital - Resources
Blackpool Council,1007206,Road Safety Services Ltd,624921,92005,27/02/2023,882,147,ZM0003,Planning,9624,Rechargeable Works Account,Place Directorate
Blackpool Council,1090628,The Furniture Recycling Group,624923,INV33496,28/02/2023,310.8,51.8,CWASTE,Commercial Waste,4501,Private Contractors,Community & Env Services
Blackpool Council,1108451,Poulton Pets Ltd T/A Sundown Kennels,624963,BI0087,27/02/2023,2681.4,446.9,PYEP,Environmental Protection,4502,Dog Kennelling Contractor,Community & Env Services
Blackpool Council,1008540,Konica Minolta Business (Uk) Ltd,624966,1163401492,27/02/2023,21898.51,3649.75,FGBA,Specific (Directorate)-Service,3305,Photocopying Charges,Resources
Blackpool Council,1134698,Johnson & Reeves Limited,624978,BPSC-AC-00010,28/02/2023,3528,588,EP8012,Homes For Ukraine,3801,Other Expenses,Children'S Services
Blackpool Council,1008423,Lancaster University,624979,8702704,27/02/2023,118805.82,0,DDC,Partnerships & Business Dev,3801,Other Expenses,Places
Blackpool Council,1011675,Bambers Remedial Contractors Limited,625021,18268,28/02/2023,7595.3,0,CX4002,Disabled Facilities Grants,6501,Contract Payments,Capital - Adult Social Care
Blackpool Council,1011675,Bambers Remedial Contractors Limited,625022,18265,28/02/2023,7416.17,0,CX4002,Disabled Facilities Grants,6501,Contract Payments,Capital - Adult Social Care
Blackpool Council,1011675,Bambers Remedial Contractors Limited,625023,18285,28/02/2023,1191.92,0,CX4002,Disabled Facilities Grants,6501,Contract Payments,Capital - Adult Social Care
Blackpool Council,1011675,Bambers Remedial Contractors Limited,625024,18296,28/02/2023,6114.96,0,CX4002,Disabled Facilities Grants,6501,Contract Payments,Capital - Adult Social Care
Blackpool Council,1011675,Bambers Remedial Contractors Limited,625025,18295,28/02/2023,7767,0,CX4002,Disabled Facilities Grants,6501,Contract Payments,Capital - Adult Social Care
Blackpool Council,1011675,Bambers Remedial Contractors Limited,625026,18270,28/02/2023,6736.11,0,CX4002,Disabled Facilities Grants,6501,Contract Payments,Capital - Adult Social Care
Blackpool Council,1011675,Bambers Remedial Contractors Limited,625027,18272,28/02/2023,7513.85,0,CX4002,Disabled Facilities Grants,6501,Contract Payments,Capital - Adult Social Care
Blackpool Council,1083172,The Association Of Democratic Svcs Officers,625043,23722,28/02/2023,420,70,BEA,Democratic Services & Admin,0921,Advertising (Staff Vac.),Governance & Partnerships
Blackpool Council,1011369,Lancashire County Council,625051,5201501406,28/02/2023,4855.8,809.3,FK1006,Head Of Workforce & Org Dev,6214,Legal Services,Chief Executive
Blackpool Council,1138394,REDACTED PERSONAL DATA,625052,PM1195-21,28/02/2023,591.9,0,LIFEVE,Life Events Reg & Care,3401,General Services,Governance & Partnerships
Blackpool Council,1026676,Redman Smith Ltd ( Plastics Blackpool),625053,1947,28/02/2023,340,0,ZM0018,Highways & Engineering,9773,Orders Received Not Invoiced,Blackpool Services
Blackpool Council,1026676,Redman Smith Ltd ( Plastics Blackpool),625053,1947,28/02/2023,340,0,ZM0018,Highways & Engineering,9511A,Stocks Efin,Blackpool Services
Blackpool Council,1026676,Redman Smith Ltd ( Plastics Blackpool),625054,1946,28/02/2023,270,0,ZM0018,Highways & Engineering,9773,Orders Received Not Invoiced,Blackpool Services
Blackpool Council,1026676,Redman Smith Ltd ( Plastics Blackpool),625054,1946,28/02/2023,270,0,ZM0018,Highways & Engineering,9511A,Stocks Efin,Blackpool Services
Blackpool Council,1008540,Konica Minolta Business (Uk) Ltd,625056,1162312601,28/02/2023,19502.54,3250.42,FGBA,Specific (Directorate)-Service,3305,Photocopying Charges,Resources
Blackpool Council,1008540,Konica Minolta Business (Uk) Ltd,625057,1163380684,28/02/2023,33256.87,5542.81,FGBA,Specific (Directorate)-Service,3305,Photocopying Charges,Resources
Blackpool Council,1010138,C Cabs,625058,09810,28/02/2023,6443,0,TRCHIL,Integrated Transport Children,2201,Contract Hire,Community & Env Services
Blackpool Council,1011369,Lancashire County Council,625064,5201502666,28/02/2023,2366,0,FR5001,Concessionary Fares,3401,General Services,Budgets Outside Cash Limits
Blackpool Council,1011369,Lancashire County Council,625065,5201502672,28/02/2023,2307,0,FR5001,Concessionary Fares,3401,General Services,Budgets Outside Cash Limits
Blackpool Council,1011369,Lancashire County Council,625066,5201502677,28/02/2023,2501,0,FR5001,Concessionary Fares,3401,General Services,Budgets Outside Cash Limits
Blackpool Council,1011369,Lancashire County Council,625067,5201502690,28/02/2023,1477,0,FR5001,Concessionary Fares,3401,General Services,Budgets Outside Cash Limits
Blackpool Council,1007023,Access Uk Ltd - Selima,625072,1563958,28/02/2023,9146.17,1524.36,SYSDEV,Systems Development,3532,Comp-Running & License Costs,Resources
Blackpool Council,1011618,European Care (Uk) Ltd,3754714,126970,13/02/2023,1982,0,MVCBC,Nursing Placements,4506,Nursing Homes,Adult & Families
Blackpool Council,1011618,European Care (Uk) Ltd,3766837,131092,13/02/2023,1982,0,MVCBC,Nursing Placements,4506,Nursing Homes,Adult & Families
Blackpool Council,1011618,European Care (Uk) Ltd,3778602,135019,13/02/2023,960.36,0,MVCBC,Nursing Placements,7583,Indep Sect Nursing Homes,Adult & Families
Blackpool Council,1128756,REDACTED PERSONAL DATA,4548332,411807,12/02/2023,574.28,0,JEA,Senior Management,4809,Special Guardianship,Children'S Services
Blackpool Council,1132752,REDACTED PERSONAL DATA,4652884,455624,12/02/2023,648.87,0,MSABB,Direct Payments,5604,Direct Payments,Adult & Families
Blackpool Council,1133551,REDACTED PERSONAL DATA,4679355,467399,12/02/2023,523.66,0,MVDBB,Direct Payments,5604,Direct Payments,Adult & Families
Blackpool Council,1123264,Bell Decorating Group Limited,4723151,CSI25567,13/02/2023,879.18,146.53,CXC31,Hra Capital Programme 2022/23,6501,Contract Payments,Capital - Chief Executive
Blackpool Council,1048456,R T C,4778982,10921,20/02/2023,763.2,127.2,CXC31,Hra Capital Programme 2022/23,6501,Contract Payments,Capital - Chief Executive
Blackpool Council,1081388,Zion Care Ltd,4784427,518991,12/02/2023,358.74,0,MVDBD,Residential Placements,7582,Indep Sect Residential Homes,Adult & Families
Blackpool Council,1128531,Penrhos Care Home Ltd,4784665,518686,12/02/2023,896.86,0,MGBBD,Residential Placements,7582,Indep Sect Residential Homes,Adult & Families
Blackpool Council,1130624,Bowerswood House Retirement Home Ltd,4784695,518912,12/02/2023,717.49,0,MGCBD,Residential Placements,7582,Indep Sect Residential Homes,Adult & Families
Blackpool Council,1115716,North Liverpool Construction Ltd (Fac067),4798828,130005,13/02/2023,2051,341.82,CXC31,Hra Capital Programme 2022/23,6501,Contract Payments,Capital - Chief Executive
Blackpool Council,1109701,Langland Care Limited,4802203,525479,12/02/2023,284.33,0,MVDBD,Residential Placements,7582,Indep Sect Residential Homes,Adult & Families
Blackpool Council,1109701,Langland Care Limited,4809931,528404,12/02/2023,917.14,0,MVDBD,Residential Placements,4505,Residential Homes,Adult & Families
Blackpool Council,1086714,Liveasy Ltd,4825396,BK0488D,21/02/2023,9150.82,1525.14,MTEAJ,Equipment,5401,Aids To Daily Living,Adult & Families
Blackpool Council,1105240,Hanzak Ltd T/A Dr Rashad Nazir,4826022,21094RN,02/02/2023,745,0,LM0401,Safeguarding Vulnerable Adults,4501,Private Contractors,Adult & Families
Blackpool Council,1111078,Dr Y P Shukla,4826023,01/2023,02/02/2023,1430.14,0,LM0401,Safeguarding Vulnerable Adults,4501,Private Contractors,Adult & Families
Blackpool Council,1111078,Dr Y P Shukla,4826024,50/2022,02/02/2023,1435.35,0,LM0401,Safeguarding Vulnerable Adults,4501,Private Contractors,Adult & Families
Blackpool Council,1105240,Hanzak Ltd T/A Dr Rashad Nazir,4826025,21080RN,02/02/2023,1822.9,0,LM0401,Safeguarding Vulnerable Adults,4501,Private Contractors,Adult & Families
Blackpool Council,1105240,Hanzak Ltd T/A Dr Rashad Nazir,4826026,21081RN,02/02/2023,1845.2,0,LM0401,Safeguarding Vulnerable Adults,4501,Private Contractors,Adult & Families
Blackpool Council,1105240,Hanzak Ltd T/A Dr Rashad Nazir,4826027,21082RN,02/02/2023,1835.75,0,LM0401,Safeguarding Vulnerable Adults,4501,Private Contractors,Adult & Families
Blackpool Council,1105240,Hanzak Ltd T/A Dr Rashad Nazir,4826028,21083RN,02/02/2023,1881.4,0,LM0401,Safeguarding Vulnerable Adults,4501,Private Contractors,Adult & Families
Blackpool Council,1105240,Hanzak Ltd T/A Dr Rashad Nazir,4826029,21084RN,02/02/2023,1016.7,0,LM0401,Safeguarding Vulnerable Adults,4501,Private Contractors,Adult & Families
Blackpool Council,1123190,Cder Group Limted,4826562,237376,08/02/2023,2560.01,426.67,FBBEA,"Income, Recovery & Debtors",3807,Legal & Court Costs,Resources
Blackpool Council,1123190,Cder Group Limted,4826563,237377,08/02/2023,384.46,64.08,FBBEA,"Income, Recovery & Debtors",3807,Legal & Court Costs,Resources
Blackpool Council,1123190,Cder Group Limted,4826564,237378,03/02/2023,528.43,88.07,FV6705,Phoenix Commercial Collection,7366,Car Parking Fees,Budgets Outside Cash Limits
Blackpool Council,1123190,Cder Group Limted,4826565,237379,03/02/2023,854.15,142.36,FV6705,Phoenix Commercial Collection,7366,Car Parking Fees,Budgets Outside Cash Limits
Blackpool Council,1135065,Paramount Children'S Services,4826577,PCS_AM_010,02/02/2023,23250,0,JEA,Senior Management,4501,Private Contractors,Children'S Services
Blackpool Council,1109511,Cambian Childcare Limited,4826581,CCI0005395,06/02/2023,15278.66,0,JEA,Senior Management,4501,Private Contractors,Children'S Services
Blackpool Council,1118306,REDACTED PERSONAL DATA,4826935,273989,02/02/2023,480,80,BAAA,Legal Services,4707,Counsels Fees,Governance & Partnerships
Blackpool Council,1118306,REDACTED PERSONAL DATA,4826936,270911,02/02/2023,792,132,BAAA,Legal Services,4707,Counsels Fees,Governance & Partnerships
Blackpool Council,1016930,REDACTED PERSONAL DATA,4826942,272921,02/02/2023,540,90,BAAA,Legal Services,4707,Counsels Fees,Governance & Partnerships
Blackpool Council,1134893,REDACTED PERSONAL DATA,4826943,270518,02/02/2023,900,150,BAAA,Legal Services,4707,Counsels Fees,Governance & Partnerships
Blackpool Council,1097947,REDACTED PERSONAL DATA,4826946,472487,03/02/2023,750,125,BAAA,Legal Services,4707,Counsels Fees,Governance & Partnerships
Blackpool Council,1118127,REDACTED PERSONAL DATA,4826947,273874,02/02/2023,588,98,BAAA,Legal Services,4707,Counsels Fees,Governance & Partnerships
Blackpool Council,1121818,REDACTED PERSONAL DATA,4826948,273554,02/02/2023,720,120,BAAA,Legal Services,4707,Counsels Fees,Governance & Partnerships
Blackpool Council,1111328,Hadley Fraser Ltd,4826954,BLA142,02/02/2023,5601.36,933.56,LM0401,Safeguarding Vulnerable Adults,4501,Private Contractors,Adult & Families
Blackpool Council,1039034,Contract Floors Ltd,4826977,INV-2168,20/02/2023,672,112,CXC31,Hra Capital Programme 2022/23,6501,Contract Payments,Capital - Chief Executive
Blackpool Council,1039034,Contract Floors Ltd,4826977,INV-2168,20/02/2023,1008,168,CXXXX,Hra Non Specific Contingency,6501,Contract Payments,Capital - Chief Executive
Blackpool Council,1117457,Wrps Ltd,4827158,11733,03/02/2023,816,136,CXC31,Hra Capital Programme 2022/23,6501,Contract Payments,Capital - Chief Executive
Blackpool Council,1137829,Independent Together Limited,4827323,INV-1076,03/02/2023,1851.43,308.57,JEA,Senior Management,4501,Private Contractors,Children'S Services
Blackpool Council,1105953,Simple Servicing Works,4827360,SI-125,02/02/2023,17492.68,0,JEA,Senior Management,4501,Private Contractors,Children'S Services
Blackpool Council,1008537,Knight Air Products Limited,4827389,322366,03/02/2023,341.7,56.95,JB0401,167 Hornby Road (155),1601,Consumable Supplies,Adult & Families
Blackpool Council,1094411,Fox Fire Security Limited,4827992,INV 3871,03/02/2023,1372.56,228.76,AER,Dual Use Properties,1012,Premises Maint-Priv.Contractor,Resources
Blackpool Council,1107100,Nonstop Consulting Ltd,4829276,UK221671,02/02/2023,845.74,140.96,JBT,Looked After Children,0791,Temp/Relief (Bureau Staff),Children'S Services
Blackpool Council,1115716,North Liverpool Construction Ltd (Fac067),4829385,130086,08/02/2023,832.13,138.69,CXC31,Hra Capital Programme 2022/23,6501,Contract Payments,Capital - Chief Executive
Blackpool Council,1115716,North Liverpool Construction Ltd (Fac067),4829386,130088,08/02/2023,5367.23,894.54,CXC31,Hra Capital Programme 2022/23,6501,Contract Payments,Capital - Chief Executive
Blackpool Council,1115716,North Liverpool Construction Ltd (Fac067),4829388,130090,09/02/2023,2508.88,418.15,CXC31,Hra Capital Programme 2022/23,6501,Contract Payments,Capital - Chief Executive
Blackpool Council,1117457,Wrps Ltd,4829389,11764,03/02/2023,10054.1,1675.68,CXC31,Hra Capital Programme 2022/23,6501,Contract Payments,Capital - Chief Executive
Blackpool Council,1117457,Wrps Ltd,4829390,11765,03/02/2023,780,130,CXC31,Hra Capital Programme 2022/23,6501,Contract Payments,Capital - Chief Executive
Blackpool Council,1117457,Wrps Ltd,4829391,11766,03/02/2023,420,70,CXC31,Hra Capital Programme 2022/23,6501,Contract Payments,Capital - Chief Executive
Blackpool Council,1011952,Empowerment,4829392,2438,13/02/2023,397.22,0,LM0401,Safeguarding Vulnerable Adults,4501,Private Contractors,Adult & Families
Blackpool Council,1136654,Randstad Solutions Ltd,4829508,30055749,07/02/2023,2792.45,465.41,CWAN,Children With Additional Needs,4501,Private Contractors,Children'S Services
Blackpool Council,1088102,Whistl Uk Limited,4829514,IN18US23000127,03/02/2023,3294.43,549.07,FCADA,Customer Services,3511,Postages,Resources
Blackpool Council,1114868,Precision Interventions Ltd,4829536,0014,06/02/2023,22560,0,CWAN,Children With Additional Needs,3408,Services To Clients,Children'S Services
Blackpool Council,1026450,Doncaster Deaf Trust,4829544,20380,01/02/2023,14572.33,0,CWAN,Children With Additional Needs,4501,Private Contractors,Children'S Services
Blackpool Council,1116629,Villarose Rest Home,4830554,539494,13/02/2023,370.86,0,MVCBD,Residential Placements,7582,Indep Sect Residential Homes,Adult & Families
Blackpool Council,1117379,All Saints Care Ltd - The Gateway Care Home,4830557,538886,13/02/2023,953.15,0,MHABD,Direct Payments,7582,Indep Sect Residential Homes,Adult & Families
Blackpool Council,1120626,Chester Park Care Home,4830625,539103,13/02/2023,762.33,0,MVBBD,Residential Placements,7582,Indep Sect Residential Homes,Adult & Families
Blackpool Council,1121099,K Bhanji T/A The Haven Care Home,4830628,538994,13/02/2023,358.74,0,MVDBD,Residential Placements,7582,Indep Sect Residential Homes,Adult & Families
Blackpool Council,1132482,The Hollies Nursing & Residential Home Ltd,4830684,539277,12/02/2023,10814.23,0,MGBBC,Nursing Placements,7582,Indep Sect Residential Homes,Adult & Families
Blackpool Council,1132482,The Hollies Nursing & Residential Home Ltd,4830684,539277,12/02/2023,27816.59,0,MGBBC,Nursing Placements,4506,Nursing Homes,Adult & Families
Blackpool Council,1130809,Mchalls Accommodation Ltd T/A Mchalls Hotel,4830770,MCHALLS033,17/02/2023,22680,3780,HOPB,Housing Options,1704,Bed & Breakfast Accomm.,Chief Executive
Blackpool Council,1044395,Sellick Partnership Limited,4830777,INV457145,08/02/2023,1677.36,279.56,BAAA,Legal Services,0793,Supply Cost Of Other Agency,Governance & Partnerships
Blackpool Council,1136006,REDACTED PERSONAL DATA,4830928,287463,03/02/2023,1800,300,AMH,Mental Health,3807,Legal & Court Costs,Adult & Families
Blackpool Council,1110793,REDACTED PERSONAL DATA,4830943,TCPGNH0123TKJ,03/02/2023,900,0,JEA,Senior Management,4809,Special Guardianship,Children'S Services
Blackpool Council,1136294,Clyde & Co Claims Llp,4831228,2802138,10/02/2023,2758,0,TRA,Traffic Management,3807,Legal & Court Costs,Community & Env Services
Blackpool Council,1110793,REDACTED PERSONAL DATA,4831230,TCPGNH0123MA,03/02/2023,600,0,JBR,Lac - Placements,3801,Other Expenses,Children'S Services
Blackpool Council,1110793,REDACTED PERSONAL DATA,4831232,TCPGNH0123IH,03/02/2023,450,0,JBR,Lac - Placements,3801,Other Expenses,Children'S Services
Blackpool Council,1110793,REDACTED PERSONAL DATA,4831233,TCPGNH0123AR,03/02/2023,450,0,JBR,Lac - Placements,3801,Other Expenses,Children'S Services
Blackpool Council,1073505,Jsb Forensic Practice,4831239,DREW/2023,02/02/2023,628.5,0,JEA,Senior Management,4712,Experts Fees,Children'S Services
Blackpool Council,1120653,REDACTED PERSONAL DATA,4831243,124380,02/02/2023,1350,225,LIFEVE,Life Events Reg & Care,3807,Legal & Court Costs,Governance & Partnerships
Blackpool Council,1131835,REDACTED PERSONAL DATA,4831244,502206,03/02/2023,1800,300,PLBAAA,Development Control,3401,General Services,Places
Blackpool Council,1115716,North Liverpool Construction Ltd (Fac067),4831276,130092,10/02/2023,2199.34,366.56,CXXXX,Hra Non Specific Contingency,6501,Contract Payments,Capital - Chief Executive
Blackpool Council,1102179,Bedspace Resource Ltd,4831775,BLACKPOO 297376,03/02/2023,1098,183,JEA,Senior Management,4501,Private Contractors,Children'S Services
Blackpool Council,1102179,Bedspace Resource Ltd,4831776,BLACKPOO 297315,03/02/2023,1098,183,JEA,Senior Management,4501,Private Contractors,Children'S Services
Blackpool Council,1095195,Fylde Maintenance Services Ltd,4831824,4852,03/02/2023,851.4,141.9,AEB,Buildings,1012,Premises Maint-Priv.Contractor,Resources
Blackpool Council,1095195,Fylde Maintenance Services Ltd,4831825,4830,02/02/2023,3487.44,581.24,AEB,Buildings,1012,Premises Maint-Priv.Contractor,Resources
Blackpool Council,1107100,Nonstop Consulting Ltd,4832642,UK222259,09/02/2023,1691.46,281.91,JBT,Looked After Children,0791,Temp/Relief (Bureau Staff),Children'S Services
Blackpool Council,1132549,West Lancs Community Leisure,4832648,REIMBURSEMENT,10/02/2023,420,0,JEA,Senior Management,5554,Personal Needs (Lca Only),Children'S Services
Blackpool Council,1123190,Cder Group Limted,4832710,238333,10/02/2023,4296.71,716.12,FBBEA,"Income, Recovery & Debtors",3807,Legal & Court Costs,Resources
Blackpool Council,1123190,Cder Group Limted,4832713,238334,10/02/2023,447.8,74.63,FBBEA,"Income, Recovery & Debtors",3807,Legal & Court Costs,Resources
Blackpool Council,1105003,Socal Healthcare Ltd,4832724,0123-108-109,02/02/2023,353.87,0,LM0401,Safeguarding Vulnerable Adults,4501,Private Contractors,Adult & Families
Blackpool Council,1050674,REDACTED PERSONAL DATA,4832774,446492,09/02/2023,384,64,BAAA,Legal Services,4707,Counsels Fees,Governance & Partnerships
Blackpool Council,1112117,REDACTED PERSONAL DATA,4832775,273689,09/02/2023,1230,205,BAAA,Legal Services,4707,Counsels Fees,Governance & Partnerships
Blackpool Council,1137867,REDACTED PERSONAL DATA,4832776,273875,03/02/2023,444,74,BAAA,Legal Services,4707,Counsels Fees,Governance & Partnerships
Blackpool Council,1093061,REDACTED PERSONAL DATA,4832777,474857,02/02/2023,780,130,BAAA,Legal Services,4707,Counsels Fees,Governance & Partnerships
Blackpool Council,1073505,Jsb Forensic Practice,4832961,MCQUADE 23,02/02/2023,922.8,0,JEA,Senior Management,4712,Experts Fees,Children'S Services
Blackpool Council,1123663,REDACTED PERSONAL DATA,4832970,475023,10/02/2023,1716,286,BAAA,Legal Services,4707,Counsels Fees,Governance & Partnerships
Blackpool Council,1006586,H Jenkinson & Co Ltd,4833100,SINV00948517,08/02/2023,3300,550,PTA,Economic Development,1012,Premises Maint-Priv.Contractor,Places
Blackpool Council,1094411,Fox Fire Security Limited,4833132,INV3890,08/02/2023,4848,808,AER,Dual Use Properties,1012,Premises Maint-Priv.Contractor,Resources
Blackpool Council,1120588,G2 Recruitment Solutions,4833139,115288,10/02/2023,861,143.5,AEF,Facilities,0791,Temp/Relief (Bureau Staff),Resources
Blackpool Council,1121077,J & J Decorating Services Ltd,4833140,0132,03/02/2023,1476,246,AEB,Buildings,1012,Premises Maint-Priv.Contractor,Resources
Blackpool Council,1104767,North Star Environmental Ltd,4833259,INV-27693,10/02/2023,282,47,CXC31,Hra Capital Programme 2022/23,6501,Contract Payments,Capital - Chief Executive
Blackpool Council,1117457,Wrps Ltd,4833272,11781,15/02/2023,2016,336,CXC31,Hra Capital Programme 2022/23,6501,Contract Payments,Capital - Chief Executive
Blackpool Council,1117457,Wrps Ltd,4833275,11784,15/02/2023,864,144,CXC31,Hra Capital Programme 2022/23,6501,Contract Payments,Capital - Chief Executive
Blackpool Council,1117457,Wrps Ltd,4833276,11785,15/02/2023,1938.46,323.08,CXC31,Hra Capital Programme 2022/23,6501,Contract Payments,Capital - Chief Executive
Blackpool Council,1117457,Wrps Ltd,4833279,11782,15/02/2023,2449.2,408.2,CXC31,Hra Capital Programme 2022/23,6501,Contract Payments,Capital - Chief Executive
Blackpool Council,1117457,Wrps Ltd,4833280,11783,15/02/2023,1260,210,CXC31,Hra Capital Programme 2022/23,6501,Contract Payments,Capital - Chief Executive
Blackpool Council,1026811,Stannah Lift Services Ltd,4833315,1085504906,02/02/2023,1262.99,210.5,MVA,18-64,5401,Aids To Daily Living,Adult & Families
Blackpool Council,1026811,Stannah Lift Services Ltd,4834007,1085504881,02/02/2023,1979.64,329.94,MVA,18-64,5401,Aids To Daily Living,Adult & Families
Blackpool Council,1026811,Stannah Lift Services Ltd,4834008,1085504880,02/02/2023,1170.67,195.11,MVBBJ,Equipment,5401,Aids To Daily Living,Adult & Families
Blackpool Council,1007345,Mobile Mini Uk Limited,4834109,7002729650,15/02/2023,360.24,60.04,CEMCRE,Cems Crems Etc,1012,Premises Maint-Priv.Contractor,Governance & Partnerships
Blackpool Council,1002210,Read & Errington Ltd,4834138,7557,10/02/2023,3751.25,0,CX4024,Winter Warmth Grant,6501,Contract Payments,Capital - Adult Social Care
Blackpool Council,1115668,Greenfield Removals Ltd,4834156,INV-17361,16/02/2023,2400,400,CXC31,Hra Capital Programme 2022/23,6501,Contract Payments,Capital - Chief Executive
Blackpool Council,1088102,Whistl Uk Limited,4834235,IN18US23000199,10/02/2023,5176.74,862.79,FCADA,Customer Services,3511,Postages,Resources
Blackpool Council,1130442,Skyguard Ltd T/A Peoplesafe,4834239,SI1231,01/02/2023,960,160,MTEBK,Other Services,3401,General Services,Adult & Families
Blackpool Council,1110286,Caring Connections Ltd,4834241,BW10,01/02/2023,2215.6,0,MTEBF,Home Care,4507,Domiciliary Care,Adult & Families
Blackpool Council,1044395,Sellick Partnership Limited,4834242,INV458560,15/02/2023,1456.03,242.67,BAAA,Legal Services,0793,Supply Cost Of Other Agency,Governance & Partnerships
Blackpool Council,1057348,Venn Group Limited,4834243,3980556,10/02/2023,1170,195,BAAA,Legal Services,0793,Supply Cost Of Other Agency,Governance & Partnerships
Blackpool Council,1045649,Independent Living (North West) Ltd,4834244,WM142C-19,01/02/2023,14373.53,2395.59,MTEBG,Day Services,4508,Day Care,Adult & Families
Blackpool Council,1134698,Johnson & Reeves Limited,4834248,HO-AC-00035,01/02/2023,714,119,HOPB,Housing Options,1704,Bed & Breakfast Accomm.,Chief Executive
Blackpool Council,1108346,Lancashire Interpretation & Translation Serv,4834253,LITS/130123/ZC,10/02/2023,462.6,77.1,MVBAK,Other Services,3419,Interpreters Fees,Adult & Families
Blackpool Council,1045649,Independent Living (North West) Ltd,4834255,HDC 142C-19,01/02/2023,5343.95,890.66,MTEBG,Day Services,4508,Day Care,Adult & Families
Blackpool Council,1126821,REDACTED PERSONAL DATA,4834256,INV-1021,01/02/2023,345.62,0,MFABB,Direct Payments,5604,Direct Payments,Adult & Families
Blackpool Council,1126821,REDACTED PERSONAL DATA,4834257,INV-1077,01/02/2023,377.04,0,MFABB,Direct Payments,5604,Direct Payments,Adult & Families
Blackpool Council,1112757,Corona Contracts Ltd,4834395,4604,16/02/2023,318,53,AEB,Buildings,1012,Premises Maint-Priv.Contractor,Resources
Blackpool Council,1137588,The Winning Post Hotel Limited,4834412,INV007,06/02/2023,300,0,HOPB,Housing Options,1704,Bed & Breakfast Accomm.,Chief Executive
Blackpool Council,1106288,Blackpool Housing Company Ltd,4834447,COOPERL2,01/02/2023,910,0,JEA,Senior Management,5551,Rent & Rent Bonds,Children'S Services
Blackpool Council,1134479,Horizons Plus Ltd,4834666,370,16/02/2023,2228.55,0,JEA,Senior Management,4501,Private Contractors,Children'S Services
Blackpool Council,1102179,Bedspace Resource Ltd,4834667,BLACKPOO 298700,10/02/2023,1098,183,JEA,Senior Management,4501,Private Contractors,Children'S Services
Blackpool Council,1136977,Optimum Child Care Ltd,4834673,00006,15/02/2023,25692.9,0,JEA,Senior Management,4501,Private Contractors,Children'S Services
Blackpool Council,1108346,Lancashire Interpretation & Translation Serv,4834678,LITS/170123/SP,14/02/2023,468,78,MVDAK,Other Services,3419,Interpreters Fees,Adult & Families
Blackpool Council,1123190,Cder Group Limted,4834683,239094,17/02/2023,6138.49,1023.08,FBBEA,"Income, Recovery & Debtors",3807,Legal & Court Costs,Resources
Blackpool Council,1105003,Socal Healthcare Ltd,4835110,0822-231-232,13/02/2023,350.81,0,LM0401,Safeguarding Vulnerable Adults,4501,Private Contractors,Adult & Families
Blackpool Council,1105003,Socal Healthcare Ltd,4835113,1021-022;024;025,13/02/2023,545.97,0,LM0401,Safeguarding Vulnerable Adults,4501,Private Contractors,Adult & Families
Blackpool Council,1105003,Socal Healthcare Ltd,4835116,1121-040-042,13/02/2023,533.64,0,LM0401,Safeguarding Vulnerable Adults,4501,Private Contractors,Adult & Families
Blackpool Council,1105003,Socal Healthcare Ltd,4835118,0322-126-127,13/02/2023,350,0,LM0401,Safeguarding Vulnerable Adults,4501,Private Contractors,Adult & Families
Blackpool Council,1105889,3d Environmental Limited,4835119,BPCASC-0072,09/02/2023,488.04,81.34,MFAAK,Other Services,4501,Private Contractors,Adult & Families
Blackpool Council,1011675,Bambers Remedial Contractors Limited,4835120,18146,10/02/2023,315.48,52.58,CXAAA,Local Authority Dwellings,6501,Contract Payments,Capital - Chief Executive
Blackpool Council,1011675,Bambers Remedial Contractors Limited,4835122,18144,10/02/2023,924,154,MVA,18-64,5401,Aids To Daily Living,Adult & Families
Blackpool Council,1011675,Bambers Remedial Contractors Limited,4835123,18145,10/02/2023,720,120,MVBBJ,Equipment,5401,Aids To Daily Living,Adult & Families
Blackpool Council,1011675,Bambers Remedial Contractors Limited,4835124,18141,10/02/2023,762,127,MVBBJ,Equipment,5401,Aids To Daily Living,Adult & Families
Blackpool Council,1011675,Bambers Remedial Contractors Limited,4835125,18140,10/02/2023,1194,199,MVBBJ,Equipment,5401,Aids To Daily Living,Adult & Families
Blackpool Council,1011675,Bambers Remedial Contractors Limited,4835126,18142,10/02/2023,330.96,55.16,CXAAA,Local Authority Dwellings,6501,Contract Payments,Capital - Chief Executive
Blackpool Council,1002210,Read & Errington Ltd,4835130,7632,10/02/2023,2615.34,0,CX4024,Winter Warmth Grant,6501,Contract Payments,Capital - Adult Social Care
Blackpool Council,1002210,Read & Errington Ltd,4835134,7626,10/02/2023,350,0,CX4024,Winter Warmth Grant,6501,Contract Payments,Capital - Adult Social Care
Blackpool Council,1006398,Travis Perkins Trading Company Limited,4835233,6939 AAC606,15/02/2023,1177.89,196.31,CXC31,Hra Capital Programme 2022/23,6501,Contract Payments,Capital - Chief Executive
Blackpool Council,1123937,Michild (Bpool) Ltd  T/A Meadow Kindergarten,4835265,001,07/02/2023,1000,0,CWAN,Children With Additional Needs,4403,Special Needs - Children,Children'S Services
Blackpool Council,1057348,Venn Group Limited,4835268,3982875,17/02/2023,1443,240.5,BAAA,Legal Services,0793,Supply Cost Of Other Agency,Governance & Partnerships
Blackpool Council,1086714,Liveasy Ltd,4835288,B04888G,10/02/2023,1114.73,185.79,MTEAJ,Equipment,5401,Aids To Daily Living,Adult & Families
Blackpool Council,1086714,Liveasy Ltd,4835289,BK0488H,10/02/2023,12815.44,2135.9,MTEAJ,Equipment,5401,Aids To Daily Living,Adult & Families
Blackpool Council,1086714,Liveasy Ltd,4835290,BK0488I,10/02/2023,5448,908,MTEAJ,Equipment,5401,Aids To Daily Living,Adult & Families
Blackpool Council,1011675,Bambers Remedial Contractors Limited,4835291,18147,10/02/2023,357.58,59.6,CXAAA,Local Authority Dwellings,6501,Contract Payments,Capital - Chief Executive
Blackpool Council,1011675,Bambers Remedial Contractors Limited,4835292,18149,10/02/2023,912,152,MVBBJ,Equipment,5401,Aids To Daily Living,Adult & Families
Blackpool Council,1011675,Bambers Remedial Contractors Limited,4835293,18148,10/02/2023,1191.6,198.6,MVBBJ,Equipment,5401,Aids To Daily Living,Adult & Families
Blackpool Council,1011269,Fylde Council,4835295,73292651,01/02/2023,7659.84,1276.64,CXC31,Hra Capital Programme 2022/23,6501,Contract Payments,Capital - Chief Executive
Blackpool Council,1106471,Mayne Special Needs,4835298,MSN-BES883,10/02/2023,470,0,MTEAJ,Equipment,5401,Aids To Daily Living,Adult & Families
Blackpool Council,1106471,Mayne Special Needs,4835301,MSN-BES884,10/02/2023,380,0,MTEAJ,Equipment,5401,Aids To Daily Living,Adult & Families
Blackpool Council,1121077,J & J Decorating Services Ltd,4835439,0131,03/02/2023,540,90,AEB,Buildings,1012,Premises Maint-Priv.Contractor,Resources
Blackpool Council,1086620,REDACTED PERSONAL DATA,4835549,475204,10/02/2023,1200,200,BAAA,Legal Services,4707,Counsels Fees,Governance & Partnerships
Blackpool Council,1043719,REDACTED PERSONAL DATA,4835550,273279,15/02/2023,1170,195,BAAA,Legal Services,4707,Counsels Fees,Governance & Partnerships
Blackpool Council,1123603,REDACTED PERSONAL DATA,4835551,272005,15/02/2023,648,108,BAAA,Legal Services,4707,Counsels Fees,Governance & Partnerships
Blackpool Council,1086620,REDACTED PERSONAL DATA,4835552,475204,16/02/2023,1152,192,BAAA,Legal Services,4707,Counsels Fees,Governance & Partnerships
Blackpool Council,1085291,REDACTED PERSONAL DATA,4835553,274205,17/02/2023,648,108,BAAA,Legal Services,4707,Counsels Fees,Governance & Partnerships
Blackpool Council,1118307,REDACTED PERSONAL DATA,4835555,274169,16/02/2023,450,75,BAAA,Legal Services,4707,Counsels Fees,Governance & Partnerships
Blackpool Council,1093061,REDACTED PERSONAL DATA,4835556,474574,03/02/2023,1020,170,BAAA,Legal Services,4707,Counsels Fees,Governance & Partnerships
Blackpool Council,1093061,REDACTED PERSONAL DATA,4835557,474857,16/02/2023,540,90,BAAA,Legal Services,4707,Counsels Fees,Governance & Partnerships
Blackpool Council,1054707,REDACTED PERSONAL DATA,4835558,474960,16/02/2023,1152,192,BAAA,Legal Services,4707,Counsels Fees,Governance & Partnerships
Blackpool Council,1054707,REDACTED PERSONAL DATA,4835559,474960 090123,08/02/2023,1152,192,BAAA,Legal Services,4707,Counsels Fees,Governance & Partnerships
Blackpool Council,1024640,REDACTED PERSONAL DATA,4835560,474503,03/02/2023,786,131,BAAA,Legal Services,4707,Counsels Fees,Governance & Partnerships
Blackpool Council,1054707,REDACTED PERSONAL DATA,4835570,463907,17/02/2023,840,140,BAAA,Legal Services,4707,Counsels Fees,Governance & Partnerships
Blackpool Council,1024640,REDACTED PERSONAL DATA,4835571,474502,03/02/2023,786,131,BAAA,Legal Services,4707,Counsels Fees,Governance & Partnerships
Blackpool Council,1024640,REDACTED PERSONAL DATA,4835572,474502,15/02/2023,1068,178,BAAA,Legal Services,4707,Counsels Fees,Governance & Partnerships
Blackpool Council,1024077,REDACTED PERSONAL DATA,4835573,460461,15/02/2023,16812,2802,BAAA,Legal Services,4707,Counsels Fees,Governance & Partnerships
Blackpool Council,1100221,Forensic Testing Service Ltd,4835574,95640,10/02/2023,356.64,59.44,JEA,Senior Management,4712,Experts Fees,Children'S Services
Blackpool Council,1007467,Premier Paper Group Ltd,4835585,2424336,10/02/2023,449.52,74.92,PRINTS,Print Blackpool,3344,Paper,Places
Blackpool Council,1007467,Premier Paper Group Ltd,4835590,2417068,08/02/2023,429.73,71.62,PRINTS,Print Blackpool,3344,Paper,Places
Blackpool Council,1108346,Lancashire Interpretation & Translation Serv,4835609,LITS/230123/ZC,20/02/2023,462.6,77.1,MVBAK,Other Services,3419,Interpreters Fees,Adult & Families
Blackpool Council,1006398,Travis Perkins Trading Company Limited,4835613,6939AAC575,15/02/2023,1171.61,195.26,CXC31,Hra Capital Programme 2022/23,6501,Contract Payments,Capital - Chief Executive
Blackpool Council,1006398,Travis Perkins Trading Company Limited,4835615,6939AAC592,15/02/2023,1263.94,210.65,CXC31,Hra Capital Programme 2022/23,6501,Contract Payments,Capital - Chief Executive
Blackpool Council,1006398,Travis Perkins Trading Company Limited,4835616,6939AAC593,15/02/2023,1165.94,194.32,CXC31,Hra Capital Programme 2022/23,6501,Contract Payments,Capital - Chief Executive
Blackpool Council,1006398,Travis Perkins Trading Company Limited,4835621,6939AAC600,15/02/2023,1202.26,200.37,CXC31,Hra Capital Programme 2022/23,6501,Contract Payments,Capital - Chief Executive
Blackpool Council,1006398,Travis Perkins Trading Company Limited,4835622,6939 AAC602,10/02/2023,1099.77,183.29,CXC31,Hra Capital Programme 2022/23,6501,Contract Payments,Capital - Chief Executive
Blackpool Council,1006398,Travis Perkins Trading Company Limited,4835623,6939 AAC603,10/02/2023,889.48,148.24,CXC31,Hra Capital Programme 2022/23,6501,Contract Payments,Capital - Chief Executive
Blackpool Council,1006398,Travis Perkins Trading Company Limited,4835914,6939 AAC570,03/02/2023,983.21,163.86,CXC31,Hra Capital Programme 2022/23,6501,Contract Payments,Capital - Chief Executive
Blackpool Council,1006398,Travis Perkins Trading Company Limited,4835915,6939AAC574,15/02/2023,1219.52,203.25,CXC31,Hra Capital Programme 2022/23,6501,Contract Payments,Capital - Chief Executive
Blackpool Council,1035162,Select Medical,4835917,CHI0908,15/02/2023,6883.76,1147.29,MTEAJ,Equipment,5401,Aids To Daily Living,Adult & Families
Blackpool Council,1006196,Prism Medical Uk Ltd,4835919,5554539,15/02/2023,1350,225,MTEAJ,Equipment,3006,Hire Of Equipment,Adult & Families
Blackpool Council,1104767,North Star Environmental Ltd,4835920,INV-27804,22/02/2023,282,47,CXC11,Site Development,6501,Contract Payments,Capital - Chief Executive
Blackpool Council,1104767,North Star Environmental Ltd,4835921,INV-27805,22/02/2023,282,47,CXC11,Site Development,6501,Contract Payments,Capital - Chief Executive
Blackpool Council,1115716,North Liverpool Construction Ltd (Fac067),4835923,130106,22/02/2023,1680.7,280.11,CXXXX,Hra Non Specific Contingency,6501,Contract Payments,Capital - Chief Executive
Blackpool Council,1115716,North Liverpool Construction Ltd (Fac067),4835924,130105,22/02/2023,300,50,CXXXX,Hra Non Specific Contingency,6501,Contract Payments,Capital - Chief Executive
Blackpool Council,1115716,North Liverpool Construction Ltd (Fac067),4835925,130104,22/02/2023,672,112,CXC31,Hra Capital Programme 2022/23,6501,Contract Payments,Capital - Chief Executive
Blackpool Council,1115716,North Liverpool Construction Ltd (Fac067),4835926,130103,22/02/2023,1053.3,175.55,CXC31,Hra Capital Programme 2022/23,6501,Contract Payments,Capital - Chief Executive
Blackpool Council,1115716,North Liverpool Construction Ltd (Fac067),4835927,130101,22/02/2023,801.14,133.52,CXC31,Hra Capital Programme 2022/23,6501,Contract Payments,Capital - Chief Executive
Blackpool Council,1115716,North Liverpool Construction Ltd (Fac067),4835928,130102,22/02/2023,712.13,118.69,CXC31,Hra Capital Programme 2022/23,6501,Contract Payments,Capital - Chief Executive
Blackpool Council,1066073,Blackpool Coastal Housing,4835951,30002222,01/02/2023,17799.95,2966.66,CXC31,Hra Capital Programme 2022/23,6501,Contract Payments,Capital - Chief Executive
Blackpool Council,1066073,Blackpool Coastal Housing,4835952,30002224,01/02/2023,25991.6,4331.93,CXC11,Site Development,6501,Contract Payments,Capital - Chief Executive
Blackpool Council,1066073,Blackpool Coastal Housing,4835953,30002225,01/02/2023,1760.75,293.46,CXC11,Site Development,6501,Contract Payments,Capital - Chief Executive
Blackpool Council,1066073,Blackpool Coastal Housing,4835954,30002223,01/02/2023,29210.04,4868.34,CXC31,Hra Capital Programme 2022/23,6501,Contract Payments,Capital - Chief Executive
Blackpool Council,1104767,North Star Environmental Ltd,4836788,INV-27811,28/02/2023,282,47,CXC31,Hra Capital Programme 2022/23,6501,Contract Payments,Capital - Chief Executive
Blackpool Council,1011995,Technical & Electrical Services Ltd,4836789,VR 23491,02/02/2023,333.68,55.61,CXC31,Hra Capital Programme 2022/23,6501,Contract Payments,Capital - Chief Executive
Blackpool Council,1136488,L123 Limited T/A Veriserv,4836832,125445,15/02/2023,666.72,111.12,AEB,Buildings,1012,Premises Maint-Priv.Contractor,Resources
Blackpool Council,1011995,Technical & Electrical Services Ltd,4836833,VR 23492,02/02/2023,333.68,55.61,CXC31,Hra Capital Programme 2022/23,6501,Contract Payments,Capital - Chief Executive
Blackpool Council,1011995,Technical & Electrical Services Ltd,4836834,VR 23493,28/02/2023,807.17,134.53,CXC31,Hra Capital Programme 2022/23,6501,Contract Payments,Capital - Chief Executive
Blackpool Council,1011995,Technical & Electrical Services Ltd,4836845,VR 23490,02/02/2023,363.2,60.53,CXC31,Hra Capital Programme 2022/23,6501,Contract Payments,Capital - Chief Executive
Blackpool Council,1110286,Caring Connections Ltd,4837553,BW11,09/02/2023,1260.48,0,MTEBF,Home Care,4507,Domiciliary Care,Adult & Families
Blackpool Council,1105003,Socal Healthcare Ltd,4837554,0123-115-116,13/02/2023,350,0,LM0401,Safeguarding Vulnerable Adults,4501,Private Contractors,Adult & Families
Blackpool Council,1087305,Ellis & York Ltd,4837662,10176,02/02/2023,439.4,73.23,AER,Dual Use Properties,1012,Premises Maint-Priv.Contractor,Resources
Blackpool Council,1094411,Fox Fire Security Limited,4837666,INV 3901,23/02/2023,345.6,57.6,AER,Dual Use Properties,1012,Premises Maint-Priv.Contractor,Resources
Blackpool Council,1006577,Highgrove Rest Home Ltd,4837749,544997I,13/02/2023,1143.66,0,MVDBD,Residential Placements,4505,Residential Homes,Adult & Families
Blackpool Council,1006577,Highgrove Rest Home Ltd,4837756,545450I,13/02/2023,2532.39,0,MGBAD,Residential Placements,4505,Residential Homes,Adult & Families
Blackpool Council,1006577,Highgrove Rest Home Ltd,4837763,545136I,13/02/2023,1143.66,0,MFBBD,Residential Placements,4505,Residential Homes,Adult & Families
Blackpool Council,1008538,Aegis Residential Care Homes Ltd,4838028,545658I,13/02/2023,1070.6,0,MVDBD,Residential Placements,4505,Residential Homes,Adult & Families
Blackpool Council,1017580,Brooklands House Rest Home,4838430,545817,08/02/2023,1682.37,0,MSCAD,Residential Placements,7583,Indep Sect Nursing Homes,Adult & Families
Blackpool Council,1017580,Brooklands House Rest Home,4838430,545817,08/02/2023,2760,0,MSCAD,Residential Placements,4505,Residential Homes,Adult & Families
Blackpool Council,1017580,Brooklands House Rest Home,4838431,545276,08/02/2023,1217.88,0,MVCBD,Residential Placements,4505,Residential Homes,Adult & Families
Blackpool Council,1017580,Brooklands House Rest Home,4838432,545799,08/02/2023,582.96,0,MSCAD,Residential Placements,7583,Indep Sect Nursing Homes,Adult & Families
Blackpool Council,1046205,Catterall House Care Home,4838443,545104I,13/02/2023,1217.88,0,MFCBD,Residential Placements,4505,Residential Homes,Adult & Families
Blackpool Council,1113413,Qualia Care Ltd - Sandycroft Nursing Home,4838609,544940I,13/02/2023,1143.66,0,MGBBC,Nursing Placements,4506,Nursing Homes,Adult & Families
Blackpool Council,1115080,New Care Project Lytham (Opco) Ltd,4838622,545711I,13/02/2023,1898.68,0,MGDBD,Residential Placements,4505,Residential Homes,Adult & Families
Blackpool Council,1115080,New Care Project Lytham (Opco) Ltd,4838623,545281I,13/02/2023,1897.52,0,MGBBD,Residential Placements,4505,Residential Homes,Adult & Families
Blackpool Council,1115080,New Care Project Lytham (Opco) Ltd,4838624,545727I,13/02/2023,1989.98,0,MVDBD,Residential Placements,4505,Residential Homes,Adult & Families
Blackpool Council,1130929,Dchc14 Manchester House,4838767,545199I,13/02/2023,1390,0,MVCBD,Residential Placements,4505,Residential Homes,Adult & Families
Blackpool Council,1135272,Hedges House Residential Care Home Limited,4838825,545719I,13/02/2023,1560,0,MVDBD,Residential Placements,4505,Residential Homes,Adult & Families
Blackpool Council,1114000,Dac Beachcroft Claims Limited,4838849,03-10179422,01/02/2023,3527.21,587.87,RK6007,Davies Group Sensitive,4705,Solicitors Fees,Internal Insurance
Blackpool Council,1114000,Dac Beachcroft Claims Limited,4838850,03-10179425,01/02/2023,3527.18,587.86,RK6007,Davies Group Sensitive,4705,Solicitors Fees,Internal Insurance
Blackpool Council,1114000,Dac Beachcroft Claims Limited,4838853,03-10179402,01/02/2023,3436.8,572.8,RK6007,Davies Group Sensitive,4705,Solicitors Fees,Internal Insurance
Blackpool Council,1114000,Dac Beachcroft Claims Limited,4838854,03-10179392,01/02/2023,3865.61,644.27,RK6007,Davies Group Sensitive,4705,Solicitors Fees,Internal Insurance
Blackpool Council,1114000,Dac Beachcroft Claims Limited,4838855,03-10179401,01/02/2023,3436.8,572.8,RK6007,Davies Group Sensitive,4705,Solicitors Fees,Internal Insurance
Blackpool Council,1114000,Dac Beachcroft Claims Limited,4838856,03-10179403,01/02/2023,3436.8,572.8,RK6007,Davies Group Sensitive,4705,Solicitors Fees,Internal Insurance
Blackpool Council,1114000,Dac Beachcroft Claims Limited,4838864,03-10179423,01/02/2023,3527.21,587.87,RK6007,Davies Group Sensitive,4705,Solicitors Fees,Internal Insurance
Blackpool Council,1114000,Dac Beachcroft Claims Limited,4838866,03-10179426,01/02/2023,3527.2,587.87,RK6007,Davies Group Sensitive,4705,Solicitors Fees,Internal Insurance
Blackpool Council,1114000,Dac Beachcroft Claims Limited,4838867,03-10179382,01/02/2023,4935.9,822.65,RK6007,Davies Group Sensitive,4705,Solicitors Fees,Internal Insurance
Blackpool Council,1134813,Hello Roomz,4838869,3201,02/02/2023,13955,0,HOPB,Housing Options,1704,Bed & Breakfast Accomm.,Chief Executive
Blackpool Council,1044395,Sellick Partnership Limited,4838882,INV460042,22/02/2023,1728.86,288.14,BAAA,Legal Services,0793,Supply Cost Of Other Agency,Governance & Partnerships
Blackpool Council,1010300,Blacktax Radio Taxis T/A Blackpool Courier,4839025,726,01/02/2023,377.6,0,APBBAD,Keats Day Centre,2241,Scheduled Taxi Use,Adult & Families
Blackpool Council,1097947,REDACTED PERSONAL DATA,4839026,470499,09/02/2023,1200,200,AMH,Mental Health,3807,Legal & Court Costs,Adult & Families
Blackpool Council,1045649,Independent Living (North West) Ltd,4839033,HDC 143C-19,01/02/2023,5343.95,890.66,MTEBG,Day Services,4508,Day Care,Adult & Families
Blackpool Council,1045649,Independent Living (North West) Ltd,4839034,WM143C-19,01/02/2023,14373.53,2395.59,MTEBG,Day Services,4508,Day Care,Adult & Families
Blackpool Council,1105003,Socal Healthcare Ltd,4839035,0123-117-118,13/02/2023,350.27,0,LM0401,Safeguarding Vulnerable Adults,4501,Private Contractors,Adult & Families
Blackpool Council,1041543,REDACTED PERSONAL DATA,4839036,272411,15/02/2023,1218,203,BAAA,Legal Services,4707,Counsels Fees,Governance & Partnerships
Blackpool Council,1107100,Nonstop Consulting Ltd,4839050,UK222859,16/02/2023,1382.88,230.48,JBT,Looked After Children,0791,Temp/Relief (Bureau Staff),Children'S Services
Blackpool Council,1077786,Phh Solicitors,4839056,16706,10/02/2023,360,0,JEA,Senior Management,4715,Other Fees,Children'S Services
Blackpool Council,1073538,Dac Beachcroft Llp,4839074,01-10138557,17/02/2023,3000,500,HJI,Growth Investments,3807,Legal & Court Costs,Places
Blackpool Council,1105003,Socal Healthcare Ltd,4839075,0123-119-120,13/02/2023,354.23,0,LM0401,Safeguarding Vulnerable Adults,4501,Private Contractors,Adult & Families
Blackpool Council,1123190,Cder Group Limted,4839372,238335,10/02/2023,2822.23,470.37,FV6705,Phoenix Commercial Collection,7366,Car Parking Fees,Budgets Outside Cash Limits
Blackpool Council,1123190,Cder Group Limted,4839373,238337,10/02/2023,4425.34,737.56,FV6705,Phoenix Commercial Collection,7366,Car Parking Fees,Budgets Outside Cash Limits
Blackpool Council,1123190,Cder Group Limted,4839374,239096,17/02/2023,3331.69,555.28,FV6705,Phoenix Commercial Collection,7366,Car Parking Fees,Budgets Outside Cash Limits
Blackpool Council,1123190,Cder Group Limted,4839375,239098,17/02/2023,8945.11,1490.85,FV6705,Phoenix Commercial Collection,7366,Car Parking Fees,Budgets Outside Cash Limits
Blackpool Council,1106132,Bridge Education And Training Ltd,4839430,12067,03/02/2023,480,80,CWAN,Children With Additional Needs,4403,Special Needs - Children,Children'S Services
Blackpool Council,1136654,Randstad Solutions Ltd,4839431,30067698,17/02/2023,1048.8,174.8,CWAN,Children With Additional Needs,4403,Special Needs - Children,Children'S Services
Blackpool Council,1123190,Cder Group Limted,4839432,239898,24/02/2023,6087.22,1014.54,FBBEA,"Income, Recovery & Debtors",3807,Legal & Court Costs,Resources
Blackpool Council,1011817,Jack Cunliffe Blackpool Ltd,4839454,23309,02/02/2023,623.04,103.84,AER,Dual Use Properties,1012,Premises Maint-Priv.Contractor,Resources
Blackpool Council,1073045,Bradley Environmental Consultants Ltd,4839474,70123,17/02/2023,900,150,CGRESO,Resources Schemes,6501,Contract Payments,Capital - Resources
Blackpool Council,1073045,Bradley Environmental Consultants Ltd,4839475,70124,17/02/2023,4794,799,CGRESO,Resources Schemes,6501,Contract Payments,Capital - Resources
Blackpool Council,1073045,Bradley Environmental Consultants Ltd,4839476,70134,17/02/2023,360,60,CPAABA,Shoreline,6501,Contract Payments,Capital - Comm & Environ
Blackpool Council,1039034,Contract Floors Ltd,4839757,INV-2252,28/02/2023,750,125,CXXXX,Hra Non Specific Contingency,6501,Contract Payments,Capital - Chief Executive
Blackpool Council,1133382,REDACTED PERSONAL DATA,4839758,EXCKB007_V2,03/02/2023,437.76,0,JEA,Senior Management,4809,Special Guardianship,Children'S Services
Blackpool Council,1039034,Contract Floors Ltd,4839759,INV-2253,13/02/2023,822,137,CXC31,Hra Capital Programme 2022/23,6501,Contract Payments,Capital - Chief Executive
Blackpool Council,1039034,Contract Floors Ltd,4839762,INV-2256,13/02/2023,864,144,CXC31,Hra Capital Programme 2022/23,6501,Contract Payments,Capital - Chief Executive
Blackpool Council,1107100,Nonstop Consulting Ltd,4839765,UK223533,23/02/2023,2114.33,352.39,JBT,Looked After Children,0791,Temp/Relief (Bureau Staff),Children'S Services
Blackpool Council,1115716,North Liverpool Construction Ltd (Fac067),4839767,130108,24/02/2023,851.89,141.98,CXC31,Hra Capital Programme 2022/23,6501,Contract Payments,Capital - Chief Executive
Blackpool Council,1115716,North Liverpool Construction Ltd (Fac067),4839769,130109,24/02/2023,4846.09,807.68,CXXXX,Hra Non Specific Contingency,6501,Contract Payments,Capital - Chief Executive
Blackpool Council,1048456,R T C,4839771,11241,13/02/2023,2868,478,CXC31,Hra Capital Programme 2022/23,6501,Contract Payments,Capital - Chief Executive
Blackpool Council,1011995,Technical & Electrical Services Ltd,4839773,M 23539,13/02/2023,807.17,134.53,CXC31,Hra Capital Programme 2022/23,6501,Contract Payments,Capital - Chief Executive
Blackpool Council,1011995,Technical & Electrical Services Ltd,4839774,M 23540,13/02/2023,807.17,134.53,CXC31,Hra Capital Programme 2022/23,6501,Contract Payments,Capital - Chief Executive
Blackpool Council,1011995,Technical & Electrical Services Ltd,4839775,M 23541,28/02/2023,807.17,134.53,CXC31,Hra Capital Programme 2022/23,6501,Contract Payments,Capital - Chief Executive
Blackpool Council,1011995,Technical & Electrical Services Ltd,4839776,M 23542,13/02/2023,807.17,134.53,CXC31,Hra Capital Programme 2022/23,6501,Contract Payments,Capital - Chief Executive
Blackpool Council,1011995,Technical & Electrical Services Ltd,4839777,M 23543,28/02/2023,403.58,67.26,CXAAA,Local Authority Dwellings,6501,Contract Payments,Capital - Chief Executive
Blackpool Council,1011995,Technical & Electrical Services Ltd,4839778,M 23544,13/02/2023,403.58,67.26,CXC31,Hra Capital Programme 2022/23,6501,Contract Payments,Capital - Chief Executive
Blackpool Council,1011995,Technical & Electrical Services Ltd,4839786,M 23532,13/02/2023,254.27,42.38,CXC31,Hra Capital Programme 2022/23,6501,Contract Payments,Capital - Chief Executive
Blackpool Council,1011995,Technical & Electrical Services Ltd,4839787,M 23533,28/02/2023,326.18,54.36,CXC31,Hra Capital Programme 2022/23,6501,Contract Payments,Capital - Chief Executive
Blackpool Council,1011995,Technical & Electrical Services Ltd,4839789,M 23534,13/02/2023,580.45,96.74,CXC31,Hra Capital Programme 2022/23,6501,Contract Payments,Capital - Chief Executive
Blackpool Council,1011995,Technical & Electrical Services Ltd,4839790,M 23535,28/02/2023,403.58,67.26,CXC31,Hra Capital Programme 2022/23,6501,Contract Payments,Capital - Chief Executive
Blackpool Council,1011995,Technical & Electrical Services Ltd,4839791,M 23536,13/02/2023,403.58,67.26,CXC31,Hra Capital Programme 2022/23,6501,Contract Payments,Capital - Chief Executive
Blackpool Council,1011995,Technical & Electrical Services Ltd,4839792,M 23537,13/02/2023,403.58,67.26,CXC31,Hra Capital Programme 2022/23,6501,Contract Payments,Capital - Chief Executive
Blackpool Council,1011995,Technical & Electrical Services Ltd,4839793,M 23538,28/02/2023,807.17,134.53,CXC31,Hra Capital Programme 2022/23,6501,Contract Payments,Capital - Chief Executive
Blackpool Council,1011995,Technical & Electrical Services Ltd,4839795,CAP23551,03/02/2023,1511.86,251.98,CXC31,Hra Capital Programme 2022/23,6501,Contract Payments,Capital - Chief Executive
Blackpool Council,1011995,Technical & Electrical Services Ltd,4839800,CAP23557,15/02/2023,712.28,118.71,CXAAA,Local Authority Dwellings,6501,Contract Payments,Capital - Chief Executive
Blackpool Council,1102179,Bedspace Resource Ltd,4840115,BLACKPOO 299795,17/02/2023,1098,183,JEA,Senior Management,4501,Private Contractors,Children'S Services
Blackpool Council,1104552,Hexagon Care Services Ltd,4840127,28221,02/02/2023,13396,0,JEA,Senior Management,4501,Private Contractors,Children'S Services
Blackpool Council,1104552,Hexagon Care Services Ltd,4840128,28220,02/02/2023,21956,0,JEA,Senior Management,4501,Private Contractors,Children'S Services
Blackpool Council,1118744,Lonsdale Care Ltd,4840129,LC00410,20/02/2023,15000,0,JEA,Senior Management,4501,Private Contractors,Children'S Services
Blackpool Council,1118744,Lonsdale Care Ltd,4840130,LC00413,20/02/2023,15000,0,JEA,Senior Management,4501,Private Contractors,Children'S Services
Blackpool Council,1118744,Lonsdale Care Ltd,4840131,LC00412,20/02/2023,15000,0,JEA,Senior Management,4501,Private Contractors,Children'S Services
Blackpool Council,1118744,Lonsdale Care Ltd,4840132,LC00414,20/02/2023,15000,0,JEA,Senior Management,4501,Private Contractors,Children'S Services
Blackpool Council,1118744,Lonsdale Care Ltd,4840133,LC00411,20/02/2023,15000,0,JEA,Senior Management,4501,Private Contractors,Children'S Services
Blackpool Council,1118744,Lonsdale Care Ltd,4840134,LC00409,20/02/2023,15000,0,JEA,Senior Management,4501,Private Contractors,Children'S Services
Blackpool Council,1112992,Key To Independence Ltd,4841001,RTD240123/DH/WATSON,14/02/2023,375,0,CX4002,Disabled Facilities Grants,6501,Contract Payments,Capital - Adult Social Care
Blackpool Council,1000009,Blackpool & The Fylde College,4841020,T0016963,10/02/2023,79178.35,0,CWAN,Children With Additional Needs,4501,Private Contractors,Children'S Services
Blackpool Council,1000009,Blackpool & The Fylde College,4841021,T0016964,10/02/2023,77164.07,0,CWAN,Children With Additional Needs,4501,Private Contractors,Children'S Services
Blackpool Council,1000009,Blackpool & The Fylde College,4841022,T0016928,10/02/2023,58470.58,0,CWAN,Children With Additional Needs,4501,Private Contractors,Children'S Services
Blackpool Council,1000009,Blackpool & The Fylde College,4841024,T0016929,10/02/2023,35577.73,0,CWAN,Children With Additional Needs,4501,Private Contractors,Children'S Services
Blackpool Council,1130818,Kids Planet Day Nurseries Ltd-Bluebell Lodge,4841030,SEN MW 272,03/02/2023,1600.5,0,CWAN,Children With Additional Needs,4403,Special Needs - Children,Children'S Services
Blackpool Council,1130818,Kids Planet Day Nurseries Ltd-Bluebell Lodge,4841034,SEN TS 273,03/02/2023,1600.5,0,CWAN,Children With Additional Needs,4403,Special Needs - Children,Children'S Services
Blackpool Council,1102319,Langdale Free School,4841039,40,03/02/2023,2843.35,0,CWAN,Children With Additional Needs,4403,Special Needs - Children,Children'S Services
Blackpool Council,1101124,South Shore Academy,4841044,SSSI 82,03/02/2023,780,0,CWAN,Children With Additional Needs,4403,Special Needs - Children,Children'S Services
Blackpool Council,1011369,Lancashire County Council,4841046,5101508748,03/02/2023,450,0,CWAN,Children With Additional Needs,0911,Training Expenses,Children'S Services
Blackpool Council,1071925,Groundwork Cheshire Lancs And Merseyside,4841049,0000004103,16/02/2023,36000,0,AEB,Buildings,7189,Other Misc Income - No Orders,Resources
Blackpool Council,1138100,Beverly Pearson Educational Consultant,4841050,230119,17/02/2023,3290,0,CWAN,Children With Additional Needs,3408,Services To Clients,Children'S Services
Blackpool Council,1087305,Ellis & York Ltd,4841085,10187,03/02/2023,323.7,53.95,AEB,Buildings,1012,Premises Maint-Priv.Contractor,Resources
Blackpool Council,1090042,Sbg Contracts Ltd T/A Blackpool Fylde Glass,4841089,14530,02/02/2023,314.4,52.4,PAROPE,Parking Operational,1012,Premises Maint-Priv.Contractor,Budgets Outside Cash Limits
Blackpool Council,1103225,REDACTED PERSONAL DATA,4841115,274169,22/02/2023,642,107,BAAA,Legal Services,4707,Counsels Fees,Governance & Partnerships
Blackpool Council,1014404,REDACTED PERSONAL DATA,4841116,272703,23/02/2023,540,90,BAAA,Legal Services,4707,Counsels Fees,Governance & Partnerships
Blackpool Council,1110326,REDACTED PERSONAL DATA,4841119,460461,02/02/2023,1248,208,BAAA,Legal Services,4707,Counsels Fees,Governance & Partnerships
Blackpool Council,1138096,REDACTED PERSONAL DATA,4841120,473689,02/02/2023,600,100,PLCAAA,Building Control,4707,Counsels Fees,Places
Blackpool Council,1134724,Medico Legal Uk Chambers Limited,4841122,GB26092022SB F,02/02/2023,421.2,70.2,JEA,Senior Management,4712,Experts Fees,Children'S Services
Blackpool Council,1084280,Alpha Biolabs,4841247,INV621463,02/02/2023,322.2,53.71,JEA,Senior Management,4712,Experts Fees,Children'S Services
Blackpool Council,1048456,R T C,4841293,11258,13/02/2023,528,88,CXC31,Hra Capital Programme 2022/23,6501,Contract Payments,Capital - Chief Executive
Blackpool Council,1134261,Sse (Gas Account),4841353,0937955510,02/02/2023,433.39,0,JPA,Children Centres,5101,Transfer Payments - General,Children'S Services
Blackpool Council,1088102,Whistl Uk Limited,4841389,IN18US23000433,24/02/2023,4444.78,740.8,FCADA,Customer Services,3511,Postages,Resources
Blackpool Council,1137588,The Winning Post Hotel Limited,4841391,INV016,09/02/2023,300,0,HOPB,Housing Options,1704,Bed & Breakfast Accomm.,Chief Executive
Blackpool Council,1137588,The Winning Post Hotel Limited,4841392,INV015,09/02/2023,430,0,HOPB,Housing Options,1704,Bed & Breakfast Accomm.,Chief Executive
Blackpool Council,1137588,The Winning Post Hotel Limited,4841393,INV013,09/02/2023,1260,0,HOPB,Housing Options,1704,Bed & Breakfast Accomm.,Chief Executive
Blackpool Council,1137588,The Winning Post Hotel Limited,4841395,INV017,09/02/2023,550,0,HOPB,Housing Options,1704,Bed & Breakfast Accomm.,Chief Executive
Blackpool Council,1137588,The Winning Post Hotel Limited,4841396,INV014,09/02/2023,560,0,HOPB,Housing Options,1704,Bed & Breakfast Accomm.,Chief Executive
Blackpool Council,1137588,The Winning Post Hotel Limited,4841397,INV012,09/02/2023,560,0,HOPB,Housing Options,1704,Bed & Breakfast Accomm.,Chief Executive
Blackpool Council,1137588,The Winning Post Hotel Limited,4841398,INV019,09/02/2023,720,0,HOPB,Housing Options,1704,Bed & Breakfast Accomm.,Chief Executive
Blackpool Council,1087305,Ellis & York Ltd,4841427,10189,06/02/2023,269.3,44.88,AEB,Buildings,1012,Premises Maint-Priv.Contractor,Resources
Blackpool Council,1093585,Jpf Systems Limited,4841433,922874,08/02/2023,349.2,58.2,AER,Dual Use Properties,1012,Premises Maint-Priv.Contractor,Resources
Blackpool Council,1094411,Fox Fire Security Limited,4841435,3905,24/02/2023,540,90,AER,Dual Use Properties,1012,Premises Maint-Priv.Contractor,Resources
Blackpool Council,1113419,Charnwood Cattery Ltd,4841440,0450,09/02/2023,266,0,MVDAK,Other Services,4502,Dog Kennelling Contractor,Adult & Families
Blackpool Council,1057348,Venn Group Limited,4841441,3985397,24/02/2023,1443,240.5,BAAA,Legal Services,0793,Supply Cost Of Other Agency,Governance & Partnerships
Blackpool Council,1008537,Knight Air Products Limited,4841445,322644,24/02/2023,445.58,74.26,JB0401,167 Hornby Road (155),1601,Consumable Supplies,Adult & Families
Blackpool Council,1048456,R T C,4841446,11245,13/02/2023,1404,234,CXC31,Hra Capital Programme 2022/23,6501,Contract Payments,Capital - Chief Executive
Blackpool Council,1104767,North Star Environmental Ltd,4841456,INV-27730,17/02/2023,1146,191,CXC31,Hra Capital Programme 2022/23,6501,Contract Payments,Capital - Chief Executive
Blackpool Council,1108346,Lancashire Interpretation & Translation Serv,4841457,LITS/240123/ZC,21/02/2023,462.6,77.1,MVBAK,Other Services,3419,Interpreters Fees,Adult & Families
Blackpool Council,1108346,Lancashire Interpretation & Translation Serv,4841458,LITS/260123/JC,23/02/2023,462,77,MFBAK,Other Services,3419,Interpreters Fees,Adult & Families
Blackpool Council,1115716,North Liverpool Construction Ltd (Fac067),4841651,129956,15/02/2023,312,52,CXAAA,Local Authority Dwellings,6501,Contract Payments,Capital - Chief Executive
Blackpool Council,1115716,North Liverpool Construction Ltd (Fac067),4841652,129955,15/02/2023,570,95,MVBBJ,Equipment,5401,Aids To Daily Living,Adult & Families
